Department,Entity,Transaction Date,Supplier Name Published,Amount Published,Expense Type Published,Expense Area Published,"Expense Description published for admin spend above 25,000 only",Transaction Number
DFID,DFID,04/01/2012,THE SAVE THE CHILDREN FUND,"193,000",Aid Programme - Accountable Grant Payments,"Asia, Caribbean and Overseas Territories",,400193207
DFID,DFID,06/01/2012,"Clinton Health Access Initiative, Inc","804,322",Aid Programme - Accountable Grant Payments,"Asia, Caribbean and Overseas Territories",,400194168
DFID,DFID,09/01/2012,UK OVERSEAS TERRITORIES CONSERVATION,"6,778",Aid Programme - Accountable Grant Payments,"Asia, Caribbean and Overseas Territories",,400194277
DFID,DFID,10/01/2012,Sahayog Society for Participatory Rural Development,"3,031",Aid Programme - Accountable Grant Payments,"Asia, Caribbean and Overseas Territories",,400195058
DFID,DFID,19/01/2012,BRAC,"500,000",Aid Programme - Accountable Grant Payments,"Asia, Caribbean and Overseas Territories",,400196534
DFID,DFID,23/01/2012,International Development Enterprise - Nepal,"792,396",Aid Programme - Accountable Grant Payments,"Asia, Caribbean and Overseas Territories",,400196666
DFID,DFID,24/01/2012,Transparency International (Bangladesh),"25,000",Aid Programme - Accountable Grant Payments,"Asia, Caribbean and Overseas Territories",,400196672
DFID,DFID,24/01/2012,Transparency International (Bangladesh),"369,963",Aid Programme - Accountable Grant Payments,"Asia, Caribbean and Overseas Territories",,400196672
DFID,DFID,20/01/2012,YAYASAN KEANEKARAGMAN HAYATI INDONESIA - KEHATI,"1,136,397",Aid Programme - Accountable Grant Payments,"Asia, Caribbean and Overseas Territories",,400196712
DFID,DFID,25/01/2012,Institute for Financial Management and Research.,"10,728",Aid Programme - Accountable Grant Payments,"Asia, Caribbean and Overseas Territories",,400197470
DFID,DFID,27/01/2012,SNV Netherlands Development Organisation(Nepal),"250,178",Aid Programme - Accountable Grant Payments,"Asia, Caribbean and Overseas Territories",,400197742
DFID,DFID,27/01/2012,THE GURKHA WELFARE SCHEME,"289,859",Aid Programme - Accountable Grant Payments,"Asia, Caribbean and Overseas Territories",,400197769
DFID,DFID,26/01/2012,CIPFA,"47,748",Aid Programme - Accountable Grant Payments,"Asia, Caribbean and Overseas Territories",,400197815
DFID,DFID,27/01/2012,Anguilla National Trust,"1,843",Aid Programme - Accountable Grant Payments,"Asia, Caribbean and Overseas Territories",,400197896
DFID,DFID,31/01/2012,ACCESS HEALTH INTERNATIONAL,"13,650",Aid Programme - Accountable Grant Payments,"Asia, Caribbean and Overseas Territories",,400198479
DFID,DFID,31/01/2012,ACCESS HEALTH INTERNATIONAL,"27,995",Aid Programme - Accountable Grant Payments,"Asia, Caribbean and Overseas Territories",,400198479
DFID,DFID,31/01/2012,COMMONWEALTH FOUNDATION,"54,924",Aid Programme - Accountable Grant Payments,"Asia, Caribbean and Overseas Territories",,400198559
DFID,DFID,11/01/2012,ECGD ACCOUNT,"51,154",Aid Programme - Aid and Trade Provision,"Asia, Caribbean and Overseas Territories",,400195132
DFID,DFID,11/01/2012,ECGD ACCOUNT,"13,097",Aid Programme - Aid and Trade Provision,"Asia, Caribbean and Overseas Territories",,400195137
DFID,DFID,11/01/2012,ECGD ACCOUNT,"19,615",Aid Programme - Aid and Trade Provision,"Asia, Caribbean and Overseas Territories",,400195161
DFID,DFID,26/01/2012,ECGD ACCOUNT,"27,387",Aid Programme - Aid and Trade Provision,"Asia, Caribbean and Overseas Territories",,400197733
DFID,DFID,30/01/2012,ECGD ACCOUNT,"29,941",Aid Programme - Aid and Trade Provision,"Asia, Caribbean and Overseas Territories",,400197778
DFID,DFID,04/01/2012,Haroon Engineering Limited,543,Building Plant - Air Conditioners,"Asia, Caribbean and Overseas Territories",,400194051
DFID,DFID,09/01/2012,Crown Agents Govts and Admin,"14,137",Building Plant - Air Conditioners,"Asia, Caribbean and Overseas Territories",,400194878
DFID,DFID,20/01/2012,Harewelle International Limited.,"1,033,267",Aid Programme - Challenge Fund payments,"Asia, Caribbean and Overseas Territories",,400196912
DFID,DFID,06/01/2012,EMERSON NETWORK POWER (INDIA)PVT LTD,647,Computer hardware maintenance,"Asia, Caribbean and Overseas Territories",,400194489
DFID,DFID,17/01/2012,Foreign & Commonwealth Office,"2,212","Conferences, Seminars & Meeting/Event Resource","Asia, Caribbean and Overseas Territories",,400196153
DFID,DFID,30/01/2012,Foreign & Commonwealth Office,"4,190",Technical and Advisory Services,"Asia, Caribbean and Overseas Territories",,400198318
DFID,DFID,10/01/2012,LIVERPOOL SCHOOL OF TROPICAL MEDICINE,"1,050",Technical and Advisory Services,"Asia, Caribbean and Overseas Territories",,400195022
DFID,DFID,13/01/2012,Foreign & Commonwealth Office,"8,276",Technical and Advisory Services,"Asia, Caribbean and Overseas Territories",,400195714
DFID,DFID,13/01/2012,Foreign & Commonwealth Office,"1,400",Technical and Advisory Services,"Asia, Caribbean and Overseas Territories",,400195714
DFID,DFID,13/01/2012,META-DEVELOPMENT LLP,"3,475",Technical and Advisory Services,"Asia, Caribbean and Overseas Territories",,400195743
DFID,DFID,31/01/2012,Recipient name withheld,"4,368",Contract & Agency Staff,"Asia, Caribbean and Overseas Territories",,400198367
DFID,DFID,17/01/2012,Nepal Electricity Authority,721,Electricity,"Asia, Caribbean and Overseas Territories",,400196008
DFID,DFID,19/01/2012,BSES RAJDHANI POWER LIMITED,"3,588",Electricity,"Asia, Caribbean and Overseas Territories",,400196346
DFID,DFID,25/01/2012,Neptune Properties,948,Electricity,"Asia, Caribbean and Overseas Territories",,400197380
DFID,DFID,25/01/2012,WFP CONTRIBUTIONS UNIT,"440,000",Aid Programme - Emergency Food Aid,"Asia, Caribbean and Overseas Territories",,400197308
DFID,DFID,17/01/2012,Comfort Tailors,"1,751",Uniforms,"Asia, Caribbean and Overseas Territories",,400196126
DFID,DFID,13/01/2012,Foreign & Commonwealth Office,647,Entertainment & Hospitality,"Asia, Caribbean and Overseas Territories",,400195698
DFID,DFID,09/01/2012,Finishing Touch,"11,861",Furniture & Fittings,"Asia, Caribbean and Overseas Territories",,400193347
DFID,DFID,09/01/2012,Finishing Touch,"23,722",Furniture & Fittings,"Asia, Caribbean and Overseas Territories",,400193347
DFID,DFID,18/01/2012,Crown Agents Govts and Admin,"25,201",Hardware - desktop PCs,"Asia, Caribbean and Overseas Territories",,400196499
DFID,DFID,08/01/2012,Flora Limited (Bangladesh),619,Hardware -Laptop PCs,"Asia, Caribbean and Overseas Territories",,400194577
DFID,DFID,09/01/2012,Corporate Travel Provider,"1,673",Hotels - Accommodation only,"Asia, Caribbean and Overseas Territories",,6000065
DFID,DFID,09/01/2012,Corporate Travel Provider,977,Hotels - Accommodation only,"Asia, Caribbean and Overseas Territories",,6000065
DFID,DFID,09/01/2012,Corporate Travel Provider,578,Hotels - Accommodation only,"Asia, Caribbean and Overseas Territories",,6000065
DFID,DFID,09/01/2012,Corporate Travel Provider,527,Hotels - Accommodation only,"Asia, Caribbean and Overseas Territories",,6000065
DFID,DFID,09/01/2012,Corporate Travel Provider,578,Hotels - Accommodation only,"Asia, Caribbean and Overseas Territories",,6000065
DFID,DFID,23/01/2012,Corporate Travel Provider,844,Hotels - Accommodation only,"Asia, Caribbean and Overseas Territories",,6000067
DFID,DFID,23/01/2012,Corporate Travel Provider,568,Hotels - Accommodation only,"Asia, Caribbean and Overseas Territories",,6000067
DFID,DFID,23/01/2012,Corporate Travel Provider,711,Hotels - Accommodation only,"Asia, Caribbean and Overseas Territories",,6000067
DFID,DFID,23/01/2012,Corporate Travel Provider,732,Hotels - Accommodation only,"Asia, Caribbean and Overseas Territories",,6000067
DFID,DFID,06/01/2012,Foreign & Commonwealth Office,926,Hotels - Accommodation only,"Asia, Caribbean and Overseas Territories",,400194514
DFID,DFID,06/01/2012,Foreign & Commonwealth Office,529,Hotels - Accommodation only,"Asia, Caribbean and Overseas Territories",,400194514
DFID,DFID,06/01/2012,Foreign & Commonwealth Office,802,Hotels - Accommodation only,"Asia, Caribbean and Overseas Territories",,400194514
DFID,DFID,13/01/2012,Foreign & Commonwealth Office,994,Hotels - Accommodation only,"Asia, Caribbean and Overseas Territories",,400195714
DFID,DFID,17/01/2012,Foreign & Commonwealth Office,"6,420",Hotels - Accommodation only,"Asia, Caribbean and Overseas Territories",,400196153
DFID,DFID,17/01/2012,Foreign & Commonwealth Office,"37,468",Technical and Advisory Services,"Asia, Caribbean and Overseas Territories",,400196153
DFID,DFID,17/01/2012,Foreign & Commonwealth Office,809,Hotels - Accommodation only,"Asia, Caribbean and Overseas Territories",,400196153
DFID,DFID,20/01/2012,Foreign & Commonwealth Office,"1,594",Hotels - Accommodation only,"Asia, Caribbean and Overseas Territories",,400196884
DFID,DFID,26/01/2012,ITC LTD - Maurya,628,Hotels - Accommodation only,"Asia, Caribbean and Overseas Territories",,400196997
DFID,DFID,26/01/2012,ITC LTD - Maurya,628,Hotels - Accommodation only,"Asia, Caribbean and Overseas Territories",,400196999
DFID,DFID,03/01/2012,Supplier name withheld,"2,032",Secure Staff accommodation,"Asia, Caribbean and Overseas Territories",,400194039
DFID,DFID,05/01/2012,Supplier name withheld,"6,690",Secure Staff accommodation,"Asia, Caribbean and Overseas Territories",,400194185
DFID,DFID,05/01/2012,Supplier name withheld,"6,101",Secure Staff accommodation,"Asia, Caribbean and Overseas Territories",,400194240
DFID,DFID,05/01/2012,Supplier name withheld,"6,112",Secure Staff accommodation,"Asia, Caribbean and Overseas Territories",,400194241
DFID,DFID,05/01/2012,Supplier name withheld,"7,640",Secure Staff accommodation,"Asia, Caribbean and Overseas Territories",,400194245
DFID,DFID,13/01/2012,Supplier name withheld,"20,455",Secure Staff accommodation,"Asia, Caribbean and Overseas Territories",,400195698
DFID,DFID,13/01/2012,Supplier name withheld,"4,661",Secure Staff accommodation,"Asia, Caribbean and Overseas Territories",,400195698
DFID,DFID,17/01/2012,Supplier name withheld,"1,158",Secure Staff accommodation,"Asia, Caribbean and Overseas Territories",,400196153
DFID,DFID,17/01/2012,Supplier name withheld,"3,345",Secure Staff accommodation,"Asia, Caribbean and Overseas Territories",,400196153
DFID,DFID,20/01/2012,Supplier name withheld,"7,115",Secure Staff accommodation,"Asia, Caribbean and Overseas Territories",,400196884
DFID,DFID,23/01/2012,Supplier name withheld,"3,152",Secure Staff accommodation,"Asia, Caribbean and Overseas Territories",,400197019
DFID,DFID,23/01/2012,Supplier name withheld,"4,183",Secure Staff accommodation,"Asia, Caribbean and Overseas Territories",,400197019
DFID,DFID,23/01/2012,Supplier name withheld,"11,638",Secure Staff accommodation,"Asia, Caribbean and Overseas Territories",,400197019
DFID,DFID,23/01/2012,Supplier name withheld,"6,046",Secure Staff accommodation,"Asia, Caribbean and Overseas Territories",,400197019
DFID,DFID,25/01/2012,Supplier name withheld,"2,675",Secure Staff accommodation,"Asia, Caribbean and Overseas Territories",,400197400
DFID,DFID,30/01/2012,Supplier name withheld,541,Secure Staff accommodation,"Asia, Caribbean and Overseas Territories",,400198228
DFID,DFID,30/01/2012,Supplier name withheld,"31,030",Secure Staff accommodation,"Asia, Caribbean and Overseas Territories",Secure staff accommodation,400198318
DFID,DFID,06/01/2012,Foreign & Commonwealth Office,"4,811",Aid Programme - Joint programme contribution,"Asia, Caribbean and Overseas Territories",,400194514
DFID,DFID,06/01/2012,Foreign & Commonwealth Office,"6,110",Aid Programme - Joint programme contribution,"Asia, Caribbean and Overseas Territories",,400194514
DFID,DFID,06/01/2012,Foreign & Commonwealth Office,"4,811",Aid Programme - Joint programme contribution,"Asia, Caribbean and Overseas Territories",,400194514
DFID,DFID,06/01/2012,Foreign & Commonwealth Office,524,Aid Programme - Joint programme contribution,"Asia, Caribbean and Overseas Territories",,400194514
DFID,DFID,06/01/2012,Foreign & Commonwealth Office,630,Aid Programme - Joint programme contribution,"Asia, Caribbean and Overseas Territories",,400194514
DFID,DFID,06/01/2012,Foreign & Commonwealth Office,"1,823",Aid Programme - Joint programme contribution,"Asia, Caribbean and Overseas Territories",,400194543
DFID,DFID,06/01/2012,Foreign & Commonwealth Office,"2,134",Aid Programme - Joint programme contribution,"Asia, Caribbean and Overseas Territories",,400194543
DFID,DFID,06/01/2012,Foreign & Commonwealth Office,862,Aid Programme - Joint programme contribution,"Asia, Caribbean and Overseas Territories",,400194543
DFID,DFID,06/01/2012,Foreign & Commonwealth Office,"7,147",Aid Programme - Joint programme contribution,"Asia, Caribbean and Overseas Territories",,400194543
DFID,DFID,13/01/2012,Foreign & Commonwealth Office,"4,301",Aid Programme - Joint programme contribution,"Asia, Caribbean and Overseas Territories",,400195714
DFID,DFID,13/01/2012,Foreign & Commonwealth Office,"2,266",Aid Programme - Joint programme contribution,"Asia, Caribbean and Overseas Territories",,400195714
DFID,DFID,06/01/2012,Foreign & Commonwealth Office,"3,671",Mobile telephones & accessories,"Asia, Caribbean and Overseas Territories",,400194543
DFID,DFID,31/01/2012,FCO SERVICES,933,Mobile telephones & accessories,"Asia, Caribbean and Overseas Territories",,400198501
DFID,DFID,11/01/2012,Image Electronics ,"1,326",Office Equipment - Purchases,"Asia, Caribbean and Overseas Territories",,400195257
DFID,DFID,16/01/2012,Crown Agents Govts and Admin,"1,559",Office Equipment - Purchases,"Asia, Caribbean and Overseas Territories",,400195935
DFID,DFID,18/01/2012,Crown Agents Govts and Admin,645,Office Equipment - Purchases,"Asia, Caribbean and Overseas Territories",,400196244
DFID,DFID,20/01/2012,Foreign & Commonwealth Office,676,Office Equipment - Purchases,"Asia, Caribbean and Overseas Territories",,400196884
DFID,DFID,12/01/2012,Neptune Properties,"18,617",Operating Lease rental of buildings,"Asia, Caribbean and Overseas Territories",,400195462
DFID,DFID,12/01/2012,Neptune Properties,"18,617",Operating Lease rental of buildings,"Asia, Caribbean and Overseas Territories",,400195462
DFID,DFID,13/01/2012,Foreign & Commonwealth Office,604,Other Admin Costs,"Asia, Caribbean and Overseas Territories",,400195698
DFID,DFID,13/01/2012,Foreign & Commonwealth Office,589,Other Admin Costs,"Asia, Caribbean and Overseas Territories",,400195714
DFID,DFID,17/01/2012,Foreign & Commonwealth Office,771,Other Admin Costs,"Asia, Caribbean and Overseas Territories",,400196153
DFID,DFID,13/01/2012,Crown Agents Govts and Admin - St Helena,"39,991",Aid Programme - Other Financial Aid to Government,"Asia, Caribbean and Overseas Territories",,400195711
DFID,DFID,16/01/2012,Crown Agents Govts and Admin- Overseas Territories Environment Programme,"14,215",Aid Programme - Other Financial Aid to Government,"Asia, Caribbean and Overseas Territories",,400195965
DFID,DFID,27/01/2012,Crown Agents Govts and Admin - India,"2,363,527",Aid Programme - Other Financial Aid to Government,"Asia, Caribbean and Overseas Territories",,400198042
DFID,DFID,30/01/2012,Crown Agents Govts and Admin - Nepal,"739,363",Aid Programme - Other Financial Aid to Government,"Asia, Caribbean and Overseas Territories",,400198043
DFID,DFID,06/01/2012,Foreign & Commonwealth Office,"1,281",Printer Consumables,"Asia, Caribbean and Overseas Territories",,400194514
DFID,DFID,20/01/2012,Foreign & Commonwealth Office,"1,553",Aid Programme - Programme Contribution,"Asia, Caribbean and Overseas Territories",,400196884
DFID,DFID,20/01/2012,Foreign & Commonwealth Office,"6,925",Aid Programme - Programme Contribution,"Asia, Caribbean and Overseas Territories",,400196884
DFID,DFID,20/01/2012,Foreign & Commonwealth Office,"4,459",Aid Programme - Programme Contribution,"Asia, Caribbean and Overseas Territories",,400196884
DFID,DFID,20/01/2012,Foreign & Commonwealth Office,"4,459",Aid Programme - Programme Contribution,"Asia, Caribbean and Overseas Territories",,400196884
DFID,DFID,20/01/2012,Foreign & Commonwealth Office,729,Aid Programme - Programme Contribution,"Asia, Caribbean and Overseas Territories",,400196884
DFID,DFID,20/01/2012,Foreign & Commonwealth Office,"2,324",Aid Programme - Programme Contribution,"Asia, Caribbean and Overseas Territories",,400196884
DFID,DFID,11/01/2012,Thompson Nepal Pvt Ltd,999,Recruitment costs,"Asia, Caribbean and Overseas Territories",,400195264
DFID,DFID,27/01/2012,Thompson Nepal Pvt Ltd,"1,159",Recruitment costs,"Asia, Caribbean and Overseas Territories",,400197947
DFID,DFID,10/01/2012,CB RICHARD ELLIS SOUTH ASIA PVT LTD,"14,038",Facilities Management payments,"Asia, Caribbean and Overseas Territories",,400195036
DFID,DFID,11/01/2012,M N Khan & Co,775,"Repairs, Maint, Alter - Property & Constrct. Services","Asia, Caribbean and Overseas Territories",,400195249
DFID,DFID,24/01/2012,Crown Agents Govts and Admin,"250,000","Repairs, Maint, Alter - Property & Constrct. Services","Asia, Caribbean and Overseas Territories",,400197038
DFID,DFID,09/01/2012,Corporate Travel Provider,586,Air fares,"Asia, Caribbean and Overseas Territories",,6000065
DFID,DFID,16/01/2012,Corporate Travel Provider,683,Air fares,"Asia, Caribbean and Overseas Territories",,6000066
DFID,DFID,16/01/2012,Corporate Travel Provider,939,Air fares,"Asia, Caribbean and Overseas Territories",,6000066
DFID,DFID,16/01/2012,Corporate Travel Provider,684,Air fares,"Asia, Caribbean and Overseas Territories",,6000066
DFID,DFID,16/01/2012,Corporate Travel Provider,914,Air fares,"Asia, Caribbean and Overseas Territories",,6000066
DFID,DFID,16/01/2012,Corporate Travel Provider,914,Air fares,"Asia, Caribbean and Overseas Territories",,6000066
DFID,DFID,23/01/2012,Corporate Travel Provider,610,Air fares,"Asia, Caribbean and Overseas Territories",,6000067
DFID,DFID,23/01/2012,Corporate Travel Provider,745,Air fares,"Asia, Caribbean and Overseas Territories",,6000067
DFID,DFID,23/01/2012,Corporate Travel Provider,960,Air fares,"Asia, Caribbean and Overseas Territories",,6000067
DFID,DFID,23/01/2012,Corporate Travel Provider,715,Air fares,"Asia, Caribbean and Overseas Territories",,6000067
DFID,DFID,23/01/2012,Corporate Travel Provider,544,Air fares,"Asia, Caribbean and Overseas Territories",,6000067
DFID,DFID,23/01/2012,Corporate Travel Provider,623,Air fares,"Asia, Caribbean and Overseas Territories",,6000067
DFID,DFID,23/01/2012,Corporate Travel Provider,595,Air fares,"Asia, Caribbean and Overseas Territories",,6000067
DFID,DFID,23/01/2012,Corporate Travel Provider,825,Air fares,"Asia, Caribbean and Overseas Territories",,6000067
DFID,DFID,23/01/2012,Corporate Travel Provider,"1,224",Air fares,"Asia, Caribbean and Overseas Territories",,6000067
DFID,DFID,23/01/2012,Corporate Travel Provider,551,Air fares,"Asia, Caribbean and Overseas Territories",,6000067
DFID,DFID,06/01/2012,Foreign & Commonwealth Office,"1,178",Air fares,"Asia, Caribbean and Overseas Territories",,400194514
DFID,DFID,11/01/2012,MAF-Sweden Air Support,"1,353",Air fares,"Asia, Caribbean and Overseas Territories",,400195210
DFID,DFID,13/01/2012,Foreign & Commonwealth Office,842,Air fares,"Asia, Caribbean and Overseas Territories",,400195698
DFID,DFID,17/01/2012,Jaya Travels & Tours Pvt Ltd. (US$),867,Air fares,"Asia, Caribbean and Overseas Territories",,400196085
DFID,DFID,17/01/2012,Jaya Travels & Tours Pvt Ltd. (US$),954,Air fares,"Asia, Caribbean and Overseas Territories",,400196085
DFID,DFID,17/01/2012,Foreign & Commonwealth Office,"1,671",Air fares,"Asia, Caribbean and Overseas Territories",,400196153
DFID,DFID,17/01/2012,Foreign & Commonwealth Office,752,Air fares,"Asia, Caribbean and Overseas Territories",,400196153
DFID,DFID,18/01/2012,Mudra Travels,629,Air fares,"Asia, Caribbean and Overseas Territories",,400196429
DFID,DFID,22/01/2012,MAF-Sweden Air Support,"1,209",Air fares,"Asia, Caribbean and Overseas Territories",,400196932
DFID,DFID,23/01/2012,Foreign & Commonwealth Office,"3,378",Air fares,"Asia, Caribbean and Overseas Territories",,400197019
DFID,DFID,23/01/2012,Foreign & Commonwealth Office,842,Air fares,"Asia, Caribbean and Overseas Territories",,400197019
DFID,DFID,27/01/2012,Jaya Travels & Tours Pvt Ltd. (US$),584,Air fares,"Asia, Caribbean and Overseas Territories",,400197942
DFID,DFID,30/01/2012,Foreign & Commonwealth Office,810,Air fares,"Asia, Caribbean and Overseas Territories",,400198318
DFID,DFID,09/01/2012,CARICOM/PANCAP,"7,365",Technical and Advisory Services,"Asia, Caribbean and Overseas Territories",,400193422
DFID,DFID,05/01/2012,Teraquad Limited,"3,608",Technical and Advisory Services,"Asia, Caribbean and Overseas Territories",,400193922
DFID,DFID,04/01/2012,IMC Worldwide Ltd,"45,978",Technical and Advisory Services,"Asia, Caribbean and Overseas Territories",,400193952
DFID,DFID,05/01/2012,HAZARD MANAGEMENT CAYMAN ISLANDS,"11,739",Technical and Advisory Services,"Asia, Caribbean and Overseas Territories",,400193961
DFID,DFID,04/01/2012,CARE INTERNATIONAL,"134,580",Technical and Advisory Services,"Asia, Caribbean and Overseas Territories",,400194100
DFID,DFID,04/01/2012,CARE INTERNATIONAL,"134,580",Technical and Advisory Services,"Asia, Caribbean and Overseas Territories",,400194103
DFID,DFID,05/01/2012,CARE INTERNATIONAL,"134,580",Technical and Advisory Services,"Asia, Caribbean and Overseas Territories",,400194107
DFID,DFID,05/01/2012,CARE INTERNATIONAL,"44,860",Technical and Advisory Services,"Asia, Caribbean and Overseas Territories",,400194110
DFID,DFID,05/01/2012,OPTIONS CONSULTANCY SERVICES LIMITED,"39,112",Technical and Advisory Services,"Asia, Caribbean and Overseas Territories",,400194143
DFID,DFID,05/01/2012,OPTIONS CONSULTANCY SERVICES LIMITED,"55,189",Technical and Advisory Services,"Asia, Caribbean and Overseas Territories",,400194145
DFID,DFID,10/01/2012,En Consulting Ltd,"24,662",Technical and Advisory Services,"Asia, Caribbean and Overseas Territories",,400194165
DFID,DFID,05/01/2012,OPTIONS CONSULTANCY SERVICES LIMITED,"48,836",Technical and Advisory Services,"Asia, Caribbean and Overseas Territories",,400194239
DFID,DFID,09/01/2012,OPTIONS CONSULTANCY SERVICES LIMITED,"28,933",Technical and Advisory Services,"Asia, Caribbean and Overseas Territories",,400194246
DFID,DFID,05/01/2012,InterGlobal,"3,180",Technical and Advisory Services,"Asia, Caribbean and Overseas Territories",,400194330
DFID,DFID,05/01/2012,N D Hearnden,"12,279",Technical and Advisory Services,"Asia, Caribbean and Overseas Territories",,400194348
DFID,DFID,06/01/2012,DELOITTE TOUCHE TOHMATSU INDIA PRIVA,"14,665",Technical and Advisory Services,"Asia, Caribbean and Overseas Territories",,400194508
DFID,DFID,06/01/2012,META-DEVELOPMENT LLP,"9,621",Technical and Advisory Services,"Asia, Caribbean and Overseas Territories",,400194548
DFID,DFID,06/01/2012,Crown Agents Govts and Admin,"77,651",Technical and Advisory Services,"Asia, Caribbean and Overseas Territories",,400194559
DFID,DFID,10/01/2012,rreidinger.com,"10,795",Technical and Advisory Services,"Asia, Caribbean and Overseas Territories",,400194561
DFID,DFID,09/01/2012,JOHN WARWICK,"2,535",Technical and Advisory Services,"Asia, Caribbean and Overseas Territories",,400194634
DFID,DFID,09/01/2012,MICHAEL FLINT & PARTNERS,"10,500",Technical and Advisory Services,"Asia, Caribbean and Overseas Territories",,400194727
DFID,DFID,09/01/2012,OXFORD POLICY MANAGEMENT,"16,000",Technical and Advisory Services,"Asia, Caribbean and Overseas Territories",,400194741
DFID,DFID,09/01/2012,Moorewater,"5,924",Technical and Advisory Services,"Asia, Caribbean and Overseas Territories",,400194761
DFID,DFID,10/01/2012,IMC Worldwide Ltd,"2,567,345",Technical and Advisory Services,"Asia, Caribbean and Overseas Territories",,400194839
DFID,DFID,09/01/2012,OXFORD POLICY MANAGEMENT,"2,692",Technical and Advisory Services,"Asia, Caribbean and Overseas Territories",,400194841
DFID,DFID,10/01/2012,Rajendra Niraula,"1,326",Technical and Advisory Services,"Asia, Caribbean and Overseas Territories",,400194881
DFID,DFID,10/01/2012,Infrastructure Professionals Enterprise (P) Ltd.,"14,269",Technical and Advisory Services,"Asia, Caribbean and Overseas Territories",,400195026
DFID,DFID,10/01/2012,Infrastructure Professionals Enterprise (P) Ltd.,"8,217",Technical and Advisory Services,"Asia, Caribbean and Overseas Territories",,400195031
DFID,DFID,10/01/2012,KPMG.,"11,587",Technical and Advisory Services,"Asia, Caribbean and Overseas Territories",,400195045
DFID,DFID,10/01/2012,Mamidi Bharath Bhushan,"2,066",Technical and Advisory Services,"Asia, Caribbean and Overseas Territories",,400195054
DFID,DFID,10/01/2012,BROADLINE COMPUTER SYSTEMS,968,Technical and Advisory Services,"Asia, Caribbean and Overseas Territories",,400195075
DFID,DFID,10/01/2012,DELOITTE TOUCHE TOHMATSU INDIA PRIVA,"24,431",Technical and Advisory Services,"Asia, Caribbean and Overseas Territories",,400195083
DFID,DFID,10/01/2012,DELOITTE TOUCHE TOHMATSU INDIA PRIVA,"42,829",Technical and Advisory Services,"Asia, Caribbean and Overseas Territories",,400195084
DFID,DFID,10/01/2012,CROWN AGENTS (INDIA) PVT. LTD,"44,526",Technical and Advisory Services,"Asia, Caribbean and Overseas Territories",,400195087
DFID,DFID,12/01/2012,COFFEY INTERNATIONAL DEVELOPMENT LTD,"21,453",Technical and Advisory Services,"Asia, Caribbean and Overseas Territories",,400195143
DFID,DFID,10/01/2012,IMC Worldwide Ltd,"155,504",Technical and Advisory Services,"Asia, Caribbean and Overseas Territories",,400195150
DFID,DFID,13/01/2012,CHRISTIAN AID,"47,632",Technical and Advisory Services,"Asia, Caribbean and Overseas Territories",,400195153
DFID,DFID,10/01/2012,COFFEY INTERNATIONAL DEVELOPMENT LTD,"11,781",Technical and Advisory Services,"Asia, Caribbean and Overseas Territories",,400195157
DFID,DFID,12/01/2012,Futures Group International India Pvt Ltd,"156,748",Technical and Advisory Services,"Asia, Caribbean and Overseas Territories",,400195167
DFID,DFID,11/01/2012,Madhushree Banerjee,611,Technical and Advisory Services,"Asia, Caribbean and Overseas Territories",,400195218
DFID,DFID,11/01/2012,Pricewaterhousecoopers Pvt. Ltd.,"6,739",Technical and Advisory Services,"Asia, Caribbean and Overseas Territories",,400195219
DFID,DFID,11/01/2012,IDFC Foundation,"6,421",Technical and Advisory Services,"Asia, Caribbean and Overseas Territories",,400195220
DFID,DFID,12/01/2012,IMC Worldwide Ltd,"26,328",Technical and Advisory Services,"Asia, Caribbean and Overseas Territories",,400195429
DFID,DFID,12/01/2012,SPC MANAGEMENT SERVICES PRIVATE LIMI,"2,257",Technical and Advisory Services,"Asia, Caribbean and Overseas Territories",,400195464
DFID,DFID,12/01/2012,Infrastructure Professionals Enterprise (P) Ltd.,"3,694",Technical and Advisory Services,"Asia, Caribbean and Overseas Territories",,400195465
DFID,DFID,13/01/2012,LE THI THU HIEN,"4,655",Technical and Advisory Services,"Asia, Caribbean and Overseas Territories",,400195566
DFID,DFID,13/01/2012,Coffey International Development (Do not use),"1,920",Technical and Advisory Services,"Asia, Caribbean and Overseas Territories",,400195689
DFID,DFID,13/01/2012,Foreign & Commonwealth Office,"33,279",Technical and Advisory Services,"Asia, Caribbean and Overseas Territories",,400195698
DFID,DFID,13/01/2012,Foreign & Commonwealth Office,"5,383",Technical and Advisory Services,"Asia, Caribbean and Overseas Territories",,400195698
DFID,DFID,13/01/2012,Foreign & Commonwealth Office,"20,012",Technical and Advisory Services,"Asia, Caribbean and Overseas Territories",,400195698
DFID,DFID,13/01/2012,Foreign & Commonwealth Office,"4,824",Technical and Advisory Services,"Asia, Caribbean and Overseas Territories",,400195698
DFID,DFID,13/01/2012,Moorewater,"5,715",Technical and Advisory Services,"Asia, Caribbean and Overseas Territories",,400195705
DFID,DFID,13/01/2012,Foreign & Commonwealth Office,"27,246",Technical and Advisory Services,"Asia, Caribbean and Overseas Territories",,400195714
DFID,DFID,13/01/2012,Foreign & Commonwealth Office,"3,007",Technical and Advisory Services,"Asia, Caribbean and Overseas Territories",,400195714
DFID,DFID,16/01/2012,GHK CONSULTING LTD,"118,283",Technical and Advisory Services,"Asia, Caribbean and Overseas Territories",,400195844
DFID,DFID,16/01/2012,ERNST &  YOUNG PRIVATE LTD,"22,060",Technical and Advisory Services,"Asia, Caribbean and Overseas Territories",,400195847
DFID,DFID,17/01/2012,DELOITTE TOUCHE TOHAMATSU INDIA PRIVATE LTD (DTTIPL),"25,434",Technical and Advisory Services,"Asia, Caribbean and Overseas Territories",,400195850
DFID,DFID,17/01/2012,DELOITTE TOUCHE TOHAMATSU INDIA PRIVATE LTD (DTTIPL),"513,748",Technical and Advisory Services,"Asia, Caribbean and Overseas Territories",,400195851
DFID,DFID,18/01/2012,INFRASTRUCTURE PROFESSIONALS ENTERPRISE,"96,332",Technical and Advisory Services,"Asia, Caribbean and Overseas Territories",,400195898
DFID,DFID,17/01/2012,INFRASTRUCTURE PROFESSIONALS ENTERPRISE,"7,433",Technical and Advisory Services,"Asia, Caribbean and Overseas Territories",,400195899
DFID,DFID,16/01/2012,HLSP LTD,"24,785",Technical and Advisory Services,"Asia, Caribbean and Overseas Territories",,400195907
DFID,DFID,18/01/2012,INFRASTRUCTURE PROFESSIONALS ENTERPRISE,"43,695",Technical and Advisory Services,"Asia, Caribbean and Overseas Territories",,400195910
DFID,DFID,18/01/2012,INFRASTRUCTURE PROFESSIONALS ENTERPRISE,"34,378",Technical and Advisory Services,"Asia, Caribbean and Overseas Territories",,400195912
DFID,DFID,16/01/2012,COFFEY INTERNATIONAL DEVELOPMENT LTD,"6,013",Technical and Advisory Services,"Asia, Caribbean and Overseas Territories",,400195940
DFID,DFID,16/01/2012,ASSOCIATES FOR INTERNATIONAL DEVELOPMENT (AID INC),"36,266",Technical and Advisory Services,"Asia, Caribbean and Overseas Territories",,400195955
DFID,DFID,17/01/2012,CARE INTERNATIONAL,"134,580",Technical and Advisory Services,"Asia, Caribbean and Overseas Territories",,400195958
DFID,DFID,16/01/2012,JOHN WARWICK,"2,836",Technical and Advisory Services,"Asia, Caribbean and Overseas Territories",,400195962
DFID,DFID,17/01/2012,International Resort Consultants Ltd,"3,850",Technical and Advisory Services,"Asia, Caribbean and Overseas Territories",,400195967
DFID,DFID,17/01/2012,International Resort Consultants Ltd,"4,785",Technical and Advisory Services,"Asia, Caribbean and Overseas Territories",,400195968
DFID,DFID,16/01/2012,MAXWELL STAMP PLC,"19,658",Technical and Advisory Services,"Asia, Caribbean and Overseas Territories",,400195993
DFID,DFID,17/01/2012,Foreign & Commonwealth Office,"1,632",Technical and Advisory Services,"Asia, Caribbean and Overseas Territories",,400196153
DFID,DFID,17/01/2012,Foreign & Commonwealth Office,"1,475",Technical and Advisory Services,"Asia, Caribbean and Overseas Territories",,400196153
DFID,DFID,17/01/2012,Foreign & Commonwealth Office,"17,380",Technical and Advisory Services,"Asia, Caribbean and Overseas Territories",,400196153
DFID,DFID,17/01/2012,Foreign & Commonwealth Office,"2,844",Technical and Advisory Services,"Asia, Caribbean and Overseas Territories",,400196153
DFID,DFID,17/01/2012,Foreign & Commonwealth Office,"4,211",Technical and Advisory Services,"Asia, Caribbean and Overseas Territories",,400196153
DFID,DFID,18/01/2012,GHK CONSULTING LTD,"27,777",Technical and Advisory Services,"Asia, Caribbean and Overseas Territories",,400196190
DFID,DFID,18/01/2012,MACRO GRAPHICS PVT. LTD.,"2,200",Technical and Advisory Services,"Asia, Caribbean and Overseas Territories",,400196397
DFID,DFID,18/01/2012,OPTIONS CONSULTANCY SERVICES LIMITED,"44,425",Technical and Advisory Services,"Asia, Caribbean and Overseas Territories",,400196510
DFID,DFID,18/01/2012,CAMBRIDGE EDUCATION LTD,"234,149",Technical and Advisory Services,"Asia, Caribbean and Overseas Territories",,400196517
DFID,DFID,19/01/2012,OXFORD POLICY MANAGEMENT,"35,118",Technical and Advisory Services,"Asia, Caribbean and Overseas Territories",,400196630
DFID,DFID,19/01/2012, International Development UEA,"8,037",Technical and Advisory Services,"Asia, Caribbean and Overseas Territories",,400196713
DFID,DFID,20/01/2012,MAXWELL STAMP PLC,"126,786",Technical and Advisory Services,"Asia, Caribbean and Overseas Territories",,400196794
DFID,DFID,20/01/2012,MAXWELL STAMP PLC,"200,000",Technical and Advisory Services,"Asia, Caribbean and Overseas Territories",,400196795
DFID,DFID,20/01/2012,MAXWELL STAMP PLC,"818,340",Technical and Advisory Services,"Asia, Caribbean and Overseas Territories",,400196795
DFID,DFID,20/01/2012,TURNER & TOWNSEND,"30,620",Technical and Advisory Services,"Asia, Caribbean and Overseas Territories",,400196823
DFID,DFID,23/01/2012,GRM INTERNATIONAL LTD,"257,764",Technical and Advisory Services,"Asia, Caribbean and Overseas Territories",,400196844
DFID,DFID,23/01/2012,ERNST &  YOUNG PRIVATE LTD,"34,392",Technical and Advisory Services,"Asia, Caribbean and Overseas Territories",,400196847
DFID,DFID,26/01/2012,BMB MOTT  MACDONALD,"437,195",Technical and Advisory Services,"Asia, Caribbean and Overseas Territories",,400196889
DFID,DFID,26/01/2012,BMB MOTT  MACDONALD,"79,493",Technical and Advisory Services,"Asia, Caribbean and Overseas Territories",,400196891
DFID,DFID,20/01/2012,Harewelle International Limited.,"146,068",Technical and Advisory Services,"Asia, Caribbean and Overseas Territories",,400196912
DFID,DFID,22/01/2012,Shahina Akter Lubna,"4,834",Technical and Advisory Services,"Asia, Caribbean and Overseas Territories",,400196925
DFID,DFID,23/01/2012,Shahina Akter Lubna,"4,834",Technical and Advisory Services,"Asia, Caribbean and Overseas Territories",,400196975
DFID,DFID,23/01/2012,Foreign & Commonwealth Office,"1,738",Technical and Advisory Services,"Asia, Caribbean and Overseas Territories",,400197019
DFID,DFID,23/01/2012,Foreign & Commonwealth Office,"2,278",Technical and Advisory Services,"Asia, Caribbean and Overseas Territories",,400197019
DFID,DFID,24/01/2012,OPTIONS CONSULTANCY SERVICES LIMITED,"55,189",Technical and Advisory Services,"Asia, Caribbean and Overseas Territories",,400197078
DFID,DFID,23/01/2012,OPTIONS CONSULTANCY SERVICES LIMITED,"38,208",Technical and Advisory Services,"Asia, Caribbean and Overseas Territories",,400197081
DFID,DFID,24/01/2012,OPTIONS CONSULTANCY SERVICES LIMITED,"54,366",Technical and Advisory Services,"Asia, Caribbean and Overseas Territories",,400197084
DFID,DFID,24/01/2012,OPTIONS CONSULTANCY SERVICES LIMITED,"138,389",Technical and Advisory Services,"Asia, Caribbean and Overseas Territories",,400197086
DFID,DFID,23/01/2012,OPTIONS CONSULTANCY SERVICES LIMITED,"38,208",Technical and Advisory Services,"Asia, Caribbean and Overseas Territories",,400197088
DFID,DFID,24/01/2012,OPTIONS CONSULTANCY SERVICES LIMITED,"78,772",Technical and Advisory Services,"Asia, Caribbean and Overseas Territories",,400197089
DFID,DFID,25/01/2012,TURNER & TOWNSEND,"4,820",Technical and Advisory Services,"Asia, Caribbean and Overseas Territories",,400197307
DFID,DFID,24/01/2012,GHK CONSULTING LTD,"12,298",Technical and Advisory Services,"Asia, Caribbean and Overseas Territories",,400197346
DFID,DFID,24/01/2012,GHK CONSULTING LTD,"6,529",Technical and Advisory Services,"Asia, Caribbean and Overseas Territories",,400197346
DFID,DFID,24/01/2012,HTSPE LTD,"6,008",Technical and Advisory Services,"Asia, Caribbean and Overseas Territories",,400197355
DFID,DFID,31/01/2012,SIDBI FOUNDATION,"526,147",Technical and Advisory Services,"Asia, Caribbean and Overseas Territories",,400197819
DFID,DFID,26/01/2012,ADAM SMITH INTERNATIONAL  LTD,"6,371",Technical and Advisory Services,"Asia, Caribbean and Overseas Territories",,400197825
DFID,DFID,30/01/2012,CARE INTERNATIONAL,"44,654",Technical and Advisory Services,"Asia, Caribbean and Overseas Territories",,400197893
DFID,DFID,27/01/2012,CARE INTERNATIONAL,"33,583",Technical and Advisory Services,"Asia, Caribbean and Overseas Territories",,400197895
DFID,DFID,27/01/2012,OPTIONS CONSULTANCY SERVICES LIMITED,"61,351",Technical and Advisory Services,"Asia, Caribbean and Overseas Territories",,400198071
DFID,DFID,27/01/2012,TRIPLE LINE CONSULTING LTD,"20,334",Technical and Advisory Services,"Asia, Caribbean and Overseas Territories",,400198079
DFID,DFID,27/01/2012,ADAM SMITH INTERNATIONAL  LTD,"40,234",Technical and Advisory Services,"Asia, Caribbean and Overseas Territories",,400198121
DFID,DFID,31/01/2012,ERNST &  YOUNG PRIVATE LTD,"31,399",Technical and Advisory Services,"Asia, Caribbean and Overseas Territories",,400198222
DFID,DFID,31/01/2012,ERNST &  YOUNG PRIVATE LTD,"82,725",Technical and Advisory Services,"Asia, Caribbean and Overseas Territories",,400198225
DFID,DFID,31/01/2012,INFRASTRUCTURE PROFESSIONALS ENTERPRISE,"96,332",Technical and Advisory Services,"Asia, Caribbean and Overseas Territories",,400198241
DFID,DFID,30/01/2012,Foreign & Commonwealth Office,"14,441",Technical and Advisory Services,"Asia, Caribbean and Overseas Territories",,400198318
DFID,DFID,30/01/2012,Foreign & Commonwealth Office,"28,286",Technical and Advisory Services,"Asia, Caribbean and Overseas Territories",,400198318
DFID,DFID,30/01/2012,Foreign & Commonwealth Office,"19,783",Technical and Advisory Services,"Asia, Caribbean and Overseas Territories",,400198318
DFID,DFID,30/01/2012,Foreign & Commonwealth Office,"2,138",Technical and Advisory Services,"Asia, Caribbean and Overseas Territories",,400198318
DFID,DFID,30/01/2012,Foreign & Commonwealth Office,"1,676",Technical and Advisory Services,"Asia, Caribbean and Overseas Territories",,400198318
DFID,DFID,09/01/2012,JIM TANBURN & ASSOCIATES LTD,617,Training - Course Fees,"Asia, Caribbean and Overseas Territories",,400194572
DFID,DFID,12/01/2012,NATIONAL SCHOOL OF GOVERNMENT,740,Training - Course Fees,"Asia, Caribbean and Overseas Territories",,400194845
DFID,DFID,13/01/2012,Foreign & Commonwealth Office,"1,028",Training - Course Fees,"Asia, Caribbean and Overseas Territories",,400195698
DFID,DFID,13/01/2012,Foreign & Commonwealth Office,923,Training - Travel & Subsistence,"Asia, Caribbean and Overseas Territories",,400195698
DFID,DFID,17/01/2012,Foreign & Commonwealth Office,827,Training - Travel & Subsistence,"Asia, Caribbean and Overseas Territories",,400196153
DFID,DFID,17/01/2012,Foreign & Commonwealth Office,938,Training - Travel & Subsistence,"Asia, Caribbean and Overseas Territories",,400196153
DFID,DFID,23/01/2012,Foreign & Commonwealth Office,823,Training - Travel & Subsistence,"Asia, Caribbean and Overseas Territories",,400197019
DFID,DFID,23/01/2012,Foreign & Commonwealth Office,659,Training - Travel & Subsistence,"Asia, Caribbean and Overseas Territories",,400197019
DFID,DFID,26/01/2012,ITC LTD - Maurya,621,Training - Travel & Subsistence,"Asia, Caribbean and Overseas Territories",,400197233
DFID,DFID,12/01/2012,Atos IT Solutions and Services Pvt Ltd,"3,739",Training Providers/Facilitation Services,"Asia, Caribbean and Overseas Territories",,400195463
DFID,DFID,13/01/2012,Foreign & Commonwealth Office,560,Hotels - Accommodation only,"Asia, Caribbean and Overseas Territories",,400195714
DFID,DFID,13/01/2012,Foreign & Commonwealth Office,570,Other travel costs,"Asia, Caribbean and Overseas Territories",,400195714
DFID,DFID,17/01/2012,Foreign & Commonwealth Office,539,Air Fares,"Asia, Caribbean and Overseas Territories",,400196153
DFID,DFID,23/01/2012,Nepal Oil Corporation,"1,166",Vehicle Petrol & Oil,"Asia, Caribbean and Overseas Territories",,400196962
DFID,DFID,23/01/2012,Nepal Oil Corporation,628,Vehicle Petrol & Oil,"Asia, Caribbean and Overseas Territories",,400196962
DFID,DFID,31/01/2012,Nepal Oil Corporation,"2,991",Vehicle Petrol & Oil,"Asia, Caribbean and Overseas Territories",,400198375
DFID,DFID,31/01/2012,Nepal Oil Corporation,"1,611",Vehicle Petrol & Oil,"Asia, Caribbean and Overseas Territories",,400198375
DFID,DFID,18/01/2012,QUTAB SERVICE STATION,886,Vehicle Repairs & Maintenance,"Asia, Caribbean and Overseas Territories",,400195834
DFID,DFID,19/01/2012,Asian Development Bank (USA),"454,930",Aid Programme - Voluntary contributions,"Asia, Caribbean and Overseas Territories",,400196528
DFID,DFID,31/01/2012,Bal Krishna Dahal,539,Water charges,"Asia, Caribbean and Overseas Territories",,400198360
DFID,DFID,12/01/2012,Rufus Leonard Ltd,"1,020",Computer hardware maintenance,Business Solutions Division Level,,400195542
DFID,DFID,13/01/2012,Phoenix Software Ltd,"20,442",Computer Software Licenses,Business Solutions Division Level,,400195696
DFID,DFID,04/01/2012,NORTHGATE HR LIMITED,"2,761",Computer software maintenance,Business Solutions Division Level,,400194108
DFID,DFID,11/01/2012,ALLEGIS GROUP LIMITED,"1,800",Computer software maintenance,Business Solutions Division Level,,400195144
DFID,DFID,12/01/2012,Rufus Leonard Ltd,"4,824",Computer software maintenance,Business Solutions Division Level,,400195543
DFID,DFID,13/01/2012,Phoenix Software Ltd,"16,158",Computer software maintenance,Business Solutions Division Level,,400195696
DFID,DFID,17/01/2012,EQUANET LTD,"9,044",Computer software maintenance,Business Solutions Division Level,,400196057
DFID,DFID,23/01/2012,NORTHGATE HR LIMITED,"2,761",Computer software maintenance,Business Solutions Division Level,,400197130
DFID,DFID,26/01/2012,INSIGHT DIRECT (UK) LTD,"7,639",Computer software maintenance,Business Solutions Division Level,,400197758
DFID,DFID,06/01/2012,Foreign & Commonwealth Office,668,Data Network - land lines,Business Solutions Division Level,,400194533
DFID,DFID,12/01/2012,GLOBAL CROSSING (UK) TELECOMMS LTD,516,Data Network - land lines,Business Solutions Division Level,,400195199
DFID,DFID,11/01/2012,Agni Systems Limited,874,Data Network - land lines,Business Solutions Division Level,,400195245
DFID,DFID,13/01/2012,Foreign & Commonwealth Office,"3,169",Data Network - land lines,Business Solutions Division Level,,400195714
DFID,DFID,17/01/2012,Subisu Cable Net Pvt Ltd,724,Data Network - land lines,Business Solutions Division Level,,400196040
DFID,DFID,17/01/2012,Foreign & Commonwealth Office,"1,008",Data Network - land lines,Business Solutions Division Level,,400196153
DFID,DFID,17/01/2012,Foreign & Commonwealth Office,"4,534",Data Network - land lines,Business Solutions Division Level,,400196153
DFID,DFID,17/01/2012,CABLE & WIRELESS COMMUN,"67,464",Data Network - land lines,Business Solutions Division Level,Cable & wireless service rental charges for overseas sites.  Nov 2011,400196160
DFID,DFID,23/01/2012,Foreign & Commonwealth Office,"1,108",Data Network - land lines,Business Solutions Division Level,,400197019
DFID,DFID,26/01/2012,Subisu Cable Net Pvt Ltd,733,Data Network - land lines,Business Solutions Division Level,,400197693
DFID,DFID,06/01/2012,Foreign & Commonwealth Office,565,Data network- remote working,Business Solutions Division Level,,400194543
DFID,DFID,24/01/2012,Suburban Broadband Ltd,"8,104",Data network- remote working,Business Solutions Division Level,,400197191
DFID,DFID,09/01/2012,FCO RECOVERIES UNIT,"535,639",Data Network -Satellite,Business Solutions Division Level,Satellite network costs linking FCO and DFID office networks.  Oct - Dec charges,400194829
DFID,DFID,19/01/2012,VIZADA NETWORKS,"2,225",Data Network -Satellite,Business Solutions Division Level,,400195516
DFID,DFID,13/01/2012,Foreign & Commonwealth Office,"3,860",Data Network -Satellite,Business Solutions Division Level,,400195698
DFID,DFID,17/01/2012,Foreign & Commonwealth Office,"3,860",Data Network -Satellite,Business Solutions Division Level,,400196153
DFID,DFID,30/01/2012,COLT TELECOMMUNICATIONS,"1,125",Data Network -Satellite,Business Solutions Division Level,,400197897
DFID,DFID,31/01/2012,VIZADA NETWORKS,"2,162",Data Network -Satellite,Business Solutions Division Level,,400198120
DFID,DFID,26/01/2012,INSIGHT DIRECT (UK) LTD,"115,200",Hardware - desktop PCs,Business Solutions Division Level,,400197758
DFID,DFID,13/01/2012,DOS Trading Pvt. Ltd.,"2,743",Hardware - networking equipment,Business Solutions Division Level,,400195658
DFID,DFID,13/01/2012,R M B Engineers and Builders Pvt Ltd,"3,715",Hardware - networking equipment,Business Solutions Division Level,,400195660
DFID,DFID,16/01/2012,CSA Waverley,"3,545",Hardware - networking equipment,Business Solutions Division Level,,400195976
DFID,DFID,17/01/2012,CABLE & WIRELESS COMMUN,"46,769",Hardware - networking equipment,Business Solutions Division Level,,400196202
DFID,DFID,17/01/2012,CSA Waverley,"55,957",Hardware - servers & storage,Business Solutions Division Level,,400196255
DFID,DFID,16/01/2012,Corporate Travel Provider,863,Hotels - Accommodation only,Business Solutions Division Level,,6000066
DFID,DFID,23/01/2012,Corporate Travel Provider,507,Hotels - Accommodation only,Business Solutions Division Level,,6000067
DFID,DFID,05/01/2012,TSoL,"1,078",Legal costs,Business Solutions Division Level,,400194142
DFID,DFID,27/01/2012,VODAFONE CORPORATE,520,Mobile telephones & accessories,Business Solutions Division Level,,400197586
DFID,DFID,27/01/2012,VODAFONE CORPORATE,"3,123",Mobile telephones & accessories,Business Solutions Division Level,,400197586
DFID,DFID,27/01/2012,Ghana Telecommunications Company Ltd,"2,856",Mobile telephones & accessories,Business Solutions Division Level,,400198023
DFID,DFID,10/01/2012,NAYATEL (PVT) LTD,558,other information and communication technologies,Business Solutions Division Level,,400194996
DFID,DFID,17/01/2012,NAYATEL (PVT) LTD,563,other information and communication technologies,Business Solutions Division Level,,400196110
DFID,DFID,05/01/2012,FCO SERVICES,"4,560","Repairs, Maint, Alter - Property & Constrct. Services",Business Solutions Division Level,,400193905
DFID,DFID,09/01/2012,Corporate Travel Provider,714,Air fares,Business Solutions Division Level,,6000065
DFID,DFID,09/01/2012,Corporate Travel Provider,610,Air fares,Business Solutions Division Level,,6000065
DFID,DFID,31/01/2012,ITA Travel,612,Air fares,Business Solutions Division Level,,400198492
DFID,DFID,13/01/2012,TNT Express (UK) Ltd,"5,012",Storage & Distribution costs,Business Solutions Division Level,,400195764
DFID,DFID,04/01/2012,OPIN SYSTEMS LIMITED,"3,058",Technical and Advisory Services,Business Solutions Division Level,,400194096
DFID,DFID,04/01/2012,OPIN SYSTEMS LIMITED,"8,229",Technical and Advisory Services,Business Solutions Division Level,,400194096
DFID,DFID,13/01/2012,OPIN SYSTEMS LIMITED,"6,710",Technical and Advisory Services,Business Solutions Division Level,,400195731
DFID,DFID,16/01/2012,OPIN SYSTEMS LIMITED,"8,891",Technical and Advisory Services,Business Solutions Division Level,,400195747
DFID,DFID,18/01/2012,TSoL,584,Technical and Advisory Services,Business Solutions Division Level,,400195971
DFID,DFID,17/01/2012,CABLE & WIRELESS COMMUN,"34,300",Technical and Advisory Services,Business Solutions Division Level,Cable & wireless service rental charges for overseas sites.  Nov 2011,400196179
DFID,DFID,17/01/2012,CABLE & WIRELESS COMMUN,"83,832",Technical and Advisory Services,Business Solutions Division Level,,400196195
DFID,DFID,04/01/2012,FCO SERVICES,"38,100",Telephone Usage & services,Business Solutions Division Level,,400193930
DFID,DFID,05/01/2012,COLT TELECOMMUNICATIONS,"1,125",Telephone Usage & services,Business Solutions Division Level,,400194175
DFID,DFID,10/01/2012,BT BACS PAYMENTS,"1,697",Telephone Usage & services,Business Solutions Division Level,,400194912
DFID,DFID,11/01/2012,Telkom SA Ltd,"1,667",Telephone Usage & services,Business Solutions Division Level,,400195055
DFID,DFID,12/01/2012,KUBE NETWORKS LTD,"2,318",Telephone Usage & services,Business Solutions Division Level,,400195609
DFID,DFID,18/01/2012,CABLE & WIRELESS COMMUN,"1,018",Telephone Usage & services,Business Solutions Division Level,,400195849
DFID,DFID,18/01/2012,CABLE & WIRELESS COMMUN,"15,368",Telephone Usage & services,Business Solutions Division Level,,400195849
DFID,DFID,18/01/2012,CABLE & WIRELESS COMMUN,920,Telephone Usage & services,Business Solutions Division Level,,400195849
DFID,DFID,19/01/2012,NCS GROUP LTD,"6,317",Telephone Usage & services,Business Solutions Division Level,,400196535
DFID,DFID,09/01/2012,THRESHOLDS,"1,500",Training - Course Fees,Business Solutions Division Level,,400194550
DFID,DFID,10/01/2012,Koenig Solutions Pvt. Ltd. ,880,Training Providers/Facilitation Services,Business Solutions Division Level,,400195061
DFID,DFID,10/01/2012,Koenig Solutions Pvt. Ltd. ,880,Training Providers/Facilitation Services,Business Solutions Division Level,,400195064
DFID,DFID,17/01/2012,Foreign & Commonwealth Office,"1,260",Hotels - Accommodation only,Business Solutions Division Level,,400196153
DFID,DFID,24/01/2012,Foreign & Commonwealth Office,"9,744",Technical and Advisory Services,Central Department Division,,400197141
DFID,DFID,05/01/2012,VSO,"1,832,693",Aid Programme - Accountable Grant Payments,Communications Division,,400194381
DFID,DFID,10/01/2012,COMIC RELIEF,"79,524",Aid Programme - Accountable Grant Payments,Communications Division,,400194913
DFID,DFID,17/01/2012,COMMONWEALTH BROADCASTING ASSOCIATIO,"342,764",Aid Programme - Accountable Grant Payments,Communications Division,,400196245
DFID,DFID,25/01/2012,UNIVERSITY OF LONDON INSTIT,"19,864",Aid Programme - Accountable Grant Payments,Communications Division,,400197335
DFID,DFID,26/01/2012,INTERNATIONAL BROADCASTING TRUST,"25,937",Aid Programme - Accountable Grant Payments,Communications Division,,400197638
DFID,DFID,26/01/2012,MALARIA NO MORE UK,"37,825",Aid Programme - Accountable Grant Payments,Communications Division,,400197800
DFID,DFID,26/01/2012,The Ragdoll Foundation,"10,659",Aid Programme - Accountable Grant Payments,Communications Division,,400197824
DFID,DFID,30/01/2012,CENTRAL OFFICE OF INFORMATION,"6,914",Contract & Agency Staff,Communications Division,,400198077
DFID,DFID,06/01/2012,Crown Agents Govts and Admin,"12,697",Aid Programme - Development Awareness Fund payments,Communications Division,,400194496
DFID,DFID,27/01/2012,Crown Agents Govts and Admin,"12,482",Aid Programme - Development Awareness Fund payments,Communications Division,,400198028
DFID,DFID,31/01/2012,Crown Agents Govts and Admin,"169,453",Aid Programme - Development Awareness Fund payments,Communications Division,,400198029
DFID,DFID,27/01/2012,Crown Agents Govts and Admin,"202,626",Aid Programme - Development Awareness Fund payments,Communications Division,,400198030
DFID,DFID,27/01/2012,Crown Agents Govts and Admin,"31,331",Aid Programme - Development Awareness Fund payments,Communications Division,,400198031
DFID,DFID,11/01/2012,COMIC RELIEF,"929,583",Encashment of Promissory Notes,Communications Division,,400195063
DFID,DFID,25/01/2012,TSoL,861,Legal costs,Communications Division,,400197095
DFID,DFID,06/01/2012,COPYPRINT UK LTD,"1,351",Print Services,Communications Division,,400194524
DFID,DFID,09/01/2012,Corporate Travel Provider,516,Air fares,Communications Division,,6000065
DFID,DFID,09/01/2012,Corporate Travel Provider,569,Air fares,Communications Division,,6000065
DFID,DFID,09/01/2012,Corporate Travel Provider,515,Air fares,Communications Division,,6000065
DFID,DFID,09/01/2012,Corporate Travel Provider,601,Air fares,Communications Division,,6000065
DFID,DFID,09/01/2012,Corporate Travel Provider,"1,150",Air fares,Communications Division,,6000065
DFID,DFID,09/01/2012,Corporate Travel Provider,"1,078",Air fares,Communications Division,,6000065
DFID,DFID,04/01/2012,EC GROUP,500,Storage & Distribution costs,Communications Division,,400193757
DFID,DFID,05/01/2012,BRITISH COUNCIL,"4,258",Technical and Advisory Services,Communications Division,,400194112
DFID,DFID,05/01/2012,BRITISH COUNCIL,559,Technical and Advisory Services,Communications Division,,400194112
DFID,DFID,05/01/2012,BRITISH COUNCIL,"2,492",Technical and Advisory Services,Communications Division,,400194112
DFID,DFID,05/01/2012,BRITISH COUNCIL,"12,720",Technical and Advisory Services,Communications Division,,400194113
DFID,DFID,11/01/2012,PANOS PICTURES,999,Technical and Advisory Services,Communications Division,,400194528
DFID,DFID,09/01/2012,KPMG LLP,"5,755",Technical and Advisory Services,Communications Division,,400194667
DFID,DFID,11/01/2012,THE PRESS ASSOCIATION,530,Technical and Advisory Services,Communications Division,,400195034
DFID,DFID,12/01/2012,PANOS PICTURES,999,Technical and Advisory Services,Communications Division,,400195368
DFID,DFID,12/01/2012,Durrants lTD,"1,502",Technical and Advisory Services,Communications Division,,400195400
DFID,DFID,18/01/2012,Durrants lTD,"1,873",Technical and Advisory Services,Communications Division,,400195427
DFID,DFID,16/01/2012,FACTIVA,"1,500",Technical and Advisory Services,Communications Division,,400195915
DFID,DFID,19/01/2012,TRIPLE LINE CONSULTING LTD,"6,855",Technical and Advisory Services,Communications Division,,400195992
DFID,DFID,27/01/2012,BRITISH COUNCIL,"1,553,254",Technical and Advisory Services,Communications Division,,400198110
DFID,DFID,27/01/2012,BRITISH COUNCIL,"647,685",Technical and Advisory Services,Communications Division,,400198110
DFID,DFID,31/01/2012,ALAN PENNY,"2,974",Technical and Advisory Services,Communications Division,,400198562
DFID,DFID,05/01/2012,TSoL,"7,946",Legal costs,Corporate Hub,,400194142
DFID,DFID,18/01/2012,TSoL,"1,346",Legal costs,Corporate Hub,,400195971
DFID,DFID,25/01/2012,TSoL,868,Legal costs,Corporate Hub,,400197095
DFID,DFID,24/01/2012,SCOTLAND OFFICE,"5,020",Operating Lease rental of buildings,Corporate Hub,,400197291
DFID,DFID,23/01/2012,Corporate Travel Provider,609,Air fares,Corporate Hub,,6000067
DFID,DFID,23/01/2012,Corporate Travel Provider,609,Air fares,Corporate Hub,,6000067
DFID,DFID,23/01/2012,Corporate Travel Provider,609,Air fares,Corporate Hub,,6000067
DFID,DFID,12/01/2012,NATIONAL AUDIT OFFICE,"8,936",Technical and Advisory Services,Corporate Hub,,400195500
DFID,DFID,24/01/2012,LLOYDS REGISTER QUALITY ASSURANCE LTD,"15,000",Technical and Advisory Services,Corporate Hub,,400196904
DFID,DFID,20/01/2012,KPMG LLP,"31,830",Technical and Advisory Services,Corporate Hub,,400196915
DFID,DFID,31/01/2012,KPMG LLP,"33,160",Technical and Advisory Services,Corporate Hub,,400198452
DFID,DFID,31/01/2012,KPMG LLP,"58,560",Technical and Advisory Services,Corporate Hub,,400198547
DFID,DFID,17/01/2012,THE SAVE THE CHILDREN FUND,"55,533",Aid Programme - Accountable Grant Payments,East and Central Africa,,400188898
DFID,DFID,10/01/2012,Justice for All-Prison Fellowship Eth,"5,238",Aid Programme - Accountable Grant Payments,East and Central Africa,,400194897
DFID,DFID,19/01/2012, THE RESEARCH FOUNDATION,"209,536",Aid Programme - Accountable Grant Payments,East and Central Africa,,400195437
DFID,DFID,23/01/2012,POPULATION  SERVICES INTERNATIONAL,"1,564,637",Aid Programme - Accountable Grant Payments,East and Central Africa,,400196877
DFID,DFID,26/01/2012,PACT INC,"150,000",Aid Programme - Accountable Grant Payments,East and Central Africa,,400197040
DFID,DFID,31/01/2012,CRANFIELD UNIVERSITY,"139,563",Aid Programme - Accountable Grant Payments,East and Central Africa,,400197642
DFID,DFID,26/01/2012,THE SAVE THE CHILDREN FUND,"200,000",Aid Programme - Accountable Grant Payments,East and Central Africa,,400197881
DFID,DFID,30/01/2012,POPULATION  SERVICES INTERNATIONAL,"1,690,627",Aid Programme - Accountable Grant Payments,East and Central Africa,,400198062
DFID,DFID,31/01/2012,RED R,"387,083",Aid Programme - Accountable Grant Payments,East and Central Africa,,400198486
DFID,DFID,31/01/2012,RED R,"334,733",Aid Programme - Accountable Grant Payments,East and Central Africa,,400198486
DFID,DFID,04/01/2012,RSM Tenon Limited,"10,999",Auditors Remuneration & Expenses - Cash,East and Central Africa,,400193965
DFID,DFID,17/01/2012,HST Chartered Certified Accountants and Authorised Auditors,"17,560",Auditors Remuneration & Expenses - Cash,East and Central Africa,,400196025
DFID,DFID,23/01/2012,Bank of Abyssinia,"1,450",Bank Charges/Services,East and Central Africa,,400197014
DFID,DFID,06/01/2012,Movenpick Royal Palm Hotel,650,"Conferences, Seminars & Meeting/Event Resource",East and Central Africa,,400194291
DFID,DFID,19/01/2012,OVERSEAS DEVELOPMENT INSTITUTE,"9,797",Technical and Advisory Services,East and Central Africa,,400196647
DFID,DFID,19/01/2012,BCD Travel (USD),969,DFID Learning Events,East and Central Africa,,400196609
DFID,DFID,19/01/2012,BCD Travel (USD),903,DFID Learning Events,East and Central Africa,,400196629
DFID,DFID,26/01/2012,African Hoopoe Safaris,607,DFID Learning Events,East and Central Africa,,400197685
DFID,DFID,13/01/2012,Foreign & Commonwealth Office,530,Electricity,East and Central Africa,,400195698
DFID,DFID,13/01/2012,Foreign & Commonwealth Office,679,Electricity,East and Central Africa,,400195714
DFID,DFID,13/01/2012,Foreign & Commonwealth Office,"1,410",Electricity,East and Central Africa,,400195714
DFID,DFID,26/01/2012,ELECTROGAZ,545,Electricity,East and Central Africa,,400196687
DFID,DFID,23/01/2012,Foreign & Commonwealth Office,"1,117",Electricity,East and Central Africa,,400197019
DFID,DFID,23/01/2012,Foreign & Commonwealth Office,795,Electricity,East and Central Africa,,400197019
DFID,DFID,30/01/2012,Foreign & Commonwealth Office,"1,171",Electricity,East and Central Africa,,400198318
DFID,DFID,30/01/2012,Foreign & Commonwealth Office,"2,415",Electricity,East and Central Africa,,400198318
DFID,DFID,31/01/2012,ELECTROGAZ,"4,546",Electricity,East and Central Africa,,400198539
DFID,DFID,13/01/2012,Foreign & Commonwealth Office,702,Entertainment & Hospitality,East and Central Africa,,400195714
DFID,DFID,25/01/2012,MITIE Catering Services Ltd,662,Entertainment & Hospitality,East and Central Africa,,400197267
DFID,DFID,25/01/2012,MITIE Catering Services Ltd,639,Entertainment & Hospitality,East and Central Africa,,400197352
DFID,DFID,13/01/2012,Foreign & Commonwealth Office,"1,331",FCO shared service charges,East and Central Africa,,400195714
DFID,DFID,13/01/2012,Foreign & Commonwealth Office,"3,993",FCO shared service charges,East and Central Africa,,400195714
DFID,DFID,17/01/2012,Foreign & Commonwealth Office,"1,055",FCO shared service charges,East and Central Africa,,400196153
DFID,DFID,23/01/2012,Foreign & Commonwealth Office,"1,603",FCO shared service charges,East and Central Africa,,400197019
DFID,DFID,23/01/2012,Foreign & Commonwealth Office,"4,808",FCO shared service charges,East and Central Africa,,400197019
DFID,DFID,25/01/2012,JMC Umoja House,"6,139",FCO shared service charges,East and Central Africa,,400197154
DFID,DFID,25/01/2012,JMC Umoja House,"2,631",FCO shared service charges,East and Central Africa,,400197154
DFID,DFID,03/01/2012,Amare Aragaw Modern Metal and Wood work Enterprise,"4,431",Furniture & Fittings,East and Central Africa,,400194041
DFID,DFID,05/01/2012,Nowe Investment Company Ltd (USD),"2,063",Furniture & Fittings,East and Central Africa,,400194204
DFID,DFID,13/01/2012,Foreign & Commonwealth Office,"4,226",Furniture & Fittings,East and Central Africa,,400195698
DFID,DFID,13/01/2012,Foreign & Commonwealth Office,"1,295",Furniture & Fittings,East and Central Africa,,400195698
DFID,DFID,13/01/2012,Foreign & Commonwealth Office,662,Furniture & Fittings,East and Central Africa,,400195698
DFID,DFID,13/01/2012,Foreign & Commonwealth Office,790,Furniture & Fittings,East and Central Africa,,400195698
DFID,DFID,13/01/2012,Foreign & Commonwealth Office,"1,199",Furniture & Fittings,East and Central Africa,,400195698
DFID,DFID,13/01/2012,Foreign & Commonwealth Office,"1,174",Furniture & Fittings,East and Central Africa,,400195698
DFID,DFID,13/01/2012,Foreign & Commonwealth Office,780,Furniture & Fittings,East and Central Africa,,400195698
DFID,DFID,13/01/2012,Foreign & Commonwealth Office,"4,226",Furniture & Fittings,East and Central Africa,,400195698
DFID,DFID,13/01/2012,Foreign & Commonwealth Office,"1,038",Furniture & Fittings,East and Central Africa,,400195714
DFID,DFID,13/01/2012,Foreign & Commonwealth Office,"1,038",Furniture & Fittings,East and Central Africa,,400195714
DFID,DFID,13/01/2012,Foreign & Commonwealth Office,"1,153",Furniture & Fittings,East and Central Africa,,400195714
DFID,DFID,16/01/2012,Freedom Electronics,"1,908",Furniture & Fittings,East and Central Africa,,400195791
DFID,DFID,16/01/2012,Nowe Investment Company Ltd (USD),"1,567",Furniture & Fittings,East and Central Africa,,400195792
DFID,DFID,17/01/2012,Foreign & Commonwealth Office,705,Furniture & Fittings,East and Central Africa,,400196153
DFID,DFID,17/01/2012,Foreign & Commonwealth Office,865,Furniture & Fittings,East and Central Africa,,400196153
DFID,DFID,17/01/2012,Foreign & Commonwealth Office,709,Furniture & Fittings,East and Central Africa,,400196153
DFID,DFID,23/01/2012,Foreign & Commonwealth Office,868,Furniture & Fittings,East and Central Africa,,400197019
DFID,DFID,23/01/2012,Foreign & Commonwealth Office,868,Furniture & Fittings,East and Central Africa,,400197019
DFID,DFID,30/01/2012,Crown Agents Govts and Admin,"23,025",Furniture & Fittings,East and Central Africa,,400197882
DFID,DFID,30/01/2012,Foreign & Commonwealth Office,"1,163",Furniture & Fittings,East and Central Africa,,400198318
DFID,DFID,31/01/2012,Architecture Pro Ltd (RW),"1,365",Furniture & Fittings,East and Central Africa,,400198472
DFID,DFID,17/01/2012,University of Nairobi Enterprises & Services Ltd,506,Further Education costs,East and Central Africa,,400195904
DFID,DFID,13/01/2012,Foreign & Commonwealth Office,500,Generators & spares,East and Central Africa,,400195698
DFID,DFID,17/01/2012,Foreign & Commonwealth Office,"7,751",Generators & spares,East and Central Africa,,400196153
DFID,DFID,17/01/2012,Foreign & Commonwealth Office,"1,566",Generators & spares,East and Central Africa,,400196153
DFID,DFID,17/01/2012,Foreign & Commonwealth Office,"15,887",Generators & spares,East and Central Africa,,400196153
DFID,DFID,16/01/2012,Corporate Travel Provider,844,Hotels - Accommodation only,East and Central Africa,,6000066
DFID,DFID,23/01/2012,Corporate Travel Provider,609,Hotels - Accommodation only,East and Central Africa,,6000067
DFID,DFID,23/01/2012,Corporate Travel Provider,930,Hotels - Accommodation only,East and Central Africa,,6000067
DFID,DFID,27/01/2012,Golden Jubilee Ltd,"1,075",Hotels - Accommodation only,East and Central Africa,,400191830
DFID,DFID,11/01/2012,Action Aid  International (Rw),"1,500",Hotels - Accommodation only,East and Central Africa,,400192233
DFID,DFID,27/01/2012,Fairview Hotel,"1,427",Hotels - Accommodation only,East and Central Africa,,400193525
DFID,DFID,11/01/2012,Fairview Hotel,554,Hotels - Accommodation only,East and Central Africa,,400193547
DFID,DFID,05/01/2012,J.H Simex PLC/Intercontinental Hotel,"10,881",Hotels - Accommodation only,East and Central Africa,,400194209
DFID,DFID,09/01/2012,Recipient name withheld,634,Hotels - Accommodation only,East and Central Africa,,400194605
DFID,DFID,11/01/2012,Recipient name withheld,994,Hotels - Accommodation only,East and Central Africa,,400195371
DFID,DFID,16/01/2012,Transcorp Hilton,997,Hotels - Accommodation only,East and Central Africa,,400195544
DFID,DFID,12/01/2012,SORAS,"1,339",Hotels - Accommodation only,East and Central Africa,,400195551
DFID,DFID,12/01/2012,SORAS,"1,339",Hotels - Accommodation only,East and Central Africa,,400195552
DFID,DFID,12/01/2012,SORAS,"1,339",Hotels - Accommodation only,East and Central Africa,,400195553
DFID,DFID,13/01/2012,Foreign & Commonwealth Office,651,Hotels - Accommodation only,East and Central Africa,,400195714
DFID,DFID,17/01/2012,Foreign & Commonwealth Office,503,Hotels - Accommodation only,East and Central Africa,,400196153
DFID,DFID,17/01/2012,Foreign & Commonwealth Office,658,Hotels - Accommodation only,East and Central Africa,,400196153
DFID,DFID,17/01/2012,Foreign & Commonwealth Office,"1,001",Hotels - Accommodation only,East and Central Africa,,400196153
DFID,DFID,19/01/2012,BCD Travel (USD),"2,436",Hotels - Accommodation only,East and Central Africa,,400196629
DFID,DFID,24/01/2012,ITETE Apartment Ltd,"4,434",Hotels - Accommodation only,East and Central Africa,,400197339
DFID,DFID,24/01/2012,ITETE Apartment Ltd,"1,478",Hotels - Accommodation only,East and Central Africa,,400197341
DFID,DFID,31/01/2012,Recipient name withheld,617,Hotels - Accommodation only,East and Central Africa,,400198552
DFID,DFID,05/01/2012,Supplier name withheld,"26,495",Secure Staff accommodation,East and Central Africa,Secure staff accommodation,400194188
DFID,DFID,11/01/2012,Supplier name withheld,"2,448",Secure Staff accommodation,East and Central Africa,,400194709
DFID,DFID,09/01/2012,Supplier name withheld,"9,452",Secure Staff accommodation,East and Central Africa,,400194713
DFID,DFID,11/01/2012,Supplier name withheld,"1,612",Secure Staff accommodation,East and Central Africa,,400195319
DFID,DFID,16/01/2012,Supplier name withheld,"39,258",Secure Staff accommodation,East and Central Africa,Secure staff accommodation,400195505
DFID,DFID,16/01/2012,Supplier name withheld,"39,258",Secure Staff accommodation,East and Central Africa,Secure staff accommodation,400195505
DFID,DFID,13/01/2012,Supplier name withheld,"3,768",Secure Staff accommodation,East and Central Africa,,400195714
DFID,DFID,13/01/2012,Supplier name withheld,"3,768",Secure Staff accommodation,East and Central Africa,,400195714
DFID,DFID,17/01/2012,Supplier name withheld,"2,123",Secure Staff accommodation,East and Central Africa,,400196153
DFID,DFID,17/01/2012,Supplier name withheld,"7,160",Secure Staff accommodation,East and Central Africa,,400196153
DFID,DFID,18/01/2012,Supplier name withheld,"13,575",Secure Staff accommodation,East and Central Africa,,400196287
DFID,DFID,18/01/2012,Supplier name withheld,"9,828",Secure Staff accommodation,East and Central Africa,,400196457
DFID,DFID,19/01/2012,Supplier name withheld,"7,676",Secure Staff accommodation,East and Central Africa,,400196578
DFID,DFID,31/01/2012,THE INTERNATIONAL COMMITTEE OF THE RED CROSS (ICRC),"2,000,000",Aid Programme - Humanitarian Material Relief Assistance and Services,East and Central Africa,,400198438
DFID,DFID,23/01/2012,"EMBASSY OF DENMARK, NAIROBI","149,609",Aid Programme - Joint programme contribution,East and Central Africa,,400196871
DFID,DFID,26/01/2012,Crown Agents Govts and Admin,"1,306",Legal costs,East and Central Africa,,400194173
DFID,DFID,13/01/2012,Foreign & Commonwealth Office,913,Mobile telephones & accessories,East and Central Africa,,400195714
DFID,DFID,13/01/2012,Foreign & Commonwealth Office,800,Mobile telephones & accessories,East and Central Africa,,400195714
DFID,DFID,26/01/2012,VODAFONE CORPORATE,"1,686",Mobile telephones & accessories,East and Central Africa,,400197532
DFID,DFID,26/01/2012,VODAFONE CORPORATE,"1,499",Mobile telephones & accessories,East and Central Africa,,400197532
DFID,DFID,09/01/2012,Jupiter Trading,511,Office Equipment - Purchases,East and Central Africa,,400194725
DFID,DFID,25/01/2012,Mutara Enterprises LTD,"2,939",Office Equipment - Purchases,East and Central Africa,,400197461
DFID,DFID,26/01/2012,Prime Impex Rwanda Ltd,"3,415",Office Equipment - Purchases,East and Central Africa,,400197854
DFID,DFID,11/01/2012,MTN RWANDACELL,642,Office equipment - Rental,East and Central Africa,,400195246
DFID,DFID,16/01/2012,Colour Print (t) Ltd,595,Office Supplies,East and Central Africa,,400195797
DFID,DFID,06/01/2012,MTN Uganda Ltd,657,other information and communication technologies,East and Central Africa,,400193777
DFID,DFID,13/01/2012,Foreign & Commonwealth Office,"1,483",Printer Consumables,East and Central Africa,,400195714
DFID,DFID,12/01/2012,Info Mind Solutions plc,944,Recruitment costs,East and Central Africa,,400195582
DFID,DFID,30/01/2012,CROWN RELOCATIONS  UK,"6,103",Relocation costs,East and Central Africa,,400194419
DFID,DFID,16/01/2012,CROWN RELOCATIONS  UK,"1,750",Relocation costs,East and Central Africa,,400195073
DFID,DFID,16/01/2012,CROWN RELOCATIONS  UK,"5,350",Relocation costs,East and Central Africa,,400195124
DFID,DFID,30/01/2012,CROWN RELOCATIONS  UK,"6,569",Relocation costs,East and Central Africa,,400198033
DFID,DFID,31/01/2012,CROWN RELOCATIONS  UK,"9,914",Relocation costs,East and Central Africa,,400198035
DFID,DFID,05/01/2012,recipient withheld,619,Facilities Management payments,East and Central Africa,,400194248
DFID,DFID,05/01/2012,K.B.M Investments Ltd,678,Facilities Management payments,East and Central Africa,,400194360
DFID,DFID,09/01/2012,Nkurunziza Alpha Prosper,618,Facilities Management payments,East and Central Africa,,400194442
DFID,DFID,11/01/2012,Nkurunziza Alpha Prosper,619,Facilities Management payments,East and Central Africa,,400195027
DFID,DFID,11/01/2012,British High Commission (RW),"2,315",Facilities Management payments,East and Central Africa,,400195273
DFID,DFID,11/01/2012,British High Commission (RW),992,Facilities Management payments,East and Central Africa,,400195273
DFID,DFID,11/01/2012,British High Commission(Tsh),786,Facilities Management payments,East and Central Africa,,400195297
DFID,DFID,16/01/2012,JOTI ENTERPRISES,881,Facilities Management payments,East and Central Africa,,400195650
DFID,DFID,13/01/2012,Foreign & Commonwealth Office,534,Facilities Management payments,East and Central Africa,,400195698
DFID,DFID,16/01/2012,Rato General Traders,"1,326",Facilities Management payments,East and Central Africa,,400195793
DFID,DFID,16/01/2012,British High Commission(Tsh),"2,574",Facilities Management payments,East and Central Africa,,400195807
DFID,DFID,19/01/2012,Tanzania Electric supply company Ltd,"1,007",Facilities Management payments,East and Central Africa,,400196636
DFID,DFID,23/01/2012,Foreign & Commonwealth Office,"4,554",Facilities Management payments,East and Central Africa,,400197019
DFID,DFID,23/01/2012,Foreign & Commonwealth Office,552,Facilities Management payments,East and Central Africa,,400197019
DFID,DFID,23/01/2012,Foreign & Commonwealth Office,"3,036",Facilities Management payments,East and Central Africa,,400197019
DFID,DFID,13/01/2012,Foreign & Commonwealth Office,646,Other Building Costs,East and Central Africa,,400195714
DFID,DFID,10/01/2012,DMS AFRICA,"9,424","Repairs, Maint, Alter - Property & Constrct. Services",East and Central Africa,,400191166
DFID,DFID,10/01/2012,DMS AFRICA,"2,356","Repairs, Maint, Alter - Property & Constrct. Services",East and Central Africa,,400191166
DFID,DFID,03/01/2012,Campbell Project Management Services,640,"Repairs, Maint, Alter - Property & Constrct. Services",East and Central Africa,,400194019
DFID,DFID,11/01/2012,DMS AFRICA,"2,383","Repairs, Maint, Alter - Property & Constrct. Services",East and Central Africa,,400194876
DFID,DFID,11/01/2012,DMS AFRICA,"9,532","Repairs, Maint, Alter - Property & Constrct. Services",East and Central Africa,,400194876
DFID,DFID,13/01/2012,K.S. GANBERT & SONS (HK) LTD.,"3,435","Repairs, Maint, Alter - Property & Constrct. Services",East and Central Africa,,400195399
DFID,DFID,11/01/2012,TURNER & TOWNSEND,"38,540","Repairs, Maint, Alter - Property & Constrct. Services",East and Central Africa,,400195419
DFID,DFID,17/01/2012,Foreign & Commonwealth Office,773,"Repairs, Maint, Alter - Property & Constrct. Services",East and Central Africa,,400196153
DFID,DFID,24/01/2012,FOREIGN AND COMMONWEALTH OFFICE (FCO),"1,436","Repairs, Maint, Alter - Property & Constrct. Services",East and Central Africa,,400196699
DFID,DFID,23/01/2012,SAFECON Electro Mechanical Works PLC,"3,611","Repairs, Maint, Alter - Property & Constrct. Services",East and Central Africa,,400196964
DFID,DFID,23/01/2012,SAFECON Electro Mechanical Works PLC,684,"Repairs, Maint, Alter - Property & Constrct. Services",East and Central Africa,,400196964
DFID,DFID,23/01/2012,Foreign & Commonwealth Office,"1,857","Repairs, Maint, Alter - Property & Constrct. Services",East and Central Africa,,400197019
DFID,DFID,26/01/2012,SAFECON Electro Mechanical Works PLC,"24,901","Repairs, Maint, Alter - Property & Constrct. Services",East and Central Africa,,400197673
DFID,DFID,26/01/2012,COMPUTER POINT,773,"Repairs, Maint, Alter - Property & Constrct. Services",East and Central Africa,,400197831
DFID,DFID,31/01/2012,V. Karibian,641,"Repairs, Maint, Alter - Property & Constrct. Services",East and Central Africa,,400198403
DFID,DFID,31/01/2012,SAFECON Electro Mechanical Works PLC,"23,283","Repairs, Maint, Alter - Property & Constrct. Services",East and Central Africa,,400198409
DFID,DFID,31/01/2012,SAFECON Electro Mechanical Works PLC,"2,070","Repairs, Maint, Alter - Property & Constrct. Services",East and Central Africa,,400198411
DFID,DFID,31/01/2012,TURNER & TOWNSEND,"36,046","Repairs, Maint, Alter - Property & Constrct. Services",East and Central Africa,,400198567
DFID,DFID,13/01/2012,Foreign & Commonwealth Office,576,"Repairs, Maint, Alter - Removal & waste disposal services",East and Central Africa,,400195698
DFID,DFID,13/01/2012,Foreign & Commonwealth Office,"1,247","Repairs, Maint, Alter - Removal & waste disposal services",East and Central Africa,,400195714
DFID,DFID,09/01/2012,Corporate Travel Provider,758,Air fares,East and Central Africa,,6000065
DFID,DFID,09/01/2012,Corporate Travel Provider,558,Air fares,East and Central Africa,,6000065
DFID,DFID,23/01/2012,Corporate Travel Provider,512,Air fares,East and Central Africa,,6000067
DFID,DFID,23/01/2012,Corporate Travel Provider,"1,000",Air fares,East and Central Africa,,6000067
DFID,DFID,23/01/2012,Corporate Travel Provider,"1,140",Air fares,East and Central Africa,,6000067
DFID,DFID,23/01/2012,Corporate Travel Provider,"1,226",Airfares,East and Central Africa,,6000067
DFID,DFID,23/01/2012,Corporate Travel Provider,"1,140",Air fares,East and Central Africa,,6000067
DFID,DFID,23/01/2012,Corporate Travel Provider,913,Air fares,East and Central Africa,,6000067
DFID,DFID,10/01/2012,BCD Travel (USD),"6,173",Air fares,East and Central Africa,,400193615
DFID,DFID,12/01/2012,SATGURU TRAVEL & TOURS SERVICE,765,Air fares,East and Central Africa,,400195587
DFID,DFID,12/01/2012,SATGURU TRAVEL & TOURS SERVICE,995,Air fares,East and Central Africa,,400195591
DFID,DFID,16/01/2012,SATGURU TRAVEL & TOURS SERVICE,743,Air fares,East and Central Africa,,400195929
DFID,DFID,19/01/2012,BCD Travel (USD),"2,031",Air fares,East and Central Africa,,400196609
DFID,DFID,19/01/2012,BCD Travel (USD),"2,389",Air fares,East and Central Africa,,400196609
DFID,DFID,19/01/2012,BCD Travel (USD),973,Air fares,East and Central Africa,,400196609
DFID,DFID,19/01/2012,BCD Travel (USD),"1,034",Air fares,East and Central Africa,,400196629
DFID,DFID,23/01/2012,Foreign & Commonwealth Office,687,Air fares,East and Central Africa,,400197019
DFID,DFID,26/01/2012,Seton,"14,205",Air fares,East and Central Africa,,400197690
DFID,DFID,27/01/2012,Recipient name withheld,692,Air fares,East and Central Africa,,400197946
DFID,DFID,27/01/2012,Recipient name withheld,573,Air fares,East and Central Africa,,400198001
DFID,DFID,04/01/2012,Crown Agents Govts and Admin,"10,807",Technical and Advisory Services,East and Central Africa,,400193437
DFID,DFID,10/01/2012,Vimak Company Limited,"1,751",Technical and Advisory Services,East and Central Africa,,400193523
DFID,DFID,09/01/2012,Golden Jubilee Ltd,808,Technical and Advisory Services,East and Central Africa,,400193975
DFID,DFID,30/01/2012,TERRAFIRMA LDA,"6,243",Technical and Advisory Services,East and Central Africa,,400193997
DFID,DFID,09/01/2012,J.H Simex PLC/Intercontinental Hotel,"1,548",Technical and Advisory Services,East and Central Africa,,400194054
DFID,DFID,11/01/2012,Jody Myrum ,516,Technical and Advisory Services,East and Central Africa,,400194472
DFID,DFID,06/01/2012,Recipient name withheld,"2,108",Technical and Advisory Services,East and Central Africa,,400194482
DFID,DFID,06/01/2012,Recipient name withheld,"3,150",Technical and Advisory Services,East and Central Africa,,400194482
DFID,DFID,10/01/2012,RSM Tenon Limited,"16,842",Technical and Advisory Services,East and Central Africa,,400194519
DFID,DFID,06/01/2012,HTSPE LTD,"32,349",Technical and Advisory Services,East and Central Africa,,400194530
DFID,DFID,09/01/2012,HTSPE LTD,"21,559",Technical and Advisory Services,East and Central Africa,,400194544
DFID,DFID,09/01/2012,Martin Cumpa Castro(Tz)USD,"30,375",Technical and Advisory Services,East and Central Africa,,400194545
DFID,DFID,09/01/2012,OXFORD POLICY MANAGEMENT,"19,936",Technical and Advisory Services,East and Central Africa,,400194631
DFID,DFID,09/01/2012,L & A Bradgate Consulting (Ltd),"12,548",Technical and Advisory Services,East and Central Africa,,400194652
DFID,DFID,09/01/2012,Crown Agents Govts and Admin,"6,257",Technical and Advisory Services,East and Central Africa,,400194671
DFID,DFID,10/01/2012,Crown Agents Govts and Admin,"8,742",Technical and Advisory Services,East and Central Africa,,400194676
DFID,DFID,10/01/2012,Habtu Mengesha Tour Operation,"1,087",Technical and Advisory Services,East and Central Africa,,400194705
DFID,DFID,10/01/2012,Crown Agents Govts and Admin,"8,742",Technical and Advisory Services,East and Central Africa,,400194716
DFID,DFID,09/01/2012,Crown Agents Govts and Admin,"26,852",Technical and Advisory Services,East and Central Africa,,400194722
DFID,DFID,09/01/2012,COFFEY INTERNATIONAL DEVELOPMENT LTD,"25,058",Technical and Advisory Services,East and Central Africa,,400194763
DFID,DFID,09/01/2012,OXFORD POLICY MANAGEMENT,"27,831",Technical and Advisory Services,East and Central Africa,,400194834
DFID,DFID,10/01/2012,Jasper-Semu & Associates (USD),"1,207",Technical and Advisory Services,East and Central Africa,,400194869
DFID,DFID,09/01/2012,HAREWELLE INTERNATIONAL LIMITED,"1,725",Technical and Advisory Services,East and Central Africa,,400194879
DFID,DFID,10/01/2012,HTSPE LTD,"14,990",Technical and Advisory Services,East and Central Africa,,400195163
DFID,DFID,10/01/2012,Elizabeth Ollier (sole trader),"2,039",Technical and Advisory Services,East and Central Africa,,400195176
DFID,DFID,10/01/2012,Elizabeth Ollier (sole trader),"5,400",Technical and Advisory Services,East and Central Africa,,400195180
DFID,DFID,13/01/2012,Crown Agents Govts and Admin,"3,987",Technical and Advisory Services,East and Central Africa,,400195184
DFID,DFID,17/01/2012,COFFEY INTERNATIONAL DEVELOPMENT LTD,"31,350",Technical and Advisory Services,East and Central Africa,,400195263
DFID,DFID,11/01/2012,IMC Worldwide Ltd,"14,550",Technical and Advisory Services,East and Central Africa,,400195380
DFID,DFID,11/01/2012,Crown Agents Govts and Admin,"4,648",Technical and Advisory Services,East and Central Africa,,400195382
DFID,DFID,13/01/2012,COFFEY INTERNATIONAL DEVELOPMENT LTD,"10,749",Technical and Advisory Services,East and Central Africa,,400195490
DFID,DFID,18/01/2012,PricewaterhouseCoopers Rwanda Limited,"4,549",Technical and Advisory Services,East and Central Africa,,400195546
DFID,DFID,12/01/2012,Jean Paul Mugiraneza,"1,070",Technical and Advisory Services,East and Central Africa,,400195547
DFID,DFID,16/01/2012,MS MARY JENNINGS,"20,560",Technical and Advisory Services,East and Central Africa,,400195608
DFID,DFID,13/01/2012,Crown Agents Govts and Admin,"36,632",Technical and Advisory Services,East and Central Africa,,400195719
DFID,DFID,17/01/2012,SARAH VAUGHAN,"28,641",Technical and Advisory Services,East and Central Africa,,400195741
DFID,DFID,13/01/2012,HAREWELLE INTERNATIONAL LIMITED,"8,062",Technical and Advisory Services,East and Central Africa,,400195744
DFID,DFID,16/01/2012,CAPITA HELM CORPORATION LTD,"3,890",Technical and Advisory Services,East and Central Africa,,400195749
DFID,DFID,16/01/2012,Emily Mates,"20,000",Technical and Advisory Services,East and Central Africa,,400195845
DFID,DFID,16/01/2012,THIRD PARTY MONIES,"21,642",Technical and Advisory Services,East and Central Africa,,400195895
DFID,DFID,16/01/2012,D T SMITH,"8,160",Technical and Advisory Services,East and Central Africa,,400195911
DFID,DFID,18/01/2012,HTSPE LTD,"4,650",Technical and Advisory Services,East and Central Africa,,400195948
DFID,DFID,18/01/2012,HTSPE LTD,"10,100",Technical and Advisory Services,East and Central Africa,,400195953
DFID,DFID,18/01/2012,HTSPE LTD,"3,492",Technical and Advisory Services,East and Central Africa,,400195957
DFID,DFID,18/01/2012,HTSPE LTD,"5,075",Technical and Advisory Services,East and Central Africa,,400195957
DFID,DFID,16/01/2012,ADAM SMITH INTERNATIONAL  LTD,"76,896",Technical and Advisory Services,East and Central Africa,,400196004
DFID,DFID,17/01/2012,Francis K.Kiwanga,"3,288",Technical and Advisory Services,East and Central Africa,,400196046
DFID,DFID,18/01/2012,CHARLES KENDALL & PARTNERS LTD,"64,735",Technical and Advisory Services,East and Central Africa,,400196262
DFID,DFID,18/01/2012,AVID Development,579,Technical and Advisory Services,East and Central Africa,,400196334
DFID,DFID,18/01/2012,RACHEL SMITH-GOVONI,"5,637",Technical and Advisory Services,East and Central Africa,,400196498
DFID,DFID,23/01/2012,HTSPE LTD,"28,305",Technical and Advisory Services,East and Central Africa,,400196637
DFID,DFID,23/01/2012,HTSPE LTD,"2,734",Technical and Advisory Services,East and Central Africa,,400196637
DFID,DFID,20/01/2012,Hope F. Kabuchu,"11,657",Technical and Advisory Services,East and Central Africa,,400196651
DFID,DFID,30/01/2012,Centre for Justice Studies and Innovations,"2,801",Technical and Advisory Services,East and Central Africa,,400196690
DFID,DFID,19/01/2012,Jasper - Semu & Associates,"11,695",Technical and Advisory Services,East and Central Africa,,400196692
DFID,DFID,19/01/2012,THIRD PARTY MONIES,"32,389",Technical and Advisory Services,East and Central Africa,,400196694
DFID,DFID,19/01/2012,THIRD PARTY MONIES,"21,593",Technical and Advisory Services,East and Central Africa,,400196698
DFID,DFID,19/01/2012,COFFEY INTERNATIONAL DEVELOPMENT LTD,"9,916",Technical and Advisory Services,East and Central Africa,,400196729
DFID,DFID,24/01/2012,PRICEWATERHOUSECOOPERS,"18,100",Technical and Advisory Services,East and Central Africa,,400196862
DFID,DFID,20/01/2012,COFFEY INTERNATIONAL DEVELOPMENT LTD,"11,978",Technical and Advisory Services,East and Central Africa,,400196873
DFID,DFID,23/01/2012,OXFAM,"105,575",Technical and Advisory Services,East and Central Africa,,400196881
DFID,DFID,20/01/2012,Crown Agents Govts and Admin,"31,700",Technical and Advisory Services,East and Central Africa,,400196885
DFID,DFID,20/01/2012,ADAM SMITH INTERNATIONAL  LTD,"144,318",Technical and Advisory Services,East and Central Africa,,400196893
DFID,DFID,20/01/2012,ADAM SMITH INTERNATIONAL  LTD,"10,659",Technical and Advisory Services,East and Central Africa,,400196894
DFID,DFID,20/01/2012,ADAM SMITH INTERNATIONAL  LTD,"136,411",Technical and Advisory Services,East and Central Africa,,400196895
DFID,DFID,20/01/2012,SAANA CONSULTING LTD,"6,700",Technical and Advisory Services,East and Central Africa,,400196902
DFID,DFID,24/01/2012,Hilton International Hotel,"1,923",Technical and Advisory Services,East and Central Africa,,400197007
DFID,DFID,24/01/2012,Hilton International Hotel,"1,031",Technical and Advisory Services,East and Central Africa,,400197012
DFID,DFID,24/01/2012,251 Communication and Marketing P.L.C,"28,229",Technical and Advisory Services,East and Central Africa,,400197017
DFID,DFID,23/01/2012,Paul Ackroyd Professional Services,"28,998",Technical and Advisory Services,East and Central Africa,,400197096
DFID,DFID,25/01/2012,Camco Advisory Services Tanzania Ltd,"9,116",Technical and Advisory Services,East and Central Africa,,400197156
DFID,DFID,24/01/2012,CRB AFRICA LEGAL,"4,171",Technical and Advisory Services,East and Central Africa,,400197198
DFID,DFID,24/01/2012,HERMITAGE COURT CHAMBERS,"10,528",Technical and Advisory Services,East and Central Africa,,400197221
DFID,DFID,25/01/2012,CAPITA HELM CORPORATION LTD,"7,695",Technical and Advisory Services,East and Central Africa,,400197315
DFID,DFID,25/01/2012,CAROL BRADFORD,"10,874",Technical and Advisory Services,East and Central Africa,,400197506
DFID,DFID,25/01/2012,HTSPE LTD,"6,948",Technical and Advisory Services,East and Central Africa,,400197615
DFID,DFID,30/01/2012,PLW DEVELOPMENT SOLUTIONS LTD,"16,895",Technical and Advisory Services,East and Central Africa,,400197630
DFID,DFID,26/01/2012,Pauline Akinyi Gogo,"1,666",Technical and Advisory Services,East and Central Africa,,400197658
DFID,DFID,26/01/2012,Susan Amlango Aletia,"2,014",Technical and Advisory Services,East and Central Africa,,400197659
DFID,DFID,26/01/2012,Andrew Nyabera Nyagwencha,"1,303",Technical and Advisory Services,East and Central Africa,,400197660
DFID,DFID,26/01/2012,Carree Njeri Ndoka,"1,333",Technical and Advisory Services,East and Central Africa,,400197661
DFID,DFID,26/01/2012,Kairichi Consultancy Limited,"3,407",Technical and Advisory Services,East and Central Africa,,400197662
DFID,DFID,26/01/2012,THIRD PARTY MONIES,"334,880",Technical and Advisory Services,East and Central Africa,,400197766
DFID,DFID,26/01/2012,ATOS CONSULTING LIMITED,"22,300",Technical and Advisory Services,East and Central Africa,,400197899
DFID,DFID,27/01/2012,COFFEY INTERNATIONAL DEVELOPMENT LTD,"8,160",Technical and Advisory Services,East and Central Africa,,400198099
DFID,DFID,27/01/2012,COFFEY INTERNATIONAL DEVELOPMENT LTD,946,Technical and Advisory Services,East and Central Africa,,400198099
DFID,DFID,27/01/2012,vicbutler,"7,140",Technical and Advisory Services,East and Central Africa,,400198104
DFID,DFID,31/01/2012,Sehul Truesaw,"5,300",Technical and Advisory Services,East and Central Africa,,400198295
DFID,DFID,31/01/2012,Jean Paul Mugiraneza,"2,045",Technical and Advisory Services,East and Central Africa,,400198487
DFID,DFID,31/01/2012,ADAM SMITH INTERNATIONAL  LTD,"90,410",Technical and Advisory Services,East and Central Africa,,400198521
DFID,DFID,06/01/2012,MTN Uganda Ltd,665,Telephone Usage & services,East and Central Africa,,400193776
DFID,DFID,12/01/2012,British High Commission (RW),825,Telephone Usage & services,East and Central Africa,,400195014
DFID,DFID,12/01/2012,British High Commission (RW),"1,924",Telephone Usage & services,East and Central Africa,,400195014
DFID,DFID,11/01/2012,MTN RWANDACELL,630,Telephone Usage & services,East and Central Africa,,400195244
DFID,DFID,17/01/2012,VODACOM TANZANIA,778,Telephone Usage & services,East and Central Africa,,400195266
DFID,DFID,17/01/2012,Foreign & Commonwealth Office,"1,077",Telephone Usage & services,East and Central Africa,,400196153
DFID,DFID,09/01/2012,NATIONAL SCHOOL OF GOVERNMENT,"1,570",Training - Course Fees,East and Central Africa,,400193373
DFID,DFID,25/01/2012,       WORLD BANK INSTITUTE,967,Training - Course Fees,East and Central Africa,,400194171
DFID,DFID,12/01/2012,INTRAC,"1,250",Training - Course Fees,East and Central Africa,,400195599
DFID,DFID,20/01/2012,Pilgrims Group,"1,253",Training - Course Fees,East and Central Africa,,400196252
DFID,DFID,27/01/2012,UNIVERSITY OF LONDON,"3,540",Further Education costs,East and Central Africa,,400197808
DFID,DFID,19/01/2012,BCD Travel (USD),"1,757",Training - Travel & Subsistence,East and Central Africa,,400196629
DFID,DFID,05/01/2012,Recipient name withheld,687,Training Providers/Facilitation Services,East and Central Africa,,400194346
DFID,DFID,12/01/2012,Recipient name withheld,"1,230",Training Providers/Facilitation Services,East and Central Africa,,400195501
DFID,DFID,25/01/2012,Centre Culturel Franco-Rwandais (CECFR),531,Training Providers/Facilitation Services,East and Central Africa,,400197465
DFID,DFID,24/01/2012,Hilton International Hotel,638,Travel - Subsistence,East and Central Africa,,400197009
DFID,DFID,17/01/2012,The Investment Climate Facility for Africa,"1,000,000",Aid Programme - Trust Funds contributions,East and Central Africa,,400195970
DFID,DFID,25/01/2012,UNDP CONTRIBUTIONS GBP,"400,000",Aid Programme - Trust Funds contributions,East and Central Africa,,400197617
DFID,DFID,16/01/2012,Recipient name withheld,"6,571",Other travel costs,East and Central Africa,,400195789
DFID,DFID,04/01/2012,British Embassy,"1,776",Vehicle Petrol & Oil,East and Central Africa,,400194043
DFID,DFID,13/01/2012,K.S. GANBERT & SONS (HK) LTD.,"5,182",Vehicle Purchase Costs,East and Central Africa,,400195399
DFID,DFID,11/01/2012,SORAS,687,Vehicle Repairs & Maintenance,East and Central Africa,,400192068
DFID,DFID,20/01/2012,BRITISH HIGH COMMISION KAMPALA,518,Vehicle Repairs & Maintenance,East and Central Africa,,400196150
DFID,DFID,20/01/2012,BRITISH HIGH COMMISION KAMPALA,"1,005",Vehicle Repairs & Maintenance,East and Central Africa,,400196150
DFID,DFID,30/01/2012,Foreign & Commonwealth Office,626,Vehicle Repairs & Maintenance,East and Central Africa,,400198318
DFID,DFID,20/01/2012,UNDP CONTRIBUTIONS ACCOUNT,"324,070",Aid Programme - Voluntary contributions,East and Central Africa,,400196896
DFID,DFID,20/01/2012,UNDP CONTRIBUTIONS ACCOUNT,"87,027",Aid Programme - Voluntary contributions,East and Central Africa,,400196896
DFID,DFID,11/01/2012,CABI,"3,626",Auditors Remuneration & Expenses - Cash,Finance and Corporate Performance Division,,400195333
DFID,DFID,09/01/2012,Unit 4,"3,486",Technical and Advisory Services,Finance and Corporate Performance Division,,400194491
DFID,DFID,10/01/2012,MICHAEL PAGE INTERNATIONAL RECRUITMENT LIMITED,"1,379",Contract & Agency Staff,Finance and Corporate Performance Division,,400194745
DFID,DFID,12/01/2012,Hays Specialist Recruitment Ltd,"1,628",Contract & Agency Staff,Finance and Corporate Performance Division,,400194974
DFID,DFID,10/01/2012,MICHAEL PAGE INTERNATIONAL RECRUITMENT LIMITED,827,Contract & Agency Staff,Finance and Corporate Performance Division,,400195035
DFID,DFID,11/01/2012,Hays Specialist Recruitment Ltd,"1,298",Contract & Agency Staff,Finance and Corporate Performance Division,,400195067
DFID,DFID,11/01/2012,Hays Specialist Recruitment Ltd,"1,628",Contract & Agency Staff,Finance and Corporate Performance Division,,400195070
DFID,DFID,11/01/2012,Hays Specialist Recruitment Ltd,"1,078",Contract & Agency Staff,Finance and Corporate Performance Division,,400195074
DFID,DFID,10/01/2012,Hays Specialist Recruitment Ltd,919,Contract & Agency Staff,Finance and Corporate Performance Division,,400195138
DFID,DFID,11/01/2012,MICHAEL PAGE INTERNATIONAL RECRUITMENT LIMITED,"1,379",Contract & Agency Staff,Finance and Corporate Performance Division,,400195175
DFID,DFID,16/01/2012,Hays Specialist Recruitment Ltd,919,Contract & Agency Staff,Finance and Corporate Performance Division,,400195954
DFID,DFID,19/01/2012,Hays Specialist Recruitment Ltd,551,Contract & Agency Staff,Finance and Corporate Performance Division,,400196688
DFID,DFID,26/01/2012,MICHAEL PAGE INTERNATIONAL RECRUITMENT LIMITED,"1,379",Contract & Agency Staff,Finance and Corporate Performance Division,,400197278
DFID,DFID,25/01/2012,MICHAEL PAGE INTERNATIONAL RECRUITMENT LIMITED,"1,379",Contract & Agency Staff,Finance and Corporate Performance Division,,400197283
DFID,DFID,30/01/2012,Hays Specialist Recruitment Ltd,919,Contract & Agency Staff,Finance and Corporate Performance Division,,400197614
DFID,DFID,31/01/2012,MICHAEL PAGE INTERNATIONAL RECRUITMENT LIMITED,"1,379",Contract & Agency Staff,Finance and Corporate Performance Division,,400198500
DFID,DFID,26/01/2012,Crown Agents Govts and Admin,"8,590",Legal costs,Finance and Corporate Performance Division,,400194173
DFID,DFID,10/01/2012,Crown Agents Govts and Admin,"36,250",Technical and Advisory Services,Finance and Corporate Performance Division,,400195062
DFID,DFID,11/01/2012,OXFORD POLICY MANAGEMENT,"3,060",Technical and Advisory Services,Finance and Corporate Performance Division,,400195302
DFID,DFID,12/01/2012,OXFORD POLICY MANAGEMENT,"3,672",Technical and Advisory Services,Finance and Corporate Performance Division,,400195549
DFID,DFID,12/01/2012,OXFORD POLICY MANAGEMENT,"2,250",Technical and Advisory Services,Finance and Corporate Performance Division,,400195549
DFID,DFID,26/01/2012,OXFORD POLICY MANAGEMENT,"2,550",Technical and Advisory Services,Finance and Corporate Performance Division,,400197486
DFID,DFID,30/01/2012,Foreign & Commonwealth Office,602,Vehicle Hire Charges,Finance and Corporate Performance Division,,400198318
DFID,DFID,30/01/2012,Foreign & Commonwealth Office,752,Vehicle Hire Charges,Finance and Corporate Performance Division,,400198318
DFID,DFID,13/01/2012,Pilgrims Group,"1,503","Conferences, Seminars & Meeting/Event Resource","Human Resources,Security & Facilities Division",,400195594
DFID,DFID,11/01/2012,MICHAEL PAGE INTERNATIONAL RECRUITMENT LIMITED,"1,440",Contract & Agency Staff,"Human Resources,Security & Facilities Division",,400195289
DFID,DFID,11/01/2012,MICHAEL PAGE INTERNATIONAL RECRUITMENT LIMITED,"1,560",Contract & Agency Staff,"Human Resources,Security & Facilities Division",,400195305
DFID,DFID,19/01/2012,MICHAEL PAGE INTERNATIONAL RECRUITMENT LIMITED,"1,056",Contract & Agency Staff,"Human Resources,Security & Facilities Division",,400196668
DFID,DFID,19/01/2012,MANPOWER PLC,"1,887",Contract & Agency Staff,"Human Resources,Security & Facilities Division",,400196709
DFID,DFID,23/01/2012,MANPOWER PLC,"1,401",Contract & Agency Staff,"Human Resources,Security & Facilities Division",,400196751
DFID,DFID,25/01/2012,MICHAEL PAGE INTERNATIONAL RECRUITMENT LIMITED,"1,680",Contract & Agency Staff,"Human Resources,Security & Facilities Division",,400197627
DFID,DFID,13/01/2012,EDF ENERGY,"28,749",Electricity,"Human Resources,Security & Facilities Division",Electricity charges December 2011,400195078
DFID,DFID,10/01/2012,EDF ENERGY,"19,200",Electricity,"Human Resources,Security & Facilities Division",,400195185
DFID,DFID,23/01/2012,MITIE Catering Services Ltd,839,Entertainment & Hospitality,"Human Resources,Security & Facilities Division",,400196094
DFID,DFID,19/01/2012,MITIE Catering Services Ltd,"1,018",Entertainment & Hospitality,"Human Resources,Security & Facilities Division",,400196460
DFID,DFID,27/01/2012,MITIE Catering Services Ltd,"1,651",Entertainment & Hospitality,"Human Resources,Security & Facilities Division",,400196546
DFID,DFID,20/01/2012,MITIE Catering Services Ltd,962,Entertainment & Hospitality,"Human Resources,Security & Facilities Division",,400196744
DFID,DFID,25/01/2012,MITIE Catering Services Ltd,"1,398",Entertainment & Hospitality,"Human Resources,Security & Facilities Division",,400197267
DFID,DFID,25/01/2012,MITIE Catering Services Ltd,846,Entertainment & Hospitality,"Human Resources,Security & Facilities Division",,400197352
DFID,DFID,10/01/2012,J S  SEATING LIMITED,683,Furniture & Fittings,"Human Resources,Security & Facilities Division",,400195057
DFID,DFID,17/01/2012,A&A Business Supplies Ltd,"17,160",Furniture & Fittings,"Human Resources,Security & Facilities Division",,400196192
DFID,DFID,18/01/2012,KINNARPS (UK) LIMITED,"1,179",Furniture & Fittings,"Human Resources,Security & Facilities Division",,400196236
DFID,DFID,19/01/2012,HCS Business Interiors,"7,534",Furniture & Fittings,"Human Resources,Security & Facilities Division",,400196645
DFID,DFID,12/01/2012,CORONA ENERGY,"1,716",Gas,"Human Resources,Security & Facilities Division",,400194642
DFID,DFID,13/01/2012,CORONA ENERGY,"3,037",Gas,"Human Resources,Security & Facilities Division",,400195030
DFID,DFID,12/01/2012,CORONA ENERGY,"1,028",Gas,"Human Resources,Security & Facilities Division",,400195433
DFID,DFID,24/01/2012,CORONA ENERGY,"19,187",Gas,"Human Resources,Security & Facilities Division",,400197118
DFID,DFID,25/01/2012,CORONA ENERGY,"3,007",Gas,"Human Resources,Security & Facilities Division",,400197261
DFID,DFID,24/01/2012,CORONA ENERGY,"1,606",Gas,"Human Resources,Security & Facilities Division",,400197269
DFID,DFID,09/01/2012,Corporate Travel Provider,578,Hotels - Accommodation only,"Human Resources,Security & Facilities Division",,6000065
DFID,DFID,09/01/2012,Corporate Travel Provider,578,Hotels - Accommodation only,"Human Resources,Security & Facilities Division",,6000065
DFID,DFID,16/01/2012,Corporate Travel Provider,711,Hotels - Accommodation only,"Human Resources,Security & Facilities Division",,6000066
DFID,DFID,23/01/2012,Corporate Travel Provider,609,Hotels - Accommodation only,"Human Resources,Security & Facilities Division",,6000067
DFID,DFID,05/01/2012,TSoL,554,Legal costs,"Human Resources,Security & Facilities Division",,400194142
DFID,DFID,05/01/2012,TSoL,"5,087",Legal costs,"Human Resources,Security & Facilities Division",,400194142
DFID,DFID,06/01/2012,TSoL,"6,736",Legal costs,"Human Resources,Security & Facilities Division",,400194156
DFID,DFID,06/01/2012,TSoL,679,Legal costs,"Human Resources,Security & Facilities Division",,400194156
DFID,DFID,18/01/2012,TSoL,"1,009",Legal costs,"Human Resources,Security & Facilities Division",,400195971
DFID,DFID,11/01/2012,ORANGEBOX LTD,848,Office Equipment - Purchases,"Human Resources,Security & Facilities Division",,400195325
DFID,DFID,18/01/2012,POSTURITE (UK) LTD,879,Office Equipment - Purchases,"Human Resources,Security & Facilities Division",,400196511
DFID,DFID,31/01/2012,LLOYDS TSB LEASING LTD,"2,290,684",Operating Lease rental of buildings,"Human Resources,Security & Facilities Division",Quarterly payment of rent,400198425
DFID,DFID,10/01/2012,NCS GROUP LTD,"6,632",Other Building Products,"Human Resources,Security & Facilities Division",,400195106
DFID,DFID,10/01/2012,SIEMENS FINANCIAL SERVICES LTD,954,Other rentals,"Human Resources,Security & Facilities Division",,400195043
DFID,DFID,10/01/2012,PITNEY BOWES (RECREDIT FRANKING M/C),"1,000",Postage Costs,"Human Resources,Security & Facilities Division",,400194988
DFID,DFID,10/01/2012,PITNEY BOWES (RECREDIT FRANKING M/C),"1,000",Postage Costs,"Human Resources,Security & Facilities Division",,400194990
DFID,DFID,10/01/2012,NEOPOST LIMITED,"1,900",Postage Costs,"Human Resources,Security & Facilities Division",,400195118
DFID,DFID,09/01/2012,DISCLOSURE SCOTLAND,625,Recruitment costs,"Human Resources,Security & Facilities Division",,400194526
DFID,DFID,09/01/2012,Penna Barkers,"6,066",Recruitment costs,"Human Resources,Security & Facilities Division",,400194539
DFID,DFID,09/01/2012,Penna Barkers,"1,493",Recruitment costs,"Human Resources,Security & Facilities Division",,400194539
DFID,DFID,16/01/2012,Hays Specialist Recruitment Ltd,"3,517",Recruitment costs,"Human Resources,Security & Facilities Division",,400195937
DFID,DFID,18/01/2012,Hays Specialist Recruitment Ltd,"3,517",Recruitment costs,"Human Resources,Security & Facilities Division",,400196358
DFID,DFID,19/01/2012,Penna Barkers,"5,268",Recruitment costs,"Human Resources,Security & Facilities Division",,400196649
DFID,DFID,24/01/2012,Penna Barkers,"6,074",Recruitment costs,"Human Resources,Security & Facilities Division",,400196914
DFID,DFID,30/01/2012,Penna Barkers,"5,151",Recruitment costs,"Human Resources,Security & Facilities Division",,400198083
DFID,DFID,04/01/2012,MITIE Technical Facilities Management Ltd,"1,435",Other Building Costs,"Human Resources,Security & Facilities Division",,400194111
DFID,DFID,04/01/2012,MITIE Technical Facilities Management Ltd,890,Other Building Costs,"Human Resources,Security & Facilities Division",,400194114
DFID,DFID,04/01/2012,MITIE Technical Facilities Management Ltd,701,Other Building Costs,"Human Resources,Security & Facilities Division",,400194176
DFID,DFID,04/01/2012,MITIE Technical Facilities Management Ltd,"5,959",Other Building Costs,"Human Resources,Security & Facilities Division",,400194177
DFID,DFID,04/01/2012,MITIE Technical Facilities Management Ltd,"1,282",Other Building Costs,"Human Resources,Security & Facilities Division",,400194179
DFID,DFID,17/01/2012,MITIE Technical Facilities Management Ltd,"2,689",Other Building Costs,"Human Resources,Security & Facilities Division",,400196234
DFID,DFID,27/01/2012,MITIE Technical Facilities Management Ltd,"5,272",Other Building Costs,"Human Resources,Security & Facilities Division",,400198060
DFID,DFID,27/01/2012,MITIE Technical Facilities Management Ltd,"1,085",Other Building Costs,"Human Resources,Security & Facilities Division",,400198070
DFID,DFID,27/01/2012,MITIE Technical Facilities Management Ltd,"3,623",Other Building Costs,"Human Resources,Security & Facilities Division",,400198085
DFID,DFID,27/01/2012,MITIE Technical Facilities Management Ltd,995,Other Building Costs,"Human Resources,Security & Facilities Division",,400198089
DFID,DFID,27/01/2012,MITIE Technical Facilities Management Ltd,"2,576",Other Building Costs,"Human Resources,Security & Facilities Division",,400198094
DFID,DFID,27/01/2012,MITIE Technical Facilities Management Ltd,"12,587",Other Building Costs,"Human Resources,Security & Facilities Division",,400198096
DFID,DFID,27/01/2012,MITIE Technical Facilities Management Ltd,"1,315",Other Building Costs,"Human Resources,Security & Facilities Division",,400198102
DFID,DFID,27/01/2012,MITIE Technical Facilities Management Ltd,"5,564",Other Building Costs,"Human Resources,Security & Facilities Division",,400198105
DFID,DFID,30/01/2012,Evolution (Electronic Security Systems) Ltd,"4,534",Other Building Costs,"Human Resources,Security & Facilities Division",,400198107
DFID,DFID,27/01/2012,MITIE Technical Facilities Management Ltd,"1,082",Other Building Costs,"Human Resources,Security & Facilities Division",,400198108
DFID,DFID,27/01/2012,MITIE Technical Facilities Management Ltd,"7,211",Other Building Costs,"Human Resources,Security & Facilities Division",,400198119
DFID,DFID,20/01/2012,MILLER ROOFING LTD,"8,409","Repairs, Maint, Alter - Property & Constrct. Services","Human Resources,Security & Facilities Division",,400196724
DFID,DFID,19/01/2012,BYWATERS,"1,142","Repairs, Maint, Alter - Removal & waste disposal services","Human Resources,Security & Facilities Division",,400190977
DFID,DFID,19/01/2012,BYWATERS,"8,042","Repairs, Maint, Alter - Removal & waste disposal services","Human Resources,Security & Facilities Division",,400190981
DFID,DFID,10/01/2012,SHANKS WASTE MANAGMENT LIMITED,947,"Repairs, Maint, Alter - Removal & waste disposal services","Human Resources,Security & Facilities Division",,400194942
DFID,DFID,19/01/2012,BYWATERS,"1,052","Repairs, Maint, Alter - Removal & waste disposal services","Human Resources,Security & Facilities Division",,400195358
DFID,DFID,19/01/2012,BYWATERS,"1,200","Repairs, Maint, Alter - Removal & waste disposal services","Human Resources,Security & Facilities Division",,400195359
DFID,DFID,18/01/2012,AZCOM BUSINESS SOLUTIONS LIMITED,600,"Repairs, Maint, Alter - Removal & waste disposal services","Human Resources,Security & Facilities Division",,400196522
DFID,DFID,05/01/2012,INCEPTION BUSINESS TECHNOLOGY LTD,913,Reproduction & Printing Materials,"Human Resources,Security & Facilities Division",,400193900
DFID,DFID,04/01/2012,Recipient name withheld,623,Air fares,"Human Resources,Security & Facilities Division",,400194091
DFID,DFID,10/01/2012,Recipient name withheld,"1,294",Air fares,"Human Resources,Security & Facilities Division",,400194695
DFID,DFID,10/01/2012,Recipient name withheld,"1,027",Air fares,"Human Resources,Security & Facilities Division",,400194699
DFID,DFID,11/01/2012,Recipient name withheld,"2,681",Air fares,"Human Resources,Security & Facilities Division",,400194732
DFID,DFID,11/01/2012,Recipient name withheld,829,Air fares,"Human Resources,Security & Facilities Division",,400195029
DFID,DFID,12/01/2012,Recipient name withheld,"1,247",Air fares,"Human Resources,Security & Facilities Division",,400195347
DFID,DFID,12/01/2012,Recipient name withheld,774,Air fares,"Human Resources,Security & Facilities Division",,400195350
DFID,DFID,12/01/2012,Recipient name withheld,"1,106",Air fares,"Human Resources,Security & Facilities Division",,400195354
DFID,DFID,12/01/2012,Recipient name withheld,510,Air fares,"Human Resources,Security & Facilities Division",,400195417
DFID,DFID,13/01/2012,Recipient name withheld,"1,270",Air fares,"Human Resources,Security & Facilities Division",,400195630
DFID,DFID,16/01/2012,Recipient name withheld,"1,372",Air fares,"Human Resources,Security & Facilities Division",,400195681
DFID,DFID,17/01/2012,Recipient name withheld,822,Air fares,"Human Resources,Security & Facilities Division",,400195916
DFID,DFID,18/01/2012,Recipient name withheld,"1,627",Air fares,"Human Resources,Security & Facilities Division",,400196165
DFID,DFID,18/01/2012,Recipient name withheld,787,Air fares,"Human Resources,Security & Facilities Division",,400196178
DFID,DFID,20/01/2012,Recipient name withheld,846,Air fares,"Human Resources,Security & Facilities Division",,400196243
DFID,DFID,20/01/2012,Recipient name withheld,775,Air fares,"Human Resources,Security & Facilities Division",,400196250
DFID,DFID,23/01/2012,Recipient name withheld,"1,030",Air fares,"Human Resources,Security & Facilities Division",,400197039
DFID,DFID,24/01/2012,Recipient name withheld,"1,141",Air fares,"Human Resources,Security & Facilities Division",,400197051
DFID,DFID,09/01/2012,TSoL,"3,594",Technical and Advisory Services,"Human Resources,Security & Facilities Division",,400194180
DFID,DFID,05/01/2012,XAFINITY PAYMASTER,"5,807",Technical and Advisory Services,"Human Resources,Security & Facilities Division",,400194316
DFID,DFID,09/01/2012,DEAF ALERTER PLC,"2,789",Technical and Advisory Services,"Human Resources,Security & Facilities Division",,400194858
DFID,DFID,12/01/2012,BRUTON KNOWLES,553,Technical and Advisory Services,"Human Resources,Security & Facilities Division",,400195304
DFID,DFID,12/01/2012,BRUTON KNOWLES,"1,304",Technical and Advisory Services,"Human Resources,Security & Facilities Division",,400195316
DFID,DFID,25/01/2012,PRICEWATERHOUSECOOPERS,"54,628",Technical and Advisory Services,"Human Resources,Security & Facilities Division",,400195897
DFID,DFID,18/01/2012,Healix International Limited (Fees),"13,952",Technical and Advisory Services,"Human Resources,Security & Facilities Division",,400196540
DFID,DFID,18/01/2012,Healix International Limited (Fees),"13,952",Technical and Advisory Services,"Human Resources,Security & Facilities Division",,400196541
DFID,DFID,26/01/2012,MITIE Catering Services Ltd,534,Technical and Advisory Services,"Human Resources,Security & Facilities Division",,400197729
DFID,DFID,31/01/2012,XAFINITY PAYMASTER,"5,807",Technical and Advisory Services,"Human Resources,Security & Facilities Division",,400198433
DFID,DFID,05/01/2012,NATIONAL SCHOOL OF GOVERNMENT,"1,200",Training - Course Fees,"Human Resources,Security & Facilities Division",,400194320
DFID,DFID,31/01/2012,NATIONAL SCHOOL OF GOVERNMENT,"1,020",Training - Course Fees,"Human Resources,Security & Facilities Division",,400198491
DFID,DFID,25/01/2012,CABINET OFFICE,"13,570",Training Providers/Facilitation Services,"Human Resources,Security & Facilities Division",,400197415
DFID,DFID,25/01/2012,Perpetuity Training Ltd,999,Training Providers/Facilitation Services,"Human Resources,Security & Facilities Division",,400197527
DFID,DFID,25/01/2012,Perpetuity Training Ltd,999,Training Providers/Facilitation Services,"Human Resources,Security & Facilities Division",,400197530
DFID,DFID,25/01/2012,Perpetuity Training Ltd,"1,760",Training Providers/Facilitation Services,"Human Resources,Security & Facilities Division",,400197549
DFID,DFID,25/01/2012,Perpetuity Training Ltd,999,Training Providers/Facilitation Services,"Human Resources,Security & Facilities Division",,400197564
DFID,DFID,25/01/2012,Perpetuity Training Ltd,999,Training Providers/Facilitation Services,"Human Resources,Security & Facilities Division",,400197565
DFID,DFID,25/01/2012,Perpetuity Training Ltd,999,Training Providers/Facilitation Services,"Human Resources,Security & Facilities Division",,400197567
DFID,DFID,17/01/2012,THAMES WATER UTILITIES LTD,"1,037",Water charges,"Human Resources,Security & Facilities Division",,400196256
DFID,DFID,05/01/2012,RSM Tenon Limited,"14,000",Auditors Remuneration & Expenses - Cash,Internal Audit,,400193940
DFID,DFID,20/01/2012,GOVNET COMMUNICATIONS,716,"Conferences, Seminars & Meeting/Event Resource",Internal Audit,,400196857
DFID,DFID,30/01/2012,Pilgrims Group,"1,328",Hostile Environment Training,Internal Audit,,400197797
DFID,DFID,31/01/2012,CONTROL RISKS GROUP,"2,268",Hostile Environment Training,Internal Audit,,400198502
DFID,DFID,16/01/2012,Corporate Travel Provider,"1,071",Hotels - Accommodation only,Internal Audit,,6000066
DFID,DFID,09/01/2012,J.H Simex PLC/Intercontinental Hotel,815,Hotels - Accommodation only,Internal Audit,,400194054
DFID,DFID,23/01/2012,Corporate Travel Provider,524,Air fares,Internal Audit,,6000067
DFID,DFID,23/01/2012,Corporate Travel Provider,524,Air fares,Internal Audit,,6000067
DFID,DFID,20/01/2012,EuroTours Ghana Ltd,813,Air fares,Internal Audit,,400196792
DFID,DFID,10/01/2012,EuroTours Ghana Ltd,"2,146",Training - Course Fees,Internal Audit,,400194918
DFID,DFID,11/01/2012,The Express Travel Group,"1,191",Training - Travel & Subsistence,Internal Audit,,400195340
DFID,DFID,10/01/2012,NATURAL RESOURCES INSTITUTE,"11,090",Aid Programme - Accountable Grant Payments,International Finance Division,,400195119
DFID,DFID,19/01/2012,SCHOOL OF ORIENTAL & AFRICAN STUDIES,"18,916",Aid Programme - Accountable Grant Payments,International Finance Division,,400196520
DFID,DFID,05/01/2012,Crown Agents Govts and Admin,"11,475",Contract & Agency Staff,International Finance Division,,400194169
DFID,DFID,17/01/2012,Crown Agents Govts and Admin,"8,500",Contract & Agency Staff,International Finance Division,,400195963
DFID,DFID,18/01/2012,COMMUNITIES AND LOCAL GOVERNMENT,"1,991",Contract & Agency Staff,International Finance Division,,400196370
DFID,DFID,09/01/2012,AIDSPAN ORG,"200,000",Aid Programme - Core contributions,International Finance Division,,400194516
DFID,DFID,09/01/2012,AFRICAN  DEVELOPMENT BANK GROUP,"10,232,308",Aid Programme - Contributions to Debt Relief,International Finance Division,,400194831
DFID,DFID,10/01/2012,Crown Agents Govts and Admin,"476,648",Aid Programme - Contributions to Debt Relief,International Finance Division,,400194957
DFID,DFID,17/01/2012,Caribbean Development Bank,"8,839,250",Encashment of Promissory Notes,International Finance Division,,400196235
DFID,DFID,19/01/2012,Caribbean Development Bank,"8,839,250",Encashment of Promissory Notes,International Finance Division,,400196420
DFID,DFID,25/01/2012,Asia Development Bank,"3,139,000",Encashment of Promissory Notes,International Finance Division,,400197485
DFID,DFID,25/01/2012,Asia Development Bank,"2,753,488",Encashment of Promissory Notes,International Finance Division,,400197489
DFID,DFID,25/01/2012,Asia Development Bank,"1,654,512",Encashment of Promissory Notes,International Finance Division,,400197492
DFID,DFID,18/01/2012,Pilgrims Group,"1,253",Hostile Environment Training,International Finance Division,,400196140
DFID,DFID,23/01/2012,Corporate Travel Provider,"1,525",Hotels - Accommodation only,International Finance Division,,6000067
DFID,DFID,30/01/2012,Recipient name withheld,615,Hotels - Accommodation only,International Finance Division,,400198268
DFID,DFID,06/01/2012,Supplier name withheld,"5,403",Secure Staff accommodation,International Finance Division,,400194514
DFID,DFID,06/01/2012,Supplier name withheld,"15,438",Secure Staff accommodation,International Finance Division,,400194514
DFID,DFID,06/01/2012,Supplier name withheld,"11,579",Secure Staff accommodation,International Finance Division,,400194514
DFID,DFID,06/01/2012,Supplier name withheld,"11,579",Secure Staff accommodation,International Finance Division,,400194514
DFID,DFID,20/01/2012,Supplier name withheld,"3,030",Secure Staff accommodation,International Finance Division,,400196884
DFID,DFID,05/01/2012,TSoL,"2,649",Legal costs,International Finance Division,,400194142
DFID,DFID,18/01/2012,TSoL,"1,638",Legal costs,International Finance Division,,400195971
DFID,DFID,25/01/2012,TSoL,"1,043",Legal costs,International Finance Division,,400197095
DFID,DFID,24/01/2012,VODAFONE CORPORATE,"1,299",Mobile telephones & accessories,International Finance Division,,400197318
DFID,DFID,25/01/2012,VODAFONE CORPORATE,535,Mobile telephones & accessories,International Finance Division,,400197347
DFID,DFID,09/01/2012,Corporate Travel Provider,"1,174",Air fares,International Finance Division,,6000065
DFID,DFID,16/01/2012,Corporate Travel Provider,840,Air fares,International Finance Division,,6000066
DFID,DFID,23/01/2012,Corporate Travel Provider,"1,575",Air fares,International Finance Division,,6000067
DFID,DFID,23/01/2012,Corporate Travel Provider,689,Air fares,International Finance Division,,6000067
DFID,DFID,23/01/2012,Corporate Travel Provider,665,Air fares,International Finance Division,,6000067
DFID,DFID,23/01/2012,Corporate Travel Provider,780,Air fares,International Finance Division,,6000067
DFID,DFID,23/01/2012,Corporate Travel Provider,"1,759",Air fares,International Finance Division,,6000067
DFID,DFID,05/01/2012,HAWKPOINT,"25,087",Technical and Advisory Services,International Finance Division,Financial advice ACTIS,400194344
DFID,DFID,10/01/2012,EMERGING MARKETS GROUP,"6,400",Technical and Advisory Services,International Finance Division,,400195016
DFID,DFID,17/01/2012,GBRW LIMITED,720,Technical and Advisory Services,International Finance Division,,400196258
DFID,DFID,17/01/2012,GBRW LIMITED,"3,942",Technical and Advisory Services,International Finance Division,,400196258
DFID,DFID,20/01/2012,Nathan Associates London Ltd,"28,985",Technical and Advisory Services,International Finance Division,,400196854
DFID,DFID,25/01/2012,HOME OFFICE,"3,933",Technical and Advisory Services,International Finance Division,,400197306
DFID,DFID,25/01/2012,Herbert Smith LLP,"15,193",Technical and Advisory Services,International Finance Division,,400197537
DFID,DFID,27/01/2012,MAXWELL STAMP PLC,"5,677",Technical and Advisory Services,International Finance Division,,400198075
DFID,DFID,27/01/2012,MAXWELL STAMP PLC,"1,072",Technical and Advisory Services,International Finance Division,,400198075
DFID,DFID,27/01/2012,MAXWELL STAMP PLC,"40,302",Technical and Advisory Services,International Finance Division,,400198078
DFID,DFID,18/01/2012,INSIGHTS LEARNING & DEVELOPMENT LTD,"2,776",Training - Course Fees,International Finance Division,,400196521
DFID,DFID,17/01/2012,BPP LEARNING MEDIA LIMITED,"1,645",Training Providers/Facilitation Services,International Finance Division,,400195973
DFID,DFID,20/01/2012,EAST WEST MANAGEMENT INSTITUTE,"80,713",Aid Programme - Accountable Grant Payments,International Relations Division,,400196463
DFID,DFID,20/01/2012,BLISS TRAVEL LTD,640,"Conferences, Seminars & Meeting/Event Resource",International Relations Division,,400196897
DFID,DFID,30/01/2012,UNESCO (EURO),"8,932,248",Aid Programme - Core contributions,International Relations Division,,400196872
DFID,DFID,30/01/2012,UNESCO (USD),"5,903,043",Aid Programme - Core contributions,International Relations Division,,400196983
DFID,DFID,31/01/2012,COMMONWEALTH SECRETARIAT,"10,216,000",Aid Programme - Core contributions,International Relations Division,,400198414
DFID,DFID,31/01/2012,COMMONWEALTH YOUTH PROGRAMME,"975,820",Aid Programme - Core contributions,International Relations Division,,400198416
DFID,DFID,20/01/2012,Foreign & Commonwealth Office,631,Data Network - land lines,International Relations Division,,400196884
DFID,DFID,20/01/2012,Foreign & Commonwealth Office,729,Entertainment & Hospitality,International Relations Division,,400196884
DFID,DFID,06/01/2012,Foreign & Commonwealth Office,"5,649",FCO shared service charges,International Relations Division,,400194514
DFID,DFID,06/01/2012,Foreign & Commonwealth Office,"2,100",FCO shared service charges,International Relations Division,,400194514
DFID,DFID,06/01/2012,Foreign & Commonwealth Office,"2,085",FCO shared service charges,International Relations Division,,400194543
DFID,DFID,06/01/2012,Foreign & Commonwealth Office,"2,100",FCO shared service charges,International Relations Division,,400194543
DFID,DFID,20/01/2012,Foreign & Commonwealth Office,592,FCO shared service charges,International Relations Division,,400196884
DFID,DFID,20/01/2012,Foreign & Commonwealth Office,"2,266",FCO shared service charges,International Relations Division,,400196884
DFID,DFID,23/01/2012,Corporate Travel Provider,578,Hotels - Accommodation only,International Relations Division,,6000067
DFID,DFID,04/01/2012,Recipient name withheld,581,Hotels - Accommodation only,International Relations Division,,400194159
DFID,DFID,05/01/2012,Recipient name withheld,808,Hotels - Accommodation only,International Relations Division,,400194355
DFID,DFID,06/01/2012,Foreign & Commonwealth Office,"1,490",Hotels - Accommodation only,International Relations Division,,400194514
DFID,DFID,20/01/2012,Foreign & Commonwealth Office,"1,490",Hotels - Accommodation only,International Relations Division,,400196884
DFID,DFID,06/01/2012,Supplier name withheld,"5,693",Secure Staff accommodation,International Relations Division,,400194514
DFID,DFID,06/01/2012,Supplier name withheld,"4,327",Secure Staff accommodation,International Relations Division,,400194543
DFID,DFID,06/01/2012,Supplier name withheld,"1,837",Secure Staff accommodation,International Relations Division,,400194543
DFID,DFID,06/01/2012,Supplier name withheld,918,Secure Staff accommodation,International Relations Division,,400194543
DFID,DFID,06/01/2012,Supplier name withheld,"1,837",Secure Staff accommodation,International Relations Division,,400194543
DFID,DFID,06/01/2012,Supplier name withheld,"2,866",Secure Staff accommodation,International Relations Division,,400194543
DFID,DFID,17/01/2012,Supplier name withheld,886,Secure Staff accommodation,International Relations Division,,400196153
DFID,DFID,24/01/2012,The World Bank (EFO),"123,750",Aid Programme - Joint programme contribution,International Relations Division,,400197329
DFID,DFID,05/01/2012,TSoL,873,Legal costs,International Relations Division,,400194142
DFID,DFID,26/01/2012,VODAFONE CORPORATE,938,Mobile telephones & accessories,International Relations Division,,400197595
DFID,DFID,06/01/2012,Foreign & Commonwealth Office,"17,368",Operating Lease rental of buildings,International Relations Division,,400194543
DFID,DFID,18/01/2012,Foreign & Commonwealth Office,"3,974",Operating Lease rental of buildings,International Relations Division,,400196513
DFID,DFID,18/01/2012,Foreign & Commonwealth Office,"3,974",Operating Lease rental of buildings,International Relations Division,,400196513
DFID,DFID,09/01/2012,Corporate Travel Provider,789,Air fares,International Relations Division,,6000065
DFID,DFID,09/01/2012,Corporate Travel Provider,883,Air fares,International Relations Division,,6000065
DFID,DFID,09/01/2012,Corporate Travel Provider,"3,826",Air fares,International Relations Division,,6000065
DFID,DFID,09/01/2012,Corporate Travel Provider,883,Air fares,International Relations Division,,6000065
DFID,DFID,23/01/2012,Corporate Travel Provider,617,Air fares,International Relations Division,,6000067
DFID,DFID,23/01/2012,Corporate Travel Provider,"1,230",Air fares,International Relations Division,,6000067
DFID,DFID,23/01/2012,Corporate Travel Provider,"1,067",Air fares,International Relations Division,,6000067
DFID,DFID,23/01/2012,Corporate Travel Provider,"1,071",Air fares,International Relations Division,,6000067
DFID,DFID,23/01/2012,Corporate Travel Provider,584,Air fares,International Relations Division,,6000067
DFID,DFID,06/01/2012,Foreign & Commonwealth Office,842,Air fares,International Relations Division,,400194514
DFID,DFID,23/01/2012,Foreign & Commonwealth Office,"2,126",Air fares,International Relations Division,,400197019
DFID,DFID,04/01/2012,COFFEY INTERNATIONAL DEVELOPMENT LTD,"100,923",Technical and Advisory Services,International Relations Division,,400194148
DFID,DFID,06/01/2012,ART OF LIVING,"2,611",Technical and Advisory Services,International Relations Division,,400194388
DFID,DFID,09/01/2012,ART OF LIVING,"1,571",Technical and Advisory Services,International Relations Division,,400194389
DFID,DFID,09/01/2012,ART OF LIVING,700,Technical and Advisory Services,International Relations Division,,400194391
DFID,DFID,06/01/2012,Foreign & Commonwealth Office,"20,484",Technical and Advisory Services,International Relations Division,,400194514
DFID,DFID,11/01/2012,heinrichtegtmeyer,"12,762",Technical and Advisory Services,International Relations Division,,400194517
DFID,DFID,06/01/2012,Foreign & Commonwealth Office,"15,652",Technical and Advisory Services,International Relations Division,,400194543
DFID,DFID,10/01/2012,COFFEY INTERNATIONAL DEVELOPMENT LTD,"86,329",Technical and Advisory Services,International Relations Division,,400195156
DFID,DFID,13/01/2012,ART OF LIVING,707,Technical and Advisory Services,International Relations Division,,400195189
DFID,DFID,13/01/2012,ART OF LIVING,707,Technical and Advisory Services,International Relations Division,,400195191
DFID,DFID,13/01/2012,ART OF LIVING,"2,300",Technical and Advisory Services,International Relations Division,,400195193
DFID,DFID,16/01/2012,Shundi Consulting,"16,217",Technical and Advisory Services,International Relations Division,,400195201
DFID,DFID,13/01/2012,ART OF LIVING,"2,766",Technical and Advisory Services,International Relations Division,,400195706
DFID,DFID,16/01/2012,RACHEL SMITH-GOVONI,"3,222",Technical and Advisory Services,International Relations Division,,400195964
DFID,DFID,18/01/2012,HAREWELLE INTERNATIONAL LIMITED,"1,240",Technical and Advisory Services,International Relations Division,,400196516
DFID,DFID,19/01/2012,PRICEWATERHOUSECOOPERS,"49,059",Technical and Advisory Services,International Relations Division,,400196714
DFID,DFID,20/01/2012,PUBLIC ADMINISTRATION INTERN,"107,886",Technical and Advisory Services,International Relations Division,,400196865
DFID,DFID,20/01/2012,COFFEY INTERNATIONAL DEVELOPMENT LTD,"50,151",Technical and Advisory Services,International Relations Division,,400196875
DFID,DFID,20/01/2012,Foreign & Commonwealth Office,539,Technical and Advisory Services,International Relations Division,,400196884
DFID,DFID,20/01/2012,Foreign & Commonwealth Office,"1,875",Technical and Advisory Services,International Relations Division,,400196884
DFID,DFID,20/01/2012,Foreign & Commonwealth Office,"14,888",Technical and Advisory Services,International Relations Division,,400196884
DFID,DFID,20/01/2012,Foreign & Commonwealth Office,"20,466",Technical and Advisory Services,International Relations Division,,400196884
DFID,DFID,30/01/2012,ART OF LIVING,"2,778",Technical and Advisory Services,International Relations Division,,400197135
DFID,DFID,26/01/2012,ART OF LIVING,"4,347",Technical and Advisory Services,International Relations Division,,400197358
DFID,DFID,25/01/2012,RACHEL SMITH-GOVONI,"3,336",Technical and Advisory Services,International Relations Division,,400197608
DFID,DFID,30/01/2012,COFFEY INTERNATIONAL DEVELOPMENT LTD,"25,422",Technical and Advisory Services,International Relations Division,,400198255
DFID,DFID,12/01/2012,GATEWAY LANGUAGE SERVICES LTD,656,Training - Course Fees,International Relations Division,,400195392
DFID,DFID,13/01/2012,Foreign & Commonwealth Office,635,Training - Course Fees,International Relations Division,,400195698
DFID,DFID,27/01/2012,Recipient name withheld,965,Training - Course Fees,International Relations Division,,400197775
DFID,DFID,04/01/2012, OECD,"367,500",Aid Programme - Voluntary contributions,International Relations Division,,400194153
DFID,DFID,24/01/2012,UNFPA,"5,000,000",Aid Programme - Voluntary contributions,International Relations Division,,400197203
DFID,DFID,25/01/2012,UNDP CONTRIBUTIONS GBP,"2,000,000",Aid Programme - Voluntary contributions,International Relations Division,,400197452
DFID,DFID,31/01/2012,NULL,"1,981",Aid Programme - Accountable Grant Payments,Joint Trade Policy Division,,300027398
DFID,DFID,17/01/2012,INTERNATIONAL INSTITUTE FOR SUSTAINABLE DEVELOPMENT,"83,915",Aid Programme - Accountable Grant Payments,Joint Trade Policy Division,,400195009
DFID,DFID,31/01/2012,THE UNIVERSITY OF MANCHESTER,"179,962",Aid Programme - Accountable Grant Payments,Joint Trade Policy Division,,400198561
DFID,DFID,11/01/2012,Recipient name withheld,"1,073",Hotels - Accommodation only,Joint Trade Policy Division,,400195331
DFID,DFID,18/01/2012,Supplier name withheld,"10,082",Secure Staff accommodation,Joint Trade Policy Division,,400196513
DFID,DFID,04/01/2012,Crown Agents Govts and Admin,"25,900",Technical and Advisory Services,Joint Trade Policy Division,,400193688
DFID,DFID,04/01/2012,Crown Agents Govts and Admin,"104,687",Technical and Advisory Services,Joint Trade Policy Division,,400193713
DFID,DFID,06/01/2012,PANOS PICTURES,881,Technical and Advisory Services,Joint Trade Policy Division,,400194527
DFID,DFID,13/01/2012,Interanalysis Limited,"12,000",Training Providers/Facilitation Services,Joint Trade Policy Division,,400195716
DFID,DFID,16/01/2012,WATERAID,"40,760",Aid Programme - Accountable Grant Payments,Policy Division,,400195813
DFID,DFID,18/01/2012,LIVERPOOL SCHOOL OF TROPICAL MEDICINE,"964,396",Aid Programme - Accountable Grant Payments,Policy Division,,400196399
DFID,DFID,18/01/2012,INTERNATIONAL WATER ASSOCIATION,"50,000",Aid Programme - Accountable Grant Payments,Policy Division,,400196525
DFID,DFID,19/01/2012,GLOBAL WITNESS LTD,"201,869",Aid Programme - Accountable Grant Payments,Policy Division,,400196701
DFID,DFID,20/01/2012,EMERGENCY NUTRITION NETWORK,"17,452",Aid Programme - Accountable Grant Payments,Policy Division,,400196908
DFID,DFID,20/01/2012,EMERGENCY NUTRITION NETWORK,"40,660",Aid Programme - Accountable Grant Payments,Policy Division,,400196910
DFID,DFID,24/01/2012,WATERAID,"140,157",Aid Programme - Accountable Grant Payments,Policy Division,,400197117
DFID,DFID,24/01/2012,BBC Media Action,"3,000,000",Aid Programme - Accountable Grant Payments,Policy Division,,400197231
DFID,DFID,25/01/2012,Institute of Development Studies.,"44,262",Aid Programme - Accountable Grant Payments,Policy Division,,400197494
DFID,DFID,31/01/2012,Global Canopy Programme,"30,293",Aid Programme - Accountable Grant Payments,Policy Division,,400197806
DFID,DFID,27/01/2012,KPMG DEVELOPMENT SERVICE,"1,680,792",Aid Programme - Accountable Grant Payments,Policy Division,,400198074
DFID,DFID,30/01/2012,LIVERPOOL SCHOOL OF TROPICAL MEDICINE,"278,295",Aid Programme - Accountable Grant Payments,Policy Division,,400198226
DFID,DFID,31/01/2012,PATH CHECKING,"129,567",Aid Programme - Accountable Grant Payments,Policy Division,,400198382
DFID,DFID,31/01/2012,GVEP INTERNATIONAL LTD,"120,334",Aid Programme - Accountable Grant Payments,Policy Division,,400198398
DFID,DFID,09/01/2012,Triple Line Consulting Limited,"314,549",Aid Programme - Challenge Fund payments,Policy Division,,400194842
DFID,DFID,27/01/2012,Triple Line Consulting Limited,"409,111",Aid Programme - Challenge Fund payments,Policy Division,,400197353
DFID,DFID,09/01/2012,HTSPE LTD,586,Contract & Agency Staff,Policy Division,,400194873
DFID,DFID,11/01/2012,SOCIAL DEVELOPMENT DIRECT LTD,"10,224",Contract & Agency Staff,Policy Division,,400195182
DFID,DFID,27/01/2012,THE UN OFFICE on DRUGS AND CRIME,"130,000",Aid Programme - Core contributions,Policy Division,,400197781
DFID,DFID,17/01/2012,IBRD (GEF GFATM ETF PNs),"84,000",Encashment of Promissory Notes,Policy Division,,400196230
DFID,DFID,23/01/2012,IBRD (GEF GFATM ETF PNs),"4,816,000",Encashment of Promissory Notes,Policy Division,,400196536
DFID,DFID,18/01/2012,IBRD (GEF GFATM ETF PNs),"5,775,000",Encashment of Promissory Notes,Policy Division,,400196537
DFID,DFID,20/01/2012,MITIE Catering Services Ltd,"1,219",Entertainment & Hospitality,Policy Division,,400196744
DFID,DFID,23/01/2012,Corporate Travel Provider,711,Hotels - Accommodation only,Policy Division,,6000067
DFID,DFID,20/01/2012,Foreign & Commonwealth Office,"1,117",Hotels - Accommodation only,Policy Division,,400196884
DFID,DFID,26/01/2012,Crown Agents Govts and Admin,"2,657",Legal costs,Policy Division,,400194173
DFID,DFID,26/01/2012,Crown Agents Govts and Admin,"3,500",Legal costs,Policy Division,,400194173
DFID,DFID,20/01/2012,VODAFONE CORPORATE,936,Mobile telephones & accessories,Policy Division,,400196848
DFID,DFID,27/01/2012,VODAFONE CORPORATE,681,Mobile telephones & accessories,Policy Division,,400197578
DFID,DFID,27/01/2012,VODAFONE CORPORATE,556,Mobile telephones & accessories,Policy Division,,400197578
DFID,DFID,17/01/2012,Foreign & Commonwealth Office,589,Other Admin Costs,Policy Division,,400196153
DFID,DFID,10/01/2012,GENDER LINKS,"156,216",Aid Programme - Partnership Programme Arrangements,Policy Division,,400193964
DFID,DFID,09/01/2012,AVOCATS SANS FRONTIERES,"362,613",Aid Programme - Partnership Programme Arrangements,Policy Division,,400193993
DFID,DFID,05/01/2012,ARTICLE 19,"135,672",Aid Programme - Partnership Programme Arrangements,Policy Division,,400193994
DFID,DFID,05/01/2012,ACTION ON DISABILITY AND DE,"283,456",Aid Programme - Partnership Programme Arrangements,Policy Division,,400194305
DFID,DFID,06/01/2012,Conciliation Resources,"250,645",Aid Programme - Partnership Programme Arrangements,Policy Division,,400194481
DFID,DFID,09/01/2012,COLLABORATIVE LEARNING PROJECTS,"164,038",Aid Programme - Partnership Programme Arrangements,Policy Division,,400194537
DFID,DFID,06/01/2012,FARM-Africa,"769,568",Aid Programme - Partnership Programme Arrangements,Policy Division,,400194553
DFID,DFID,09/01/2012,OXFAM,"2,792,759",Aid Programme - Partnership Programme Arrangements,Policy Division,,400194658
DFID,DFID,09/01/2012,PEOPLE IN AID LTD,"51,700",Aid Programme - Partnership Programme Arrangements,Policy Division,,400194877
DFID,DFID,13/01/2012,Fairtrade Labelling Organizations International e.V.,"562,500",Aid Programme - Partnership Programme Arrangements,Policy Division,,400195122
DFID,DFID,10/01/2012,CARE INTERNATIONAL,"808,317",Aid Programme - Partnership Programme Arrangements,Policy Division,,400195158
DFID,DFID,10/01/2012,INTERNATIONAL HIV/AIDS ALLIANCE,"972,906",Aid Programme - Partnership Programme Arrangements,Policy Division,,400195162
DFID,DFID,10/01/2012,WWF-UK,"772,589",Aid Programme - Partnership Programme Arrangements,Policy Division,,400195186
DFID,DFID,10/01/2012,ACTIONAID,"1,029,751",Aid Programme - Partnership Programme Arrangements,Policy Division,,400195204
DFID,DFID,11/01/2012,SAFERWORLD,"434,790",Aid Programme - Partnership Programme Arrangements,Policy Division,,400195396
DFID,DFID,12/01/2012,CAFOD,"1,044,000",Aid Programme - Partnership Programme Arrangements,Policy Division,,400195567
DFID,DFID,12/01/2012,MALARIA CONSORTIUM,"667,567",Aid Programme - Partnership Programme Arrangements,Policy Division,,400195635
DFID,DFID,17/01/2012,ETHICAL TRADING INITIATIVE,"100,250",Aid Programme - Partnership Programme Arrangements,Policy Division,,400196050
DFID,DFID,19/01/2012,PENAL REFORM INTERNATIONAL,"270,344",Aid Programme - Partnership Programme Arrangements,Policy Division,,400196634
DFID,DFID,20/01/2012,The Global Alliance for Improved Nutrition,"787,449",Aid Programme - Partnership Programme Arrangements,Policy Division,,400196639
DFID,DFID,25/01/2012,The Asia Foundation (GBP),"611,258",Aid Programme - Partnership Programme Arrangements,Policy Division,,400197106
DFID,DFID,31/01/2012,WATERAID,"1,050,410",Aid Programme - Partnership Programme Arrangements,Policy Division,,400198441
DFID,DFID,18/01/2012,Recipient name withheld,"3,691",Rail Transport,Policy Division,,400196177
DFID,DFID,09/01/2012,Corporate Travel Provider,"1,075",Air fares,Policy Division,,6000065
DFID,DFID,09/01/2012,Corporate Travel Provider,568,Air fares,Policy Division,,6000065
DFID,DFID,09/01/2012,Corporate Travel Provider,"1,374",Air fares,Policy Division,,6000065
DFID,DFID,16/01/2012,Corporate Travel Provider,"1,075",Air fares,Policy Division,,6000066
DFID,DFID,16/01/2012,Corporate Travel Provider,570,Air fares,Policy Division,,6000066
DFID,DFID,23/01/2012,Corporate Travel Provider,"1,640",Air fares,Policy Division,,6000067
DFID,DFID,23/01/2012,Corporate Travel Provider,"1,835",Air fares,Policy Division,,6000067
DFID,DFID,23/01/2012,Corporate Travel Provider,"1,494",Air fares,Policy Division,,6000067
DFID,DFID,23/01/2012,Corporate Travel Provider,989,Air fares,Policy Division,,6000067
DFID,DFID,04/01/2012,Crown Agents Govts and Admin,"67,253",Technical and Advisory Services,Policy Division,,400194160
DFID,DFID,04/01/2012,LONDON SCHOOL OF ECONOMICS AND POLITICAL SCIENCE,"213,620",Technical and Advisory Services,Policy Division,,400194170
DFID,DFID,04/01/2012,LONDON SCHOOL OF ECONOMICS AND POLITICAL SCIENCE,"200,405",Technical and Advisory Services,Policy Division,,400194170
DFID,DFID,06/01/2012,HAREWELLE INTERNATIONAL LIMITED,"13,750",Technical and Advisory Services,Policy Division,,400194520
DFID,DFID,06/01/2012,Resource Consulting Services,"12,500",Technical and Advisory Services,Policy Division,,400194536
DFID,DFID,06/01/2012,Triple Line Consulting Limited,"7,620",Technical and Advisory Services,Policy Division,,400194560
DFID,DFID,06/01/2012,Triple Line Consulting Limited,"38,161",Technical and Advisory Services,Policy Division,,400194560
DFID,DFID,09/01/2012,HAREWELLE INTERNATIONAL LIMITED,"1,875",Technical and Advisory Services,Policy Division,,400194653
DFID,DFID,09/01/2012,HTSPE LTD,"1,471",Technical and Advisory Services,Policy Division,,400194837
DFID,DFID,12/01/2012,ANDREW ROBY,"15,017",Technical and Advisory Services,Policy Division,,400195023
DFID,DFID,13/01/2012,HAREWELLE INTERNATIONAL LIMITED,"3,920",Technical and Advisory Services,Policy Division,,400195165
DFID,DFID,12/01/2012,KPMG Development Services,"49,446",Technical and Advisory Services,Policy Division,,400195327
DFID,DFID,12/01/2012,IMC Worldwide Ltd,"14,735",Technical and Advisory Services,Policy Division,,400195374
DFID,DFID,13/01/2012,Coffey International Development (Do not use),"20,783",Technical and Advisory Services,Policy Division,,400195554
DFID,DFID,13/01/2012,HAREWELLE INTERNATIONAL LIMITED,"4,860",Technical and Advisory Services,Policy Division,,400195569
DFID,DFID,13/01/2012,THE IDL GROUP,"7,165",Technical and Advisory Services,Policy Division,,400195702
DFID,DFID,13/01/2012,THE IDL GROUP,"16,618",Technical and Advisory Services,Policy Division,,400195702
DFID,DFID,13/01/2012,Crown Agents Govts and Admin,"1,219",Technical and Advisory Services,Policy Division,,400195720
DFID,DFID,16/01/2012,Crown Agents Govts and Admin,"58,318",Technical and Advisory Services,Policy Division,,400195726
DFID,DFID,23/01/2012,PRICEWATERHOUSECOOPERS,"75,399",Technical and Advisory Services,Policy Division,,400195738
DFID,DFID,23/01/2012,PRICEWATERHOUSECOOPERS,"31,461",Technical and Advisory Services,Policy Division,,400195738
DFID,DFID,23/01/2012,PRICEWATERHOUSECOOPERS,"50,266",Technical and Advisory Services,Policy Division,,400195738
DFID,DFID,13/01/2012,Courtney Blodgett,"6,325",Technical and Advisory Services,Policy Division,,400195740
DFID,DFID,17/01/2012,TROPICAL HEALTH EDUCATION TRUST,"7,414",Technical and Advisory Services,Policy Division,,400195959
DFID,DFID,16/01/2012,THE IDL GROUP,"30,227",Technical and Advisory Services,Policy Division,,400195975
DFID,DFID,16/01/2012,Responsible Recruitment,"1,100",Technical and Advisory Services,Policy Division,,400195977
DFID,DFID,17/01/2012,TROPICAL HEALTH EDUCATION TRUST,"43,291",Technical and Advisory Services,Policy Division,,400196005
DFID,DFID,17/01/2012,BRITISH COUNCIL,"58,729",Technical and Advisory Services,Policy Division,,400196247
DFID,DFID,18/01/2012,TROPICAL HEALTH EDUCATION TRUST,"77,501",Technical and Advisory Services,Policy Division,,400196254
DFID,DFID,23/01/2012,IMPERIAL COLLEGE LONDON,"148,103",Technical and Advisory Services,Policy Division,,400196260
DFID,DFID,17/01/2012,Crown Agents Govts and Admin,"75,953",Technical and Advisory Services,Policy Division,,400196265
DFID,DFID,17/01/2012,Crown Agents Govts and Admin,"8,058",Technical and Advisory Services,Policy Division,,400196266
DFID,DFID,18/01/2012,Crown Agents Govts and Admin,"44,680",Technical and Advisory Services,Policy Division,,400196363
DFID,DFID,19/01/2012,TRIPLE LINE CONSULTING LTD,"64,138",Technical and Advisory Services,Policy Division,,400196706
DFID,DFID,19/01/2012,COFFEY INTERNATIONAL DEVELOPMENT LTD,"20,782",Technical and Advisory Services,Policy Division,,400196725
DFID,DFID,19/01/2012,Crown Agents Govts and Admin,"6,588",Technical and Advisory Services,Policy Division,,400196727
DFID,DFID,19/01/2012,ASSOCIATION OF COMMONWEALTH UNIVER,"10,616",Technical and Advisory Services,Policy Division,,400196756
DFID,DFID,20/01/2012,Triple Line Consulting Limited,"7,414",Technical and Advisory Services,Policy Division,,400196840
DFID,DFID,24/01/2012,Crown Agents Govts and Admin,"31,405",Technical and Advisory Services,Policy Division,,400197142
DFID,DFID,24/01/2012,HAREWELLE INTERNATIONAL LIMITED,"5,192",Technical and Advisory Services,Policy Division,,400197190
DFID,DFID,24/01/2012,Crown Agents Govts and Admin,925,Technical and Advisory Services,Policy Division,,400197234
DFID,DFID,24/01/2012,COFFEY INTERNATIONAL DEVELOPMENT LTD,"1,866",Technical and Advisory Services,Policy Division,,400197345
DFID,DFID,25/01/2012,Peter O'Hara,"4,125",Technical and Advisory Services,Policy Division,,400197602
DFID,DFID,26/01/2012,HLSP LIMITED,"45,279",Technical and Advisory Services,Policy Division,,400197634
DFID,DFID,26/01/2012,HLSP LIMITED,"6,641",Technical and Advisory Services,Policy Division,,400197634
DFID,DFID,30/01/2012,Crown Agents Govts and Admin,"23,463",Technical and Advisory Services,Policy Division,,400197909
DFID,DFID,27/01/2012,IMPERIAL COLLEGE LONDON,"244,981",Technical and Advisory Services,Policy Division,,400198008
DFID,DFID,27/01/2012,Crown Agents Govts and Admin,"5,689",Technical and Advisory Services,Policy Division,,400198044
DFID,DFID,27/01/2012,Crown Agents Govts and Admin,"1,435",Technical and Advisory Services,Policy Division,,400198046
DFID,DFID,27/01/2012,Crown Agents Govts and Admin,"23,574",Technical and Advisory Services,Policy Division,,400198048
DFID,DFID,30/01/2012,Triple Line Consulting Limited,"36,564",Technical and Advisory Services,Policy Division,,400198073
DFID,DFID,30/01/2012,Triple Line Consulting Limited,"5,233",Technical and Advisory Services,Policy Division,,400198073
DFID,DFID,31/01/2012,LONDON SCHOOL OF ECONOMICS AND POLITICAL SCIENCE,"191,055",Technical and Advisory Services,Policy Division,,400198379
DFID,DFID,31/01/2012,LONDON SCHOOL OF ECONOMICS AND POLITICAL SCIENCE,"96,000",Technical and Advisory Services,Policy Division,,400198379
DFID,DFID,31/01/2012,LONDON SCHOOL OF ECONOMICS AND POLITICAL SCIENCE,"303,689",Technical and Advisory Services,Policy Division,,400198379
DFID,DFID,16/01/2012,Pilgrims Group,501,Training - Travel & Subsistence,Policy Division,,400195627
DFID,DFID,10/01/2012,Hemsley Fraser Group Ltd,999,Training Providers/Facilitation Services,Policy Division,,400195141
DFID,DFID,25/01/2012,Recipient name withheld,815,Training Providers/Facilitation Services,Policy Division,,400197334
DFID,DFID,17/01/2012,IBRD (HSBC)  C/O THE WORLD BANK,"200,000",Aid Programme - Trust Funds contributions,Policy Division,,400196207
DFID,DFID,05/01/2012, OECD,"200,000",Aid Programme - Voluntary contributions,Policy Division,,400194386
DFID,DFID,11/01/2012,   THE WORLD BANK,"110,000",Aid Programme - Voluntary contributions,Policy Division,,400195372
DFID,DFID,10/01/2012,WELLCOME TRUST,"18,730",Aid Programme - Accountable Grant Payments,Research and Evidence Division,,400194325
DFID,DFID,10/01/2012,WELLCOME TRUST,"4,139",Aid Programme - Accountable Grant Payments,Research and Evidence Division,,400194325
DFID,DFID,06/01/2012,Institute for Social and Environmental Transition,"1,590",Aid Programme - Accountable Grant Payments,Research and Evidence Division,,400194331
DFID,DFID,13/01/2012,World Federation of Science Journalists (GBP),"172,008",Aid Programme - Accountable Grant Payments,Research and Evidence Division,,400194861
DFID,DFID,16/01/2012,Institute for Social and Environmental Transition,"10,724",Aid Programme - Accountable Grant Payments,Research and Evidence Division,,400195190
DFID,DFID,17/01/2012,Foreign & Commonwealth Office,"5,757",Aid Programme - Accountable Grant Payments,Research and Evidence Division,,400196153
DFID,DFID,17/01/2012,Foreign & Commonwealth Office,"3,019",Aid Programme - Accountable Grant Payments,Research and Evidence Division,,400196153
DFID,DFID,19/01/2012,INASP,"184,663",Aid Programme - Accountable Grant Payments,Research and Evidence Division,,400196229
DFID,DFID,18/01/2012,THE SAVE THE CHILDREN FUND,"202,035",Aid Programme - Accountable Grant Payments,Research and Evidence Division,,400196379
DFID,DFID,19/01/2012,INTERNATIONAL CENTRE FOR DIARRO,"25,000",Aid Programme - Accountable Grant Payments,Research and Evidence Division,,400196760
DFID,DFID,24/01/2012,OVERSEAS DEVELOPMENT INSTITUTE,"159,619",Aid Programme - Accountable Grant Payments,Research and Evidence Division,,400196901
DFID,DFID,24/01/2012,OVERSEAS DEVELOPMENT INSTITUTE,"173,547",Aid Programme - Accountable Grant Payments,Research and Evidence Division,,400196901
DFID,DFID,23/01/2012,INSTITUTE OF DEV  STUDIES UNIVER,"859,280",Aid Programme - Accountable Grant Payments,Research and Evidence Division,,400197075
DFID,DFID,26/01/2012,THE INSTITUTE OF DEVELOPMENT STUDIE,"487,210",Aid Programme - Accountable Grant Payments,Research and Evidence Division,,400197533
DFID,DFID,05/01/2012,Caromb Consulting SARL,"1,042",Training Providers/Facilitation Services,Research and Evidence Division,,400194123
DFID,DFID,13/01/2012,Recipient name withheld,503,Travel - Subsistence,Research and Evidence Division,,400194503
DFID,DFID,06/01/2012,CORAF/WECARD,"1,250,000",Aid Programme - Core contributions,Research and Evidence Division,,400193773
DFID,DFID,13/01/2012,United Nations Industrial Development Organization,"58,499",Aid Programme - Core contributions,Research and Evidence Division,,400195312
DFID,DFID,13/01/2012,MEDICAL RESEARCH COUNCIL,"257,464",Aid Programme - Core contributions,Research and Evidence Division,,400195718
DFID,DFID,13/01/2012,BIS,"1,500,000",Aid Programme - Core contributions,Research and Evidence Division,,400195737
DFID,DFID,18/01/2012,MEDICAL RESEARCH COUNCIL,"100,449",Aid Programme - Core contributions,Research and Evidence Division,,400196436
DFID,DFID,25/01/2012,FOOD AND AGRICULTURE ORGANISATION,"55,284",Aid Programme - Core contributions,Research and Evidence Division,,400197423
DFID,DFID,25/01/2012,FOOD AND AGRICULTURE ORGANISATION,"55,284",Aid Programme - Core contributions,Research and Evidence Division,,400197423
DFID,DFID,31/01/2012,THE WORLD VEGETABLE CENTER (AVRDC),"340,000",Aid Programme - Core contributions,Research and Evidence Division,,400198111
DFID,DFID,30/01/2012,The World Bank (EFO),"100,000",Aid Programme - Core contributions,Research and Evidence Division,,400198176
DFID,DFID,31/01/2012,CABI,"900,000",Aid Programme - Core contributions,Research and Evidence Division,,400198454
DFID,DFID,18/01/2012,Pilgrims Group,"1,253",Hostile Environment Training,Research and Evidence Division,,400196140
DFID,DFID,16/01/2012,Corporate Travel Provider,"1,530",Hotels - Accommodation only,Research and Evidence Division,,6000066
DFID,DFID,23/01/2012,Corporate Travel Provider,603,Hotels - Accommodation only,Research and Evidence Division,,6000067
DFID,DFID,23/01/2012,Corporate Travel Provider,609,Hotels - Accommodation only,Research and Evidence Division,,6000067
DFID,DFID,04/01/2012,Hilton International Hotel,753,Hotels - Accommodation only,Research and Evidence Division,,400191997
DFID,DFID,10/01/2012,OFFICE FOR NATIONAL STATISTICS,"1,800",Hotels - Accommodation only,Research and Evidence Division,,400194932
DFID,DFID,17/01/2012,Foreign & Commonwealth Office,"1,526",Hotels - Accommodation only,Research and Evidence Division,,400196153
DFID,DFID,24/01/2012,Recipient name withheld,565,Hotels - Accommodation only,Research and Evidence Division,,400197299
DFID,DFID,26/01/2012,Recipient name withheld,767,Hotels - Accommodation only,Research and Evidence Division,,400197923
DFID,DFID,23/01/2012,Supplier name withheld,"7,194",Secure Staff accommodation,Research and Evidence Division,,400197019
DFID,DFID,13/01/2012,INTERNATIONAL DEVELOPMENT RESEARCH CENTRE,"473,590",Aid Programme - Joint programme contribution,Research and Evidence Division,,400194569
DFID,DFID,18/01/2012,MET OFFICE,"267,938",Aid Programme - Joint programme contribution,Research and Evidence Division,,400196539
DFID,DFID,23/01/2012,Foreign & Commonwealth Office,"2,811",Aid Programme - Joint programme contribution,Research and Evidence Division,,400197019
DFID,DFID,31/01/2012,VODAFONE CORPORATE,545,Mobile telephones & accessories,Research and Evidence Division,,400197770
DFID,DFID,31/01/2012,VODAFONE CORPORATE,520,Mobile telephones & accessories,Research and Evidence Division,,400197770
DFID,DFID,10/01/2012,OFFICE FOR NATIONAL STATISTICS,"1,406",Rail Transport,Research and Evidence Division,,400194932
DFID,DFID,20/01/2012,Human Capital for Third Sector,535,Recruitment costs,Research and Evidence Division,,400196770
DFID,DFID,05/01/2012,Research into Results Ltd,"162,797",Research & Development costs,Research and Evidence Division,,400193968
DFID,DFID,05/01/2012,Research into Results Ltd,"373,675",Research & Development costs,Research and Evidence Division,,400193968
DFID,DFID,10/01/2012,Population Council,"127,799",Research & Development costs,Research and Evidence Division,,400194638
DFID,DFID,10/01/2012,Crown Agents Bank,"88,317",Research & Development costs,Research and Evidence Division,,400194934
DFID,DFID,17/01/2012,Natural Environment Research Council,"739,894",Research & Development costs,Research and Evidence Division,,400195032
DFID,DFID,11/01/2012,ENTERPRISE LSE LTD,"11,418",Research & Development costs,Research and Evidence Division,,400195039
DFID,DFID,11/01/2012,ENTERPRISE LSE LTD,"1,800",Research & Development costs,Research and Evidence Division,,400195041
DFID,DFID,12/01/2012,University Of Sussex,"221,673",Research & Development costs,Research and Evidence Division,,400195497
DFID,DFID,12/01/2012,University Of Sussex,"168,615",Research & Development costs,Research and Evidence Division,,400195537
DFID,DFID,13/01/2012,INSTITUTE OF DEVELOPMENT STUDIES,"8,372",Research & Development costs,Research and Evidence Division,,400195733
DFID,DFID,17/01/2012,Institute of Development Studies.,"23,809",Research & Development costs,Research and Evidence Division,,400195839
DFID,DFID,19/01/2012,MEDICAL RESEARCH COUNCIL,"11,331",Research & Development costs,Research and Evidence Division,,400196501
DFID,DFID,24/01/2012,TRL LTD,"33,451",Research & Development costs,Research and Evidence Division,,400197073
DFID,DFID,24/01/2012,PRACTICAL ACTION,"275,170",Research & Development costs,Research and Evidence Division,,400197356
DFID,DFID,25/01/2012,Randolph Luca Bruno,"1,120",Research & Development costs,Research and Evidence Division,,400197496
DFID,DFID,27/01/2012,BANGOR UNIVERSITY,"12,996",Research & Development costs,Research and Evidence Division,,400198027
DFID,DFID,27/01/2012,THE UNIVERSITY OF MANCHESTER,"212,450",Research & Development costs,Research and Evidence Division,,400198112
DFID,DFID,30/01/2012,BRITISH COUNCIL,"558,208",Research & Development costs,Research and Evidence Division,,400198232
DFID,DFID,30/01/2012,BRITISH COUNCIL,"176,188",Research & Development costs,Research and Evidence Division,,400198232
DFID,DFID,31/01/2012,OVERSEAS DEVELOPMENT INSTITUTE,"51,555",Research & Development costs,Research and Evidence Division,,400198302
DFID,DFID,16/01/2012,Corporate Travel Provider,692,Air fares,Research and Evidence Division,,6000066
DFID,DFID,16/01/2012,Corporate Travel Provider,576,Air fares,Research and Evidence Division,,6000066
DFID,DFID,23/01/2012,Corporate Travel Provider,604,Air fares,Research and Evidence Division,,6000067
DFID,DFID,23/01/2012,Corporate Travel Provider,567,Air fares,Research and Evidence Division,,6000067
DFID,DFID,23/01/2012,Corporate Travel Provider,629,Air fares,Research and Evidence Division,,6000067
DFID,DFID,23/01/2012,Corporate Travel Provider,769,Air fares,Research and Evidence Division,,6000067
DFID,DFID,23/01/2012,Corporate Travel Provider,567,Air fares,Research and Evidence Division,,6000067
DFID,DFID,23/01/2012,Corporate Travel Provider,879,Air fares,Research and Evidence Division,,6000067
DFID,DFID,23/01/2012,Corporate Travel Provider,560,Air fares,Research and Evidence Division,,6000067
DFID,DFID,23/01/2012,Corporate Travel Provider,611,Air fares,Research and Evidence Division,,6000067
DFID,DFID,23/01/2012,Corporate Travel Provider,668,Air fares,Research and Evidence Division,,6000067
DFID,DFID,19/01/2012,ECONOMIST INTELLIGENCE UNIT LTD,"10,188",Subscriptions,Research and Evidence Division,,400196641
DFID,DFID,19/01/2012,OXFORD UNIVERSITY PRESS (JOURNALS),"3,310",Subscriptions,Research and Evidence Division,,400196686
DFID,DFID,26/01/2012,INTERNATIONAL MONETARY FUND,"1,107",Subscriptions,Research and Evidence Division,,400197557
DFID,DFID,05/01/2012,CfBT,"23,000",Technical and Advisory Services,Research and Evidence Division,,400193631
DFID,DFID,04/01/2012,UNIVERSITY OF ABERDEEN,"20,509",Technical and Advisory Services,Research and Evidence Division,,400193944
DFID,DFID,04/01/2012,LMC INTERNATIONAL LTD,"46,200",Technical and Advisory Services,Research and Evidence Division,,400193954
DFID,DFID,13/01/2012,Crown Agents Govts and Admin,"9,282",Technical and Advisory Services,Research and Evidence Division,,400194512
DFID,DFID,09/01/2012,HAREWELLE INTERNATIONAL LIMITED,"1,875",Technical and Advisory Services,Research and Evidence Division,,400194653
DFID,DFID,09/01/2012,HAREWELLE INTERNATIONAL LIMITED,"3,600",Technical and Advisory Services,Research and Evidence Division,,400194750
DFID,DFID,16/01/2012,CfBT,"143,811",Technical and Advisory Services,Research and Evidence Division,,400195493
DFID,DFID,12/01/2012,IIED ,"116,064",Technical and Advisory Services,Research and Evidence Division,,400195555
DFID,DFID,12/01/2012,LIVERPOOL SCHOOL OF TROPICAL MEDICINE,"1,926",Technical and Advisory Services,Research and Evidence Division,,400195565
DFID,DFID,16/01/2012,HTSPE LTD,"1,800",Technical and Advisory Services,Research and Evidence Division,,400195980
DFID,DFID,24/01/2012,INSTITUTE OF DEVELOPMENT STUDIES,"6,484",Technical and Advisory Services,Research and Evidence Division,,400196152
DFID,DFID,17/01/2012,Foreign & Commonwealth Office,"9,146",Technical and Advisory Services,Research and Evidence Division,,400196153
DFID,DFID,17/01/2012,Foreign & Commonwealth Office,"1,208",Technical and Advisory Services,Research and Evidence Division,,400196153
DFID,DFID,17/01/2012,Foreign & Commonwealth Office,585,Technical and Advisory Services,Research and Evidence Division,,400196153
DFID,DFID,17/01/2012,Foreign & Commonwealth Office,"2,131",Technical and Advisory Services,Research and Evidence Division,,400196153
DFID,DFID,17/01/2012,Foreign & Commonwealth Office,"4,372",Technical and Advisory Services,Research and Evidence Division,,400196153
DFID,DFID,20/01/2012,LONDON SCHOOL OF HYGIENE AND TR,"494,107",Technical and Advisory Services,Research and Evidence Division,,400196867
DFID,DFID,23/01/2012,Foreign & Commonwealth Office,"9,146",Technical and Advisory Services,Research and Evidence Division,,400197019
DFID,DFID,23/01/2012,Foreign & Commonwealth Office,"1,913",Technical and Advisory Services,Research and Evidence Division,,400197019
DFID,DFID,23/01/2012,Foreign & Commonwealth Office,"4,534",Technical and Advisory Services,Research and Evidence Division,,400197019
DFID,DFID,23/01/2012,Foreign & Commonwealth Office,504,Technical and Advisory Services,Research and Evidence Division,,400197019
DFID,DFID,23/01/2012,CAB INTERNATIONAL,"46,076",Technical and Advisory Services,Research and Evidence Division,,400197076
DFID,DFID,27/01/2012,UNIVERSITY OF BIRMINGHAM,"18,000",Technical and Advisory Services,Research and Evidence Division,,400197098
DFID,DFID,24/01/2012,HTSPE LTD,"6,607",Technical and Advisory Services,Research and Evidence Division,,400197367
DFID,DFID,30/01/2012,PATRICK JAMES NOLEN,"2,312",Technical and Advisory Services,Research and Evidence Division,,400198283
DFID,DFID,30/01/2012,Foreign & Commonwealth Office,"2,162",Technical and Advisory Services,Research and Evidence Division,,400198318
DFID,DFID,30/01/2012,Foreign & Commonwealth Office,895,Technical and Advisory Services,Research and Evidence Division,,400198318
DFID,DFID,12/01/2012,THE POLICY PRACTICE LTD,"17,775",Training - Course Fees,Research and Evidence Division,,400194518
DFID,DFID,18/01/2012,INSIGHTS LEARNING & DEVELOPMENT LTD,"2,531",Training - Course Fees,Research and Evidence Division,,400196523
DFID,DFID,19/01/2012,NatCen Learning,650,Training - Course Fees,Research and Evidence Division,,400196739
DFID,DFID,16/01/2012,LYNDON HUGHES,850,Training Providers/Facilitation Services,Research and Evidence Division,,400195969
DFID,DFID,30/01/2012,ILRI,"3,834",Training Providers/Facilitation Services,Research and Evidence Division,,400198188
DFID,DFID,10/01/2012,OFFICE FOR NATIONAL STATISTICS,667,Travel - Subsistence,Research and Evidence Division,,400194932
DFID,DFID,30/01/2012,Foreign & Commonwealth Office,"2,779",Travel - Subsistence,Research and Evidence Division,,400198318
DFID,DFID,30/01/2012,Foreign & Commonwealth Office,"2,524",Travel - Subsistence,Research and Evidence Division,,400198318
DFID,DFID,30/01/2012,Foreign & Commonwealth Office,"2,210",Travel - Subsistence,Research and Evidence Division,,400198318
DFID,DFID,30/01/2012,Foreign & Commonwealth Office,"2,823",Travel - Subsistence,Research and Evidence Division,,400198318
DFID,DFID,09/01/2012, OECD,"250,000",Aid Programme - Voluntary contributions,Research and Evidence Division,,400194677
DFID,DFID,17/01/2012,IBRD HSBC T,"155,000",Aid Programme - Voluntary contributions,Research and Evidence Division,,400196242
DFID,DFID,17/01/2012,THE SAVE THE CHILDREN FUND,"51,803",Aid Programme - Accountable Grant Payments,Security & Humanitarian and Middle East Division,,400196239
DFID,DFID,18/01/2012,UK-Med,"13,750",Aid Programme - Accountable Grant Payments,Security & Humanitarian and Middle East Division,,400196425
DFID,DFID,20/01/2012,CHF INTERNATIONAL,"73,987",Aid Programme - Accountable Grant Payments,Security & Humanitarian and Middle East Division,,400196470
DFID,DFID,27/01/2012,ALTUS GLOBAL ALLIANCE,"93,616",Aid Programme - Accountable Grant Payments,Security & Humanitarian and Middle East Division,,400197136
DFID,DFID,09/01/2012,IFRC,"1,970","Conferences, Seminars & Meeting/Event Resource",Security & Humanitarian and Middle East Division,,400194328
DFID,DFID,05/01/2012,SOCIAL DEVELOPMENT DIRECT LTD,"14,267",Consultancy Services,Security & Humanitarian and Middle East Division,,400193285
DFID,DFID,17/01/2012,Coffey International Development (Do not use),"2,455",Contract & Agency Staff,Security & Humanitarian and Middle East Division,,400194871
DFID,DFID,19/01/2012,MITIE Catering Services Ltd,541,Entertainment & Hospitality,Security & Humanitarian and Middle East Division,,400196460
DFID,DFID,30/01/2012,Foreign & Commonwealth Office,548,Entertainment & Hospitality,Security & Humanitarian and Middle East Division,,400198318
DFID,DFID,11/01/2012,FOREIGN AND COMMONWEALTH OFFICE (FCO),"356,954",FCO shared service charges,Security & Humanitarian and Middle East Division,Shared services charges FCO/DFID Libya,400194711
DFID,DFID,11/01/2012,Pilgrims Group,"1,253",Hostile Environment Training,Security & Humanitarian and Middle East Division,,400195348
DFID,DFID,16/01/2012,Pilgrims Group,946,Hostile Environment Training,Security & Humanitarian and Middle East Division,,400195353
DFID,DFID,11/01/2012,Pilgrims Group,"1,253",Hostile Environment Training,Security & Humanitarian and Middle East Division,,400195355
DFID,DFID,23/01/2012,Corporate Travel Provider,"1,551",Hotels - Accommodation only,Security & Humanitarian and Middle East Division,,6000067
DFID,DFID,05/01/2012,Recipient name withheld,563,Hotels - Accommodation only,Security & Humanitarian and Middle East Division,,400194297
DFID,DFID,05/01/2012,Recipient name withheld,992,Hotels - Accommodation only,Security & Humanitarian and Middle East Division,,400194425
DFID,DFID,06/01/2012,Foreign & Commonwealth Office,745,Hotels - Accommodation only,Security & Humanitarian and Middle East Division,,400194514
DFID,DFID,09/01/2012,Recipient name withheld,922,Hotels - Accommodation only,Security & Humanitarian and Middle East Division,,400194786
DFID,DFID,17/01/2012,Foreign & Commonwealth Office,786,Hotels - Accommodation only,Security & Humanitarian and Middle East Division,,400196153
DFID,DFID,20/01/2012,Foreign & Commonwealth Office,745,Hotels - Accommodation only,Security & Humanitarian and Middle East Division,,400196884
DFID,DFID,24/01/2012,Recipient name withheld,"1,305",Hotels - Accommodation only,Security & Humanitarian and Middle East Division,,400197280
DFID,DFID,27/01/2012,Recipient name withheld,615,Hotels - Accommodation only,Security & Humanitarian and Middle East Division,,400198037
DFID,DFID,30/01/2012,Foreign & Commonwealth Office,517,Hotels - Accommodation only,Security & Humanitarian and Middle East Division,,400198318
DFID,DFID,13/01/2012,Supplier name withheld,505,Secure Staff accommodation,Security & Humanitarian and Middle East Division,,400195698
DFID,DFID,17/01/2012,Supplier name withheld,"24,315",Secure Staff accommodation,Security & Humanitarian and Middle East Division,,400196153
DFID,DFID,23/01/2012,Supplier name withheld,634,Secure Staff accommodation,Security & Humanitarian and Middle East Division,,400197019
DFID,DFID,30/01/2012,Supplier name withheld,611,Secure Staff accommodation,Security & Humanitarian and Middle East Division,,400198318
DFID,DFID,30/01/2012,Supplier name withheld,975,Secure Staff accommodation,Security & Humanitarian and Middle East Division,,400198318
DFID,DFID,30/01/2012,Supplier name withheld,"1,902",Secure Staff accommodation,Security & Humanitarian and Middle East Division,,400198318
DFID,DFID,10/01/2012,Crown Agents Govts and Admin,"34,128",Aid Programme - Humanitarian Material Relief Assistance and Services,Security & Humanitarian and Middle East Division,,400194872
DFID,DFID,31/01/2012,VODAFONE CORPORATE,"1,725",Mobile telephones & accessories,Security & Humanitarian and Middle East Division,,400197628
DFID,DFID,31/01/2012,VODAFONE CORPORATE,899,Mobile telephones & accessories,Security & Humanitarian and Middle East Division,,400197628
DFID,DFID,30/01/2012,VODAFONE CORPORATE,586,Mobile telephones & accessories,Security & Humanitarian and Middle East Division,,400197644
DFID,DFID,30/01/2012,VODAFONE CORPORATE,712,Mobile telephones & accessories,Security & Humanitarian and Middle East Division,,400197644
DFID,DFID,13/01/2012,Foreign & Commonwealth Office,755,Office Supplies,Security & Humanitarian and Middle East Division,,400195714
DFID,DFID,18/01/2012,Cabinet Office RM Shared Services,"203,955",Other Admin Costs,Security & Humanitarian and Middle East Division,Contribution to Iraq Inquiry,400196218
DFID,DFID,08/01/2012,Recipient name withheld,793,Other passenger transport,Security & Humanitarian and Middle East Division,,400194580
DFID,DFID,09/01/2012,Corporate Travel Provider,778,Air fares,Security & Humanitarian and Middle East Division,,6000065
DFID,DFID,09/01/2012,Corporate Travel Provider,"1,185",Air fares,Security & Humanitarian and Middle East Division,,6000065
DFID,DFID,09/01/2012,Corporate Travel Provider,513,Air fares,Security & Humanitarian and Middle East Division,,6000065
DFID,DFID,09/01/2012,Corporate Travel Provider,626,Air fares,Security & Humanitarian and Middle East Division,,6000065
DFID,DFID,09/01/2012,Corporate Travel Provider,801,Air fares,Security & Humanitarian and Middle East Division,,6000065
DFID,DFID,09/01/2012,Corporate Travel Provider,775,Air fares,Security & Humanitarian and Middle East Division,,6000065
DFID,DFID,16/01/2012,Corporate Travel Provider,"1,105",Air fares,Security & Humanitarian and Middle East Division,,6000066
DFID,DFID,16/01/2012,Corporate Travel Provider,513,Air fares,Security & Humanitarian and Middle East Division,,6000066
DFID,DFID,16/01/2012,Corporate Travel Provider,920,Air fares,Security & Humanitarian and Middle East Division,,6000066
DFID,DFID,23/01/2012,Corporate Travel Provider,549,Air fares,Security & Humanitarian and Middle East Division,,6000067
DFID,DFID,23/01/2012,Corporate Travel Provider,514,Air fares,Security & Humanitarian and Middle East Division,,6000067
DFID,DFID,23/01/2012,Corporate Travel Provider,624,Air fares,Security & Humanitarian and Middle East Division,,6000067
DFID,DFID,23/01/2012,Corporate Travel Provider,"1,575",Air fares,Security & Humanitarian and Middle East Division,,6000067
DFID,DFID,23/01/2012,Corporate Travel Provider,586,Air fares,Security & Humanitarian and Middle East Division,,6000067
DFID,DFID,23/01/2012,Corporate Travel Provider,830,Air fares,Security & Humanitarian and Middle East Division,,6000067
DFID,DFID,23/01/2012,Corporate Travel Provider,648,Air fares,Security & Humanitarian and Middle East Division,,6000067
DFID,DFID,23/01/2012,Corporate Travel Provider,"1,093",Air fares,Security & Humanitarian and Middle East Division,,6000067
DFID,DFID,23/01/2012,Corporate Travel Provider,"1,093",Air fares,Security & Humanitarian and Middle East Division,,6000067
DFID,DFID,09/01/2012,Recipient name withheld,707,Air fares,Security & Humanitarian and Middle East Division,,400194786
DFID,DFID,19/01/2012,Recipient name withheld,"1,517",Subscriptions,Security & Humanitarian and Middle East Division,,400196131
DFID,DFID,04/01/2012,DAI EUROPE LIMITED,"60,252",Technical and Advisory Services,Security & Humanitarian and Middle East Division,,400194098
DFID,DFID,04/01/2012,DAI EUROPE LIMITED,"62,676",Technical and Advisory Services,Security & Humanitarian and Middle East Division,,400194152
DFID,DFID,05/01/2012,THIRD PARTY MONIES,"45,288",Technical and Advisory Services,Security & Humanitarian and Middle East Division,,400194392
DFID,DFID,09/01/2012,Crown Agents Govts and Admin,"3,444",Technical and Advisory Services,Security & Humanitarian and Middle East Division,,400194456
DFID,DFID,16/01/2012,Crown Agents Govts and Admin,"4,983",Technical and Advisory Services,Security & Humanitarian and Middle East Division,,400194504
DFID,DFID,10/01/2012,Crown Agents Govts and Admin,655,Technical and Advisory Services,Security & Humanitarian and Middle East Division,,400194509
DFID,DFID,09/01/2012,MINES ADVISORY GROUP,"44,214",Technical and Advisory Services,Security & Humanitarian and Middle East Division,,400194564
DFID,DFID,09/01/2012,MINES ADVISORY GROUP,"28,137",Technical and Advisory Services,Security & Humanitarian and Middle East Division,,400194565
DFID,DFID,09/01/2012,MINES ADVISORY GROUP,"28,298",Technical and Advisory Services,Security & Humanitarian and Middle East Division,,400194566
DFID,DFID,10/01/2012,FOREIGN AND COMMONWEALTH OFFICE (FCO),"459,748",Technical and Advisory Services,Security & Humanitarian and Middle East Division,,400194614
DFID,DFID,09/01/2012,Crown Agents Govts and Admin,"4,570",Technical and Advisory Services,Security & Humanitarian and Middle East Division,,400194664
DFID,DFID,09/01/2012,Crown Agents Govts and Admin,547,Technical and Advisory Services,Security & Humanitarian and Middle East Division,,400194844
DFID,DFID,10/01/2012,MINES ADVISORY GROUP,"31,945",Technical and Advisory Services,Security & Humanitarian and Middle East Division,,400194856
DFID,DFID,09/01/2012,MINES ADVISORY GROUP,"23,821",Technical and Advisory Services,Security & Humanitarian and Middle East Division,,400194857
DFID,DFID,09/01/2012,MINES ADVISORY GROUP,"198,349",Technical and Advisory Services,Security & Humanitarian and Middle East Division,,400194860
DFID,DFID,17/01/2012,Crown Agents Govts and Admin,"3,066",Technical and Advisory Services,Security & Humanitarian and Middle East Division,,400194866
DFID,DFID,17/01/2012,Coffey International Development (Do not use),"5,963",Technical and Advisory Services,Security & Humanitarian and Middle East Division,,400194871
DFID,DFID,12/01/2012,Crown Agents Govts and Admin,"10,434",Technical and Advisory Services,Security & Humanitarian and Middle East Division,,400195181
DFID,DFID,17/01/2012,BRITISH COUNCIL,"52,419",Technical and Advisory Services,Security & Humanitarian and Middle East Division,,400196204
DFID,DFID,18/01/2012,HAREWELLE INTERNATIONAL LIMITED,"3,654",Technical and Advisory Services,Security & Humanitarian and Middle East Division,,400196514
DFID,DFID,18/01/2012,DAI EUROPE LIMITED,"154,903",Technical and Advisory Services,Security & Humanitarian and Middle East Division,,400196519
DFID,DFID,19/01/2012,Hext Consulting Ltd,"15,000",Technical and Advisory Services,Security & Humanitarian and Middle East Division,,400196743
DFID,DFID,20/01/2012,Crown Agents Govts and Admin,"5,000",Technical and Advisory Services,Security & Humanitarian and Middle East Division,,400196820
DFID,DFID,20/01/2012,Crown Agents Govts and Admin,"24,000",Technical and Advisory Services,Security & Humanitarian and Middle East Division,,400196820
DFID,DFID,23/01/2012,Foreign & Commonwealth Office,"3,538",Technical and Advisory Services,Security & Humanitarian and Middle East Division,,400197019
DFID,DFID,25/01/2012,GRM INTERNATIONAL LTD,"3,941",Technical and Advisory Services,Security & Humanitarian and Middle East Division,,400197436
DFID,DFID,25/01/2012,GRM INTERNATIONAL LTD,"3,941",Technical and Advisory Services,Security & Humanitarian and Middle East Division,,400197439
DFID,DFID,26/01/2012,THIRD PARTY MONIES,"37,526",Technical and Advisory Services,Security & Humanitarian and Middle East Division,,400197760
DFID,DFID,31/01/2012,Crown Agents Govts and Admin,847,Technical and Advisory Services,Security & Humanitarian and Middle East Division,,400198229
DFID,DFID,31/01/2012,Crown Agents Govts and Admin,"3,111",Technical and Advisory Services,Security & Humanitarian and Middle East Division,,400198234
DFID,DFID,31/01/2012,Crown Agents Govts and Admin,"3,234",Technical and Advisory Services,Security & Humanitarian and Middle East Division,,400198424
DFID,DFID,13/01/2012,Foreign & Commonwealth Office,"1,124",Telephone Usage & services,Security & Humanitarian and Middle East Division,,400195714
DFID,DFID,30/01/2012,VODAFONE CORPORATE,683,Telephone Usage & services,Security & Humanitarian and Middle East Division,,400196741
DFID,DFID,23/01/2012,Foreign & Commonwealth Office,"1,870",Telephone Usage & services,Security & Humanitarian and Middle East Division,,400197019
DFID,DFID,05/01/2012,NATIONAL SCHOOL OF GOVERNMENT,"1,180",Training Providers/Facilitation Services,Security & Humanitarian and Middle East Division,,400191421
DFID,DFID,06/01/2012,THRESHOLDS,"1,800",Training Providers/Facilitation Services,Security & Humanitarian and Middle East Division,,400194531
DFID,DFID,18/01/2012, Economic Policy Research Institute,"2,274",Training Providers/Facilitation Services,Security & Humanitarian and Middle East Division,,400195752
DFID,DFID,18/01/2012,RADA ENTERPRISES LTD,750,Training Providers/Facilitation Services,Security & Humanitarian and Middle East Division,,400196237
DFID,DFID,17/01/2012,UNIVERSITY OF BIRMINGHAM,"45,520",Training Providers/Facilitation Services,Security & Humanitarian and Middle East Division,Security and Justice training course for HMG staff/FCO/DFID/MOD,400196248
DFID,DFID,23/01/2012,RedR UK,879,Training Providers/Facilitation Services,Security & Humanitarian and Middle East Division,,400197108
DFID,DFID,30/01/2012,SPOCE PROJECT MANAGEMENT LIMITED,995,Training Providers/Facilitation Services,Security & Humanitarian and Middle East Division,,400198091
DFID,DFID,13/01/2012,Foreign & Commonwealth Office,"1,066",Travel - Subsistence,Security & Humanitarian and Middle East Division,,400195714
DFID,DFID,17/01/2012,Foreign & Commonwealth Office,544,Travel - Subsistence,Security & Humanitarian and Middle East Division,,400196153
DFID,DFID,23/01/2012,Foreign & Commonwealth Office,"1,009",Travel - Subsistence,Security & Humanitarian and Middle East Division,,400197019
DFID,DFID,23/01/2012,Foreign & Commonwealth Office,569,Travel - Subsistence,Security & Humanitarian and Middle East Division,,400197019
DFID,DFID,23/01/2012,Foreign & Commonwealth Office,502,Travel - Subsistence,Security & Humanitarian and Middle East Division,,400197019
DFID,DFID,05/01/2012,IBRD (HSBC)  C/O THE WORLD BANK,"300,000",Aid Programme - Trust Funds contributions,Security & Humanitarian and Middle East Division,,400194403
DFID,DFID,13/01/2012,Foreign & Commonwealth Office,"4,294",Vehicle Repairs & Maintenance,Security & Humanitarian and Middle East Division,,400195698
DFID,DFID,13/01/2012,Foreign & Commonwealth Office,506,Vehicle Repairs & Maintenance,Security & Humanitarian and Middle East Division,,400195714
DFID,DFID,17/01/2012,Foreign & Commonwealth Office,618,Vehicle Repairs & Maintenance,Security & Humanitarian and Middle East Division,,400196153
DFID,DFID,04/01/2012,WFP CONTRIBUTIONS UNIT,"900,000",Aid Programme - Voluntary contributions,Security & Humanitarian and Middle East Division,,400193806
DFID,DFID,27/01/2012,HOME OFFICE,"35,000",Aid Programme - Voluntary contributions,Security & Humanitarian and Middle East Division,,400198069
DFID,DFID,23/01/2012,Foreign & Commonwealth Office,541,Hotels - Accommodation only,Top Management Group,,400197019
DFID,DFID,23/01/2012,Foreign & Commonwealth Office,864,Hotels - Accommodation only,Top Management Group,,400197019
DFID,DFID,30/01/2012,VODAFONE CORPORATE,786,Mobile telephones & accessories,Top Management Group,,400197754
DFID,DFID,30/01/2012,VODAFONE CORPORATE,810,Mobile telephones & accessories,Top Management Group,,400197754
DFID,DFID,26/01/2012, BARROW & GALE,704,Office Supplies,Top Management Group,,400197880
DFID,DFID,09/01/2012,Corporate Travel Provider,"1,026",Air fares,Top Management Group,,6000065
DFID,DFID,09/01/2012,Corporate Travel Provider,569,Air fares,Top Management Group,,6000065
DFID,DFID,09/01/2012,Corporate Travel Provider,543,Air fares,Top Management Group,,6000065
DFID,DFID,09/01/2012,Corporate Travel Provider,543,Air fares,Top Management Group,,6000065
DFID,DFID,09/01/2012,Corporate Travel Provider,510,Air fares,Top Management Group,,6000065
DFID,DFID,09/01/2012,Corporate Travel Provider,994,Air fares,Top Management Group,,6000065
DFID,DFID,16/01/2012,Corporate Travel Provider,"3,532",Air fares,Top Management Group,,6000066
DFID,DFID,16/01/2012,Corporate Travel Provider,"3,532",Air fares,Top Management Group,,6000066
DFID,DFID,23/01/2012,Corporate Travel Provider,"1,472",Air fares,Top Management Group,,6000067
DFID,DFID,23/01/2012,Corporate Travel Provider,"1,472",Air fares,Top Management Group,,6000067
DFID,DFID,23/01/2012,Corporate Travel Provider,"1,140",Air fares,Top Management Group,,6000067
DFID,DFID,23/01/2012,Corporate Travel Provider,"5,053",Air fares,Top Management Group,,6000067
DFID,DFID,23/01/2012,Corporate Travel Provider,"2,193",Air fares,Top Management Group,,6000067
DFID,DFID,23/01/2012,Corporate Travel Provider,"3,892",Air fares,Top Management Group,,6000067
DFID,DFID,23/01/2012,Corporate Travel Provider,"3,643",Air fares,Top Management Group,,6000067
DFID,DFID,23/01/2012,Corporate Travel Provider,"1,140",Air fares,Top Management Group,,6000067
DFID,DFID,23/01/2012,Corporate Travel Provider,"3,727",Air fares,Top Management Group,,6000067
DFID,DFID,23/01/2012,Corporate Travel Provider,"1,472",Air fares,Top Management Group,,6000067
DFID,DFID,23/01/2012,Corporate Travel Provider,"1,611",Air fares,Top Management Group,,6000067
DFID,DFID,23/01/2012,Corporate Travel Provider,"5,053",Air fares,Top Management Group,,6000067
DFID,DFID,23/01/2012,Corporate Travel Provider,"3,643",Air fares,Top Management Group,,6000067
DFID,DFID,18/01/2012,Foreign & Commonwealth Office,512,Air fares,Top Management Group,,400196513
DFID,DFID,05/01/2012,IIED ,"4,360",Aid Programme - Accountable Grant Payments,West and Southern Africa,,400194296
DFID,DFID,10/01/2012,Human Sciences Research Council.,"625,000",Aid Programme - Accountable Grant Payments,West and Southern Africa,,400194529
DFID,DFID,19/01/2012,The Story Workshop,"60,363",Aid Programme - Accountable Grant Payments,West and Southern Africa,,400196426
DFID,DFID,19/01/2012,PLAN MALAWI- CBM PROJECT,"100,000",Aid Programme - Accountable Grant Payments,West and Southern Africa,,400196428
DFID,DFID,24/01/2012,Catholic Commission for Justice and Peace,"424,073",Aid Programme - Accountable Grant Payments,West and Southern Africa,,400196434
DFID,DFID,23/01/2012,POLICY AND LEGAL ADVOCACY CENTRE,"75,108",Aid Programme - Accountable Grant Payments,West and Southern Africa,,400196887
DFID,DFID,25/01/2012,Malawi Economic Justice Network (MEJN),"87,927",Aid Programme - Accountable Grant Payments,West and Southern Africa,,400196906
DFID,DFID,24/01/2012,HivosGBP,"95,773",Aid Programme - Accountable Grant Payments,West and Southern Africa,,400197035
DFID,DFID,30/01/2012,The Tropical Health and Education Trust,"80,849",Aid Programme - Accountable Grant Payments,West and Southern Africa,,400197878
DFID,DFID,30/01/2012,EFInA,"416,069",Aid Programme - Accountable Grant Payments,West and Southern Africa,,400198020
DFID,DFID,27/01/2012,Millennium Promise Alliance,"587,031",Aid Programme - Accountable Grant Payments,West and Southern Africa,,400198022
DFID,DFID,31/01/2012,Clinton Health Access Initiative,"147,759",Aid Programme - Accountable Grant Payments,West and Southern Africa,,400198054
DFID,DFID,27/01/2012,Evidence for Development,"25,690",Aid Programme - Accountable Grant Payments,West and Southern Africa,,400198064
DFID,DFID,12/01/2012,"Mwenelupembe, Mhango and Company","9,804",Auditors Assurance Service,West and Southern Africa,,400195597
DFID,DFID,18/01/2012,Wilson and Johnson,"3,911",Auditors Assurance Service,West and Southern Africa,,400196373
DFID,DFID,18/01/2012,Kingdom Associates,"8,604",Auditors Assurance Service,West and Southern Africa,,400196374
DFID,DFID,18/01/2012,C S Associates,"3,520",Auditors Assurance Service,West and Southern Africa,,400196381
DFID,DFID,05/01/2012,Networkshop Limited,965,Computer hardware maintenance,West and Southern Africa,,400193918
DFID,DFID,05/01/2012,Networkshop Limited,"1,180",Computer hardware maintenance,West and Southern Africa,,400193918
DFID,DFID,05/01/2012,Suburban Broadband Ltd,"5,188",Computer hardware maintenance,West and Southern Africa,,400194300
DFID,DFID,05/01/2012,Suburban Broadband Ltd,"6,341",Computer hardware maintenance,West and Southern Africa,,400194300
DFID,DFID,19/01/2012,Networkshop Limited,"1,849",Computer hardware maintenance,West and Southern Africa,,400196431
DFID,DFID,19/01/2012,Networkshop Limited,"1,513",Computer hardware maintenance,West and Southern Africa,,400196431
DFID,DFID,24/01/2012,J.H Simex PLC/Intercontinental Hotel,"1,880","Conferences, Seminars & Meeting/Event Resource",West and Southern Africa,,400197056
DFID,DFID,25/01/2012,GRM International Limited-SAVI,"7,909","Conferences, Seminars & Meeting/Event Resource",West and Southern Africa,,400197422
DFID,DFID,27/01/2012,Mining Indaba LLC,692,"Conferences, Seminars & Meeting/Event Resource",West and Southern Africa,,400197850
DFID,DFID,27/01/2012,New Initiative for Social Development,"11,925","Conferences, Seminars & Meeting/Event Resource",West and Southern Africa,,400197913
DFID,DFID,30/01/2012,Lamar Travel Agency,842,Air fares,West and Southern Africa,,400198282
DFID,DFID,10/01/2012,Elvis Kargbo,"1,482",Technical and Advisory Services,West and Southern Africa,,400195018
DFID,DFID,06/01/2012,Crown Agents Govts and Admin,"227,175",Contraceptives,West and Southern Africa,,400194521
DFID,DFID,09/01/2012,Crown Agents Govts and Admin,"945,949",Contraceptives,West and Southern Africa,,400194525
DFID,DFID,13/01/2012,Crown Agents Govts and Admin,"305,113",Contraceptives,West and Southern Africa,,400195722
DFID,DFID,16/01/2012,Crown Agents Govts and Admin,"7,431",Contraceptives,West and Southern Africa,,400195972
DFID,DFID,19/01/2012,Crown Agents Govts and Admin,"163,725",Contraceptives,West and Southern Africa,,400196646
DFID,DFID,11/01/2012,UNDP (USD) ACCOUNT,"125,000",Aid Programme - Core contributions,West and Southern Africa,,400194651
DFID,DFID,26/01/2012,The World Bank (EFO),"141,794",Aid Programme - Core contributions,West and Southern Africa,,400197924
DFID,DFID,26/01/2012,MICRO COM Sprl,"5,926",Data Network - land lines,West and Southern Africa,,400197859
DFID,DFID,26/01/2012,MICRO COM Sprl,577,Data Network - land lines,West and Southern Africa,,400197859
DFID,DFID,31/01/2012,Ghana Telecommunications Company Ltd,"4,424",Data Network - land lines,West and Southern Africa,,400198417
DFID,DFID,31/01/2012,Ghana Telecommunications Company Ltd,"1,896",Data Network - land lines,West and Southern Africa,,400198417
DFID,DFID,10/01/2012,National Power Authority,540,Electricity,West and Southern Africa,,400194997
DFID,DFID,17/01/2012,ESCOM,634,Electricity,West and Southern Africa,,400196172
DFID,DFID,23/01/2012,Foreign & Commonwealth Office,618,Electricity,West and Southern Africa,,400197019
DFID,DFID,23/01/2012,Foreign & Commonwealth Office,545,Electricity,West and Southern Africa,,400197019
DFID,DFID,23/01/2012,Foreign & Commonwealth Office,823,Electricity,West and Southern Africa,,400197019
DFID,DFID,23/01/2012,Foreign & Commonwealth Office,586,Electricity,West and Southern Africa,,400197019
DFID,DFID,26/01/2012,Electricity Company of Ghana,669,Electricity,West and Southern Africa,,400197540
DFID,DFID,30/01/2012,Foreign & Commonwealth Office,502,Electricity,West and Southern Africa,,400198318
DFID,DFID,30/01/2012,Foreign & Commonwealth Office,549,Electricity,West and Southern Africa,,400198318
DFID,DFID,26/01/2012,World Food  Programme,"300,000",Aid Programme - Emergency Food Aid,West and Southern Africa,,400197635
DFID,DFID,10/01/2012,Recipient name withheld,741,Furniture & Fittings,West and Southern Africa,,400194760
DFID,DFID,13/01/2012,Foreign & Commonwealth Office,"1,035",Furniture & Fittings,West and Southern Africa,,400195714
DFID,DFID,17/01/2012,BARBOURS,581,Furniture & Fittings,West and Southern Africa,,400196099
DFID,DFID,17/01/2012,Foreign & Commonwealth Office,"2,551",Furniture & Fittings,West and Southern Africa,,400196153
DFID,DFID,30/01/2012,Foreign & Commonwealth Office,"1,944",Furniture & Fittings,West and Southern Africa,,400198318
DFID,DFID,31/01/2012,Boston City Campus & Business College,575,Further Education costs,West and Southern Africa,,400198431
DFID,DFID,09/01/2012,NP (SL) Ltd,"1,502",Generators & spares,West and Southern Africa,,400194710
DFID,DFID,09/01/2012,Oduntor C.Wilson,546,Generators & spares,West and Southern Africa,,400194721
DFID,DFID,10/01/2012,Enjay Technical Services Limited,673,Generators & spares,West and Southern Africa,,400194902
DFID,DFID,16/01/2012,Abrahim A H Daklalah ($),817,Generators & spares,West and Southern Africa,,400195891
DFID,DFID,16/01/2012,Abrahim A H Daklalah ($),817,Generators & spares,West and Southern Africa,,400195892
DFID,DFID,16/01/2012,Abrahim A H Daklalah ($),817,Generators & spares,West and Southern Africa,,400195894
DFID,DFID,16/01/2012,Abrahim A H Daklalah ($),817,Generators & spares,West and Southern Africa,,400195960
DFID,DFID,30/01/2012,NP (SL) Ltd,"1,445",Generators & spares,West and Southern Africa,,400198260
DFID,DFID,30/01/2012,NP (SL) Ltd,"1,445",Generators & spares,West and Southern Africa,,400198262
DFID,DFID,30/01/2012,NP (SL) Ltd,"1,445",Generators & spares,West and Southern Africa,,400198263
DFID,DFID,30/01/2012,NP (SL) Ltd,"1,156",Generators & spares,West and Southern Africa,,400198264
DFID,DFID,23/01/2012,Supplier Name withheld,519,Hotels - Accommodation only,West and Southern Africa,,6000067
DFID,DFID,23/01/2012,Corporate Travel Provider,563,Hotels - Accommodation only,West and Southern Africa,,6000067
DFID,DFID,23/01/2012,Corporate Travel Provider,589,Hotels - Accommodation only,West and Southern Africa,,6000067
DFID,DFID,23/01/2012,Corporate Travel Provider,507,Hotels - Accommodation only,West and Southern Africa,,6000067
DFID,DFID,23/01/2012,Corporate Travel Provider,583,Hotels - Accommodation only,West and Southern Africa,,6000067
DFID,DFID,18/01/2012,Supplier Name withheld,"1,066",Hotels - Accommodation only,West and Southern Africa,,400193721
DFID,DFID,09/01/2012,Supplier Name withheld,547,Hotels - Accommodation only,West and Southern Africa,,400194276
DFID,DFID,09/01/2012,Supplier Name withheld,"12,205",Hotels - Accommodation only,West and Southern Africa,,400194399
DFID,DFID,06/01/2012,Supplier Name withheld,664,Vehicle Repairs & Maintenance,West and Southern Africa,,400194492
DFID,DFID,09/01/2012,Recipient name withheld,668,Hotels - Accommodation only,West and Southern Africa,,400194599
DFID,DFID,11/01/2012,Supplier Name withheld,"1,557",Hotels - Accommodation only,West and Southern Africa,,400194679
DFID,DFID,11/01/2012,Supplier Name withheld,"2,238",Hotels - Accommodation only,West and Southern Africa,,400194679
DFID,DFID,10/01/2012,Recipient name withheld,"1,659",Hotels - Accommodation only,West and Southern Africa,,400194966
DFID,DFID,12/01/2012,Supplier Name withheld,"1,190",Hotels - Accommodation only,West and Southern Africa,,400195050
DFID,DFID,11/01/2012,Supplier Name withheld,947,Hotels - Accommodation only,West and Southern Africa,,400195065
DFID,DFID,11/01/2012,Supplier Name withheld,827,Hotels - Accommodation only,West and Southern Africa,,400195072
DFID,DFID,12/01/2012,Recipient name withheld,"4,798",Hotels - Accommodation only,West and Southern Africa,,400195601
DFID,DFID,17/01/2012,Recipient name withheld,"3,000",Hotels - Accommodation only,West and Southern Africa,,400196141
DFID,DFID,20/01/2012,Supplier Name withheld,843,Hotels - Accommodation only,West and Southern Africa,,400196529
DFID,DFID,20/01/2012,Supplier Name withheld,570,Hotels - Accommodation only,West and Southern Africa,,400196708
DFID,DFID,23/01/2012,Recipient name withheld,920,Hotels - Accommodation only,West and Southern Africa,,400197032
DFID,DFID,23/01/2012,Recipient name withheld,"1,334",Hotels - Accommodation only,West and Southern Africa,,400197099
DFID,DFID,23/01/2012,Recipient name withheld,"5,286",Hotels - Accommodation only,West and Southern Africa,,400197099
DFID,DFID,24/01/2012,Recipient name withheld,567,Hotels - Accommodation only,West and Southern Africa,,400197220
DFID,DFID,25/01/2012,Recipient name withheld,536,Hotels - Accommodation only,West and Southern Africa,,400197581
DFID,DFID,25/01/2012,Recipient name withheld,"4,798",Hotels - Accommodation only,West and Southern Africa,,400197645
DFID,DFID,25/01/2012,Recipient name withheld,"4,920",Hotels - Accommodation only,West and Southern Africa,,400197646
DFID,DFID,31/01/2012,Supplier Name withheld,762,Hotels - Accommodation only,West and Southern Africa,,400198478
DFID,DFID,09/01/2012,Supplier name withheld,"5,370",Secure Staff accommodation,West and Southern Africa,,400194782
DFID,DFID,12/01/2012,Supplier name withheld,"50,753",Secure Staff accommodation,West and Southern Africa,Secure staff accommodation,400195517
DFID,DFID,12/01/2012,Supplier name withheld,"13,906",Secure Staff accommodation,West and Southern Africa,,400195531
DFID,DFID,13/01/2012,Supplier name withheld,"16,122",Secure Staff accommodation,West and Southern Africa,,400195698
DFID,DFID,23/01/2012,Supplier name withheld,"16,196",Secure Staff accommodation,West and Southern Africa,,400197019
DFID,DFID,23/01/2012,Supplier name withheld,"26,355",Secure Staff accommodation,West and Southern Africa,Secure staff accommodation,400197019
DFID,DFID,26/01/2012,Supplier name withheld,"1,650",Secure Staff accommodation,West and Southern Africa,,400197534
DFID,DFID,26/01/2012,Crown Agents Govts and Admin,"9,293",Legal costs,West and Southern Africa,,400194173
DFID,DFID,19/01/2012,Crown Agents Govts and Admin,"1,047",Medical/Health Services,West and Southern Africa,,400196660
DFID,DFID,19/01/2012,Crown Agents Govts and Admin,"36,093",Medical/Health Services,West and Southern Africa,,400196660
DFID,DFID,19/01/2012,Crown Agents Govts and Admin,700,Medical/Health Services,West and Southern Africa,,400196661
DFID,DFID,23/01/2012,Crown Agents Govts and Admin,"3,532",Medical/Health Services,West and Southern Africa,,400197140
DFID,DFID,25/01/2012,FLIMAS,"2,350",Medical/Health Services,West and Southern Africa,,400197555
DFID,DFID,25/01/2012,FLIMAS,"1,808",Medical/Health Services,West and Southern Africa,,400197555
DFID,DFID,10/01/2012,Crown Agents Govts and Admin,"418,964",Medicines & Drugs,West and Southern Africa,,400193433
DFID,DFID,10/01/2012,Crown Agents Govts and Admin,"53,298",Medicines & Drugs,West and Southern Africa,,400193921
DFID,DFID,10/01/2012,Crown Agents Govts and Admin,"7,798",Medicines & Drugs,West and Southern Africa,,400194534
DFID,DFID,10/01/2012,Crown Agents Govts and Admin,"15,086",Medicines & Drugs,West and Southern Africa,,400194546
DFID,DFID,13/01/2012,Crown Agents Govts and Admin,"70,585",Medicines & Drugs,West and Southern Africa,,400195717
DFID,DFID,13/01/2012,Crown Agents Govts and Admin,"27,987",Medicines & Drugs,West and Southern Africa,,400195756
DFID,DFID,16/01/2012,Crown Agents Govts and Admin,"328,885",Medicines & Drugs,West and Southern Africa,,400195757
DFID,DFID,19/01/2012,Crown Agents Govts and Admin,"11,780",Medicines & Drugs,West and Southern Africa,,400196643
DFID,DFID,24/01/2012,Crown Agents Govts and Admin,"76,791",Medicines & Drugs,West and Southern Africa,,400197242
DFID,DFID,11/01/2012,MCell,864,Mobile telephones & accessories,West and Southern Africa,,400195081
DFID,DFID,11/01/2012,ECONET,607,Mobile telephones & accessories,West and Southern Africa,,400195252
DFID,DFID,11/01/2012,ECONET,781,Mobile telephones & accessories,West and Southern Africa,,400195252
DFID,DFID,24/01/2012,MCell,779,Mobile telephones & accessories,West and Southern Africa,,400197196
DFID,DFID,27/01/2012,Telekom Networks Malawi,596,Mobile telephones & accessories,West and Southern Africa,,400197853
DFID,DFID,10/01/2012,SI Systems,"1,420",Office Equipment - Maintenance,West and Southern Africa,,400194917
DFID,DFID,18/01/2012,DK INTERNATIONAL,"6,973",Office Equipment - Purchases,West and Southern Africa,,400196335
DFID,DFID,20/01/2012,Crown Agents Govts and Admin,"1,923",Office Equipment - Purchases,West and Southern Africa,,400196648
DFID,DFID,26/01/2012,Crown Agents Govts and Admin,"25,805",Office Equipment - Purchases,West and Southern Africa,,400197772
DFID,DFID,18/01/2012,Computer Express,798,Office Supplies,West and Southern Africa,,400196337
DFID,DFID,18/01/2012,Computer Express,"1,695",Office Supplies,West and Southern Africa,,400196337
DFID,DFID,25/01/2012,Recipient name withheld,582,Oil - Other Utilities,West and Southern Africa,,400197210
DFID,DFID,11/01/2012,Supplier Name withheld,"3,878",Operating Lease rental of buildings,West and Southern Africa,,400195251
DFID,DFID,18/01/2012,Supplier Name withheld,"2,604",Operating Lease rental of buildings,West and Southern Africa,,400196414
DFID,DFID,27/01/2012,Broll Property Management,"10,569",Operating Lease rental of buildings,West and Southern Africa,,400197981
DFID,DFID,27/01/2012,Broll Property Management,"7,046",Operating Lease rental of buildings,West and Southern Africa,,400197981
DFID,DFID,18/01/2012,SONAS,"1,219",Other Admin Costs,West and Southern Africa,,400196321
DFID,DFID,17/01/2012,Crown Agents Govts and Admin - Zambia,"216,848",Aid Programme - Other Financial Aid to Government,West and Southern Africa,,400196246
DFID,DFID,04/01/2012,Limeline Sierra Leone Ltd,534,other information and communication technologies,West and Southern Africa,,400194102
DFID,DFID,16/01/2012,Airtel (SL) Ltd,657,other information and communication technologies,West and Southern Africa,,400195886
DFID,DFID,17/01/2012,Recipient name withheld,586,UK Staff overseas - Evacuation costs,West and Southern Africa,,400196141
DFID,DFID,19/01/2012,Europcar Hire,"1,370",Other passenger transport,West and Southern Africa,,400196604
DFID,DFID,11/01/2012,JAT Constroi Lda,"8,974",Other rentals,West and Southern Africa,,400194998
DFID,DFID,11/01/2012,JAT Constroi Lda,"20,939",Other rentals,West and Southern Africa,,400194998
DFID,DFID,11/01/2012,JAT Constroi Lda,"4,526",Other rentals,West and Southern Africa,,400195004
DFID,DFID,11/01/2012,JAT Constroi Lda,"1,940",Other rentals,West and Southern Africa,,400195004
DFID,DFID,10/01/2012,Condominios JAT,671,Other rentals,West and Southern Africa,,400195010
DFID,DFID,10/01/2012,Condominios JAT,"1,567",Other rentals,West and Southern Africa,,400195010
DFID,DFID,17/01/2012,Crown Agents Govts and Admin - Sierra Leone,"4,000,000",Aid Programme - Poverty Reduction Budget Support,West and Southern Africa,,400196084
DFID,DFID,25/01/2012,AGENCE FRANCAIS DE DEVELOPMENT,"32,577",Aid Programme - Poverty Reduction Budget Support,West and Southern Africa,,400196340
DFID,DFID,30/01/2012,Crown Agents Govts and Admin - Mozambique,"4,500,000",Aid Programme - Poverty Reduction Budget Support,West and Southern Africa,,400198303
DFID,DFID,31/01/2012,Crown Agents Govts and Admin - Mozambique,"2,500,000",Aid Programme - Poverty Reduction Budget Support,West and Southern Africa,,400198408
DFID,DFID,18/01/2012,Financial Gazette Pvt Ltd,"1,276",Recruitment costs,West and Southern Africa,,400196411
DFID,DFID,18/01/2012,Zimpapers USD,"1,988",Recruitment costs,West and Southern Africa,,400196412
DFID,DFID,10/01/2012,CROWN RELOCATIONS  UK,"5,679",Relocation costs,West and Southern Africa,,400194367
DFID,DFID,09/01/2012,CROWN RELOCATIONS  UK,"3,274",Relocation costs,West and Southern Africa,,400194377
DFID,DFID,09/01/2012,CROWN RELOCATIONS  UK,"2,034",Relocation costs,West and Southern Africa,,400194414
DFID,DFID,31/01/2012,CROWN RELOCATIONS  UK,"1,095",Relocation costs,West and Southern Africa,,400198309
DFID,DFID,19/01/2012,Yeane Enterprises,562,Cleaning Costs,West and Southern Africa,,400196750
DFID,DFID,23/01/2012,Foreign & Commonwealth Office,"5,080",Cleaning Costs,West and Southern Africa,,400197019
DFID,DFID,23/01/2012,Foreign & Commonwealth Office,"1,784",Cleaning Costs,West and Southern Africa,,400197019
DFID,DFID,23/01/2012,Foreign & Commonwealth Office,"5,061",Cleaning Costs,West and Southern Africa,,400197019
DFID,DFID,23/01/2012,Foreign & Commonwealth Office,"2,054",Cleaning Costs,West and Southern Africa,,400197019
DFID,DFID,23/01/2012,Foreign & Commonwealth Office,631,Cleaning Costs,West and Southern Africa,,400197019
DFID,DFID,23/01/2012,Foreign & Commonwealth Office,933,Cleaning Costs,West and Southern Africa,,400197019
DFID,DFID,23/01/2012,Foreign & Commonwealth Office,"2,006",Cleaning Costs,West and Southern Africa,,400197019
DFID,DFID,23/01/2012,Foreign & Commonwealth Office,965,Cleaning Costs,West and Southern Africa,,400197019
DFID,DFID,23/01/2012,Foreign & Commonwealth Office,"3,714",Cleaning Costs,West and Southern Africa,,400197019
DFID,DFID,23/01/2012,Foreign & Commonwealth Office,"4,318",Cleaning Costs,West and Southern Africa,,400197019
DFID,DFID,23/01/2012,Foreign & Commonwealth Office,"1,674",Cleaning Costs,West and Southern Africa,,400197019
DFID,DFID,23/01/2012,Foreign & Commonwealth Office,"1,034",Cleaning Costs,West and Southern Africa,,400197019
DFID,DFID,23/01/2012,Foreign & Commonwealth Office,514,Cleaning Costs,West and Southern Africa,,400197019
DFID,DFID,23/01/2012,Foreign & Commonwealth Office,"3,675",Cleaning Costs,West and Southern Africa,,400197019
DFID,DFID,23/01/2012,Foreign & Commonwealth Office,"11,410",Cleaning Costs,West and Southern Africa,,400197019
DFID,DFID,23/01/2012,Foreign & Commonwealth Office,"3,765",Cleaning Costs,West and Southern Africa,,400197019
DFID,DFID,30/01/2012,Foreign & Commonwealth Office,587,Cleaning Costs,West and Southern Africa,,400198318
DFID,DFID,30/01/2012,Foreign & Commonwealth Office,924,Cleaning Costs,West and Southern Africa,,400198318
DFID,DFID,18/01/2012,Crown Agents Govts and Admin,"8,414",Facilities Management payments,West and Southern Africa,,400187369
DFID,DFID,10/01/2012,Conote Services Ltd,"1,711",Facilities Management payments,West and Southern Africa,,400194905
DFID,DFID,10/01/2012,Conote Services Ltd,"2,091",Facilities Management payments,West and Southern Africa,,400194905
DFID,DFID,12/01/2012,Circuit Board (Nig) Ltd,"3,023",Facilities Management payments,West and Southern Africa,,400195526
DFID,DFID,17/01/2012,Foreign & Commonwealth Office,"1,917",Facilities Management payments,West and Southern Africa,,400196153
DFID,DFID,17/01/2012,Foreign & Commonwealth Office,"1,568",Facilities Management payments,West and Southern Africa,,400196153
DFID,DFID,19/01/2012,Pekolyn Tech. Services,649,Facilities Management payments,West and Southern Africa,,400196599
DFID,DFID,19/01/2012,Recipient name withheld,847,Facilities Management payments,West and Southern Africa,,400196610
DFID,DFID,25/01/2012,Recipient name withheld,810,Facilities Management payments,West and Southern Africa,,400197210
DFID,DFID,25/01/2012,Recipient name withheld,990,Facilities Management payments,West and Southern Africa,,400197210
DFID,DFID,24/01/2012,Raju's Electricals,"1,767",Facilities Management payments,West and Southern Africa,,400197271
DFID,DFID,25/01/2012,B & D Consultancy Company Limited,"1,210",Facilities Management payments,West and Southern Africa,,400197424
DFID,DFID,23/01/2012,UNZA School of Engineering,645,Other Building Costs,West and Southern Africa,,400197062
DFID,DFID,09/01/2012,BRITSOURCE INTERNATIONAL,"2,451","Repairs, Maint, Alter - Property & Constrct. Services",West and Southern Africa,,400194497
DFID,DFID,09/01/2012,Metal Pro Sprl,"1,160","Repairs, Maint, Alter - Property & Constrct. Services",West and Southern Africa,,400194604
DFID,DFID,12/01/2012,British Embassy,"20,940","Repairs, Maint, Alter - Property & Constrct. Services",West and Southern Africa,,400195258
DFID,DFID,12/01/2012,RADIUS Consulting Ghana Ltd,659,"Repairs, Maint, Alter - Property & Constrct. Services",West and Southern Africa,,400195411
DFID,DFID,17/01/2012,GreyStone Park Electrical,"2,212","Repairs, Maint, Alter - Property & Constrct. Services",West and Southern Africa,,400196104
DFID,DFID,17/01/2012,Recipient name withheld,678,"Repairs, Maint, Alter - Property & Constrct. Services",West and Southern Africa,,400196128
DFID,DFID,18/01/2012,Liquid Logic Mocambique Lda,734,"Repairs, Maint, Alter - Property & Constrct. Services",West and Southern Africa,,400196405
DFID,DFID,19/01/2012,GreyStone Park Electrical,"2,960","Repairs, Maint, Alter - Property & Constrct. Services",West and Southern Africa,,400196598
DFID,DFID,24/01/2012,Power - Sistemas de Energia,714,"Repairs, Maint, Alter - Property & Constrct. Services",West and Southern Africa,,400197050
DFID,DFID,24/01/2012,Recipient name withheld,601,"Repairs, Maint, Alter - Property & Constrct. Services",West and Southern Africa,,400197187
DFID,DFID,26/01/2012,NEVES STATUS POOLS,667,"Repairs, Maint, Alter - Property & Constrct. Services",West and Southern Africa,,400197731
DFID,DFID,31/01/2012,Recipient name withheld,663,"Repairs, Maint, Alter - Property & Constrct. Services",West and Southern Africa,,400198368
DFID,DFID,10/01/2012,HEALTH PARTNERS INTERNATIONAL,"117,733",Research & Development costs,West and Southern Africa,,400195155
DFID,DFID,09/01/2012,Corporate Travel Provider,"1,058",Air fares,West and Southern Africa,,6000065
DFID,DFID,09/01/2012,Corporate Travel Provider,793,Air fares,West and Southern Africa,,6000065
DFID,DFID,09/01/2012,Corporate Travel Provider,950,Air fares,West and Southern Africa,,6000065
DFID,DFID,09/01/2012,Supplier Name withheld,"1,341",Air fares,West and Southern Africa,,6000065
DFID,DFID,09/01/2012,Corporate Travel Provider,"1,434",Air fares,West and Southern Africa,,6000065
DFID,DFID,09/01/2012,Corporate Travel Provider,"1,434",Air fares,West and Southern Africa,,6000065
DFID,DFID,16/01/2012,Corporate Travel Provider,710,Air fares,West and Southern Africa,,6000066
DFID,DFID,16/01/2012,Corporate Travel Provider,710,Air fares,West and Southern Africa,,6000066
DFID,DFID,16/01/2012,Supplier Name withheld,721,Air fares,West and Southern Africa,,6000066
DFID,DFID,16/01/2012,Corporate Travel Provider,781,Air fares,West and Southern Africa,,6000066
DFID,DFID,16/01/2012,Corporate Travel Provider,"1,022",Air fares,West and Southern Africa,,6000066
DFID,DFID,23/01/2012,Corporate Travel Provider,"1,666",Air fares,West and Southern Africa,,6000067
DFID,DFID,23/01/2012,Corporate Travel Provider,767,Air fares,West and Southern Africa,,6000067
DFID,DFID,23/01/2012,Corporate Travel Provider,555,Air fares,West and Southern Africa,,6000067
DFID,DFID,23/01/2012,Corporate Travel Provider,596,Air fares,West and Southern Africa,,6000067
DFID,DFID,18/01/2012,DANA Agency,535,Air fares,West and Southern Africa,,400196224
DFID,DFID,23/01/2012,Recipient name withheld,603,Air fares,West and Southern Africa,,400197099
DFID,DFID,26/01/2012,UNHAS - WFP (DRC),513,Air fares,West and Southern Africa,,400197829
DFID,DFID,11/01/2012,CROWN RELOCATIONS  UK,"1,076",Storage & Distribution costs,West and Southern Africa,,400194361
DFID,DFID,17/01/2012,J Tomecko,"8,318",Technical and Advisory Services,West and Southern Africa,,400191968
DFID,DFID,11/01/2012,Paud murphy consultants,"46,285",Technical and Advisory Services,West and Southern Africa,,400192937
DFID,DFID,19/01/2012,Bankable Frontier Associates,"4,910",Technical and Advisory Services,West and Southern Africa,,400192975
DFID,DFID,19/01/2012,Bankable Frontier Associates,"15,127",Technical and Advisory Services,West and Southern Africa,,400192979
DFID,DFID,18/01/2012,MOTT MACDONALD INTERNATIONAL,"1,736",Technical and Advisory Services,West and Southern Africa,,400193323
DFID,DFID,18/01/2012,MOTT MACDONALD INTERNATIONAL,"15,038",Technical and Advisory Services,West and Southern Africa,,400193328
DFID,DFID,12/01/2012,ADAM SMITH INTERNATIONAL  LTD,"19,639",Technical and Advisory Services,West and Southern Africa,,400193331
DFID,DFID,10/01/2012,Crown Agents Govts and Admin,"34,325",Technical and Advisory Services,West and Southern Africa,,400193896
DFID,DFID,05/01/2012,Society for Family  Health,"2,055,872",Technical and Advisory Services,West and Southern Africa,,400194140
DFID,DFID,04/01/2012,HTSPE LTD,"36,151",Technical and Advisory Services,West and Southern Africa,,400194147
DFID,DFID,04/01/2012,HLSP LIMITED,"24,217",Technical and Advisory Services,West and Southern Africa,,400194150
DFID,DFID,04/01/2012,Crown Agents Govts and Admin,"28,544",Technical and Advisory Services,West and Southern Africa,,400194151
DFID,DFID,05/01/2012,AM van den Heever,"3,500",Technical and Advisory Services,West and Southern Africa,,400194154
